Workbook

Sheet INGRESO DE DATOS
A12: Tarifas efectivas a partir del 1ro de enero de 2022
B15: Nombre del Asegurado Titular | D15: NOMBRE COMPLETO
B17: Número de adultos en la póliza | D17: 2 | H17: Número de niños en la póliza | J17: 3
B19: Edad del Asegurado Titular | D19: 65 | H19: Edad del/la cónyuge | J19: 71
G22: Variante con coaseguro fuera del país de residencia | H22: FALSE
B27: 2 | D27: 2

Sheet Global Ultimate
A13: GLOBAL ULTIMATE HEALTH PLAN | D13: Nombre del Asegurado Titular | F13: =+'INGRESO DE DATOS'!$D$15 -> NOMBRE COMPLETO
D15: Número de adultos en la póliza | F15: =+'INGRESO DE DATOS'!$D$17 -> 2 | G15: Edad del Asegurado Titular | H15: =+'INGRESO DE DATOS'!$D$19 -> 65
D17: Número de niños en la póliza | F17: =+'INGRESO DE DATOS'!$J$17 -> 3 | G17: Edad del/la conyuge | H17: =+'INGRESO DE DATOS'!$J$19 -> 71
D19: Número de niños menores de 16 años | F19: =+'INGRESO DE DATOS'!$B$27 -> 2 | G19: Fecha de la cotización: | H19: =NOW() -> 2021-11-08T13:01:54.110
H20: FALSE
E21: Deducibles | G21: PLAN 1 | H21: PLAN 2
E22: En el país de residencia | G22: 0 | H22: 1000
E23: Fuera del país de residencia | G23: 0 | H23: 1000
E25: Tarifas anuales
E26: Prima para Asegurado Titular | G26: =VLOOKUP($H$15,Tablas!$A$905:$G$971,3,TRUE) -> 64879 | H26: =VLOOKUP($H$15,Tablas!$A$905:$G$971,4,TRUE) -> 41859
E27: Prima para conyuge | G27: =IF($F$15=1,0,(VLOOKUP($H$17,Tablas!$A$905:$G$971,3,TRUE))) -> 107089 | H27: =IF($F$15=1,0,(VLOOKUP($H$17,Tablas!$A$905:$G$971,4,TRUE))) -> 69089
E28: Prima para hijo (s) | G28: =IF($F$15=1, (IF($F$17=0, 0, (IF($F$19>$F$17, (VLOOKUP($F$17,Tablas!$A$972:$G$974,3,TRUE)), (IF($F$17>4,(IF($F$19=0, (VLOOKUP(3,Tablas!$A$972:$G$974,3,TRUE)), (IF($F$19=1, (VLOOKUP(3,Tablas!$A$972:$G$974,3,TRUE)), (IF($F$19=2, (VLOOKUP(3,Tablas!$A$972:$G$974,3,TRUE)), (VLOOKUP(3,Tablas!$A$972:$G$974,3,TRUE)))))))), (IF($F$17=4,(IF(4-$F$19=0,(VLOOKUP(2,Tablas!$A$972:$G$974,3,TRUE)), (IF(4-$F$19=1,(VLOOKUP(2,Tablas!$A$972:$G$974,3,TRUE)), (IF(4-$F$19=2, (VLOOKUP(2,Tablas!$A$972:$G$974,3,TRUE)), (VLOOKUP(3,Tablas!$A$972:$G$974,3,TRUE)))))))), (IF($F$17=3,(IF(3-$F$19=0,(VLOOKUP(1,Tablas!$A$972:$G$974,3,TRUE)), (IF(3-$F$19=1,(VLOOKUP(1,Tablas!$A$972:$G$974,3,TRUE)), (IF(3-$F$19=2, (VLOOKUP(2,Tablas!$A$972:$G$974,3,TRUE)), (VLOOKUP(3,Tablas!$A$972:$G$974,3,TRUE)))))))), (IF($F$17=2,(IF(2-$F$19=0, 0, (IF(2-$F$19=1,(VLOOKUP(1,Tablas!$A$972:$G$974,3,TRUE)), (IF(2-$F$19=2, (VLOOKUP(2,Tablas!$A$972:$G$974,3,TRUE)), 0)))))), (IF($F$17=1,(IF(1-$F$19=0, 0, (IF(1-$F$19=1,(VLOOKUP(1,Tablas!$A$972:$G$974,3,TRUE)),0)))),0)))))))))))))), (IF($F$17=0, 0, (IF($F$19>$F$17, (VLOOKUP($F$17,Tablas!$A$972:$G$974,3,TRUE)), (IF($F$17=4,(IF(4-$F$19=0, 0, (IF(4-$F$19=1, (VLOOKUP(1,Tablas!$A$972:$G$974,3,TRUE)), (IF(4-$F$19=2, (VLOOKUP(2,Tablas!$A$972:$G$974,3,TRUE)), (IF(4-$F$19=3, (VLOOKUP(3,Tablas!$A$972:$G$974,3,TRUE)), (IF(4-$F$19=4, (VLOOKUP(3,Tablas!$A$972:$G$974,3,TRUE)), 0)))))))))), (IF($F$17=5,(IF(5-$F$19=0, (VLOOKUP(1,Tablas!$A$972:$G$974,3,TRUE)), (IF(5-$F$19=1, (VLOOKUP(1,Tablas!$A$972:$G$974,3,TRUE)), (IF(5-$F$19=2, (VLOOKUP(2,Tablas!$A$972:$G$974,3,TRUE)), (IF(5-$F$19=3, (VLOOKUP(3,Tablas!$A$972:$G$974,3,TRUE)), (IF(5-$F$19=4, (VLOOKUP(3,Tablas!$A$972:$G$974,3,TRUE)), (VLOOKUP(3,Tablas!$A$972:$G$974,3,TRUE)))))))))))), (IF($F$17=6,(IF(6-$F$19=0, (VLOOKUP(2,Tablas!$A$972:$G$974,3,TRUE)), (IF(6-$F$19=1, (VLOOKUP(2,Tablas!$A$972:$G$974,3,TRUE)), (IF(6-$F$19=2, (VLOOKUP(2,Tablas!$A$972:$G$974,3,TRUE)), (IF(6-$F$19=3, (VLOOKUP(3,Tablas!$A$972:$G$974,3,TRUE)), (IF(6-$F$19=4, (VLOOKUP(3,Tablas!$A$972:$G$974,3,TRUE)), (VLOOKUP(3,Tablas!$A$972:$G$974,3,TRUE)))))))))))), (IF($F$17>6,(IF(7-$F$19=0, (VLOOKUP(3,Tablas!$A$972:$G$974,3,TRUE)), (IF(7-$F$19=1, (VLOOKUP(3,Tablas!$A$972:$G$974,3,TRUE)), (IF(7-$F$19=2, (VLOOKUP(3,Tablas!$A$972:$G$974,3,TRUE)), (IF(7-$F$19=3, (VLOOKUP(3,Tablas!$A$972:$G$974,3,TRUE)), (IF(7-$F$19=4, (VLOOKUP(3,Tablas!$A$972:$G$974,3,TRUE)), (VLOOKUP(3,Tablas!$A$972:$G$974,3,TRUE)))))))))))), (IF($F$17=3,(IF(3-$F$19=0,0, (IF(3-$F$19=1,(VLOOKUP(1,Tablas!$A$972:$G$974,3,TRUE)), (IF(3-$F$19=2, (VLOOKUP(2,Tablas!$A$972:$G$974,3,TRUE)), (VLOOKUP(3,Tablas!$A$972:$G$974,3,TRUE)))))))), (IF($F$17=2,(IF(2-$F$19=0, 0, (IF(2-$F$19=1,(VLOOKUP(1,Tablas!$A$972:$G$974,3,TRUE)), (IF(2-$F$19=2, (VLOOKUP(2,Tablas!$A$972:$G$974,3,TRUE)), 0)))))), (IF($F$17=1,(IF(1-$F$19=0, 0, (IF(1-$F$19=1,(VLOOKUP(1,Tablas!$A$972:$G$974,3,TRUE)),0)))),0))))))))))))))))))) -> 7354 | H28: =IF($F$15=1, (IF($F$17=0, 0, (IF($F$19>$F$17, (VLOOKUP($F$17,Tablas!$A$972:$G$974,4,TRUE)), (IF($F$17>4,(IF($F$19=0, (VLOOKUP(3,Tablas!$A$972:$G$974,4,TRUE)), (IF($F$19=1, (VLOOKUP(3,Tablas!$A$972:$G$974,4,TRUE)), (IF($F$19=2, (VLOOKUP(3,Tablas!$A$972:$G$974,4,TRUE)), (VLOOKUP(3,Tablas!$A$972:$G$974,4,TRUE)))))))), (IF($F$17=4,(IF(4-$F$19=0,(VLOOKUP(2,Tablas!$A$972:$G$974,4,TRUE)), (IF(4-$F$19=1,(VLOOKUP(2,Tablas!$A$972:$G$974,4,TRUE)), (IF(4-$F$19=2, (VLOOKUP(2,Tablas!$A$972:$G$974,4,TRUE)), (VLOOKUP(3,Tablas!$A$972:$G$974,4,TRUE)))))))), (IF($F$17=3,(IF(3-$F$19=0,(VLOOKUP(1,Tablas!$A$972:$G$974,4,TRUE)), (IF(3-$F$19=1,(VLOOKUP(1,Tablas!$A$972:$G$974,4,TRUE)), (IF(3-$F$19=2, (VLOOKUP(2,Tablas!$A$972:$G$974,4,TRUE)), (VLOOKUP(3,Tablas!$A$972:$G$974,4,TRUE)))))))), (IF($F$17=2,(IF(2-$F$19=0, 0, (IF(2-$F$19=1,(VLOOKUP(1,Tablas!$A$972:$G$974,4,TRUE)), (IF(2-$F$19=2, (VLOOKUP(2,Tablas!$A$972:$G$974,4,TRUE)), 0)))))), (IF($F$17=1,(IF(1-$F$19=0, 0, (IF(1-$F$19=1,(VLOOKUP(1,Tablas!$A$972:$G$974,4,TRUE)),0)))),0)))))))))))))), (IF($F$17=0, 0, (IF($F$19>$F$17, (VLOOKUP($F$17,Tablas!$A$972:$G$974,4,TRUE)), (IF($F$17=4,(IF(4-$F$19=0, 0, (IF(4-$F$19=1, (VLOOKUP(1,Tablas!$A$972:$G$974,4,TRUE)), (IF(4-$F$19=2, (VLOOKUP(2,Tablas!$A$972:$G$974,4,TRUE)), (IF(4-$F$19=3, (VLOOKUP(3,Tablas!$A$972:$G$974,4,TRUE)), (IF(4-$F$19=4, (VLOOKUP(3,Tablas!$A$972:$G$974,4,TRUE)), 0)))))))))), (IF($F$17=5,(IF(5-$F$19=0, (VLOOKUP(1,Tablas!$A$972:$G$974,4,TRUE)), (IF(5-$F$19=1, (VLOOKUP(1,Tablas!$A$972:$G$974,4,TRUE)), (IF(5-$F$19=2, (VLOOKUP(2,Tablas!$A$972:$G$974,4,TRUE)), (IF(5-$F$19=3, (VLOOKUP(3,Tablas!$A$972:$G$974,4,TRUE)), (IF(5-$F$19=4, (VLOOKUP(3,Tablas!$A$972:$G$974,4,TRUE)), (VLOOKUP(3,Tablas!$A$972:$G$974,4,TRUE)))))))))))), (IF($F$17=6,(IF(6-$F$19=0, (VLOOKUP(2,Tablas!$A$972:$G$974,4,TRUE)), (IF(6-$F$19=1, (VLOOKUP(2,Tablas!$A$972:$G$974,4,TRUE)), (IF(6-$F$19=2, (VLOOKUP(2,Tablas!$A$972:$G$974,4,TRUE)), (IF(6-$F$19=3, (VLOOKUP(3,Tablas!$A$972:$G$974,4,TRUE)), (IF(6-$F$19=4, (VLOOKUP(3,Tablas!$A$972:$G$974,4,TRUE)), (VLOOKUP(3,Tablas!$A$972:$G$974,4,TRUE)))))))))))), (IF($F$17>6,(IF(7-$F$19=0, (VLOOKUP(3,Tablas!$A$972:$G$974,4,TRUE)), (IF(7-$F$19=1, (VLOOKUP(3,Tablas!$A$972:$G$974,4,TRUE)), (IF(7-$F$19=2, (VLOOKUP(3,Tablas!$A$972:$G$974,4,TRUE)), (IF(7-$F$19=3, (VLOOKUP(3,Tablas!$A$972:$G$974,4,TRUE)), (IF(7-$F$19=4, (VLOOKUP(3,Tablas!$A$972:$G$974,4,TRUE)), (VLOOKUP(3,Tablas!$A$972:$G$974,4,TRUE)))))))))))), (IF($F$17=3,(IF(3-$F$19=0,0, (IF(3-$F$19=1,(VLOOKUP(1,Tablas!$A$972:$G$974,4,TRUE)), (IF(3-$F$19=2, (VLOOKUP(2,Tablas!$A$972:$G$974,4,TRUE)), (VLOOKUP(3,Tablas!$A$972:$G$974,4,TRUE)))))))), (IF($F$17=2,(IF(2-$F$19=0, 0, (IF(2-$F$19=1,(VLOOKUP(1,Tablas!$A$972:$G$974,4,TRUE)), (IF(2-$F$19=2, (VLOOKUP(2,Tablas!$A$972:$G$974,4,TRUE)), 0)))))), (IF($F$17=1,(IF(1-$F$19=0, 0, (IF(1-$F$19=1,(VLOOKUP(1,Tablas!$A$972:$G$974,4,TRUE)),0)))),0))))))))))))))))))) -> 4744
E29: Total de Prima neta | G29: =SUM(G26:G28) -> 179322 | H29: =SUM(H26:H28) -> 115692
E30: Tarifa administrativa anual | G30: 75 | H30: 75
E31: IVA (12%) | G31: =(G30+G29)*0% -> 0 | H31: =(H30+H29)*0% -> 0
E32: TOTAL ANUAL | G32: =SUM(G29:G31) -> 179397 | H32: =SUM(H29:H31) -> 115767
E33: Ahorros en tarifas de prima para niños | G33: =IF($F$15=1,IF($F$17=0,0,IF($F$19=0,0,IF($F$19=1,(VLOOKUP(1,Tablas!$A$972:$G$974,3,TRUE)),(VLOOKUP(2,Tablas!$A$972:$G$974,3,TRUE))))), IF($F$17=0,0,IF($F$19=0,0,IF($F$19=1,(VLOOKUP(1,Tablas!$A$972:$G$974,3,TRUE)),IF($F$19=2,(VLOOKUP(2,Tablas!$A$972:$G$974,3,TRUE)), (VLOOKUP(3,Tablas!$A$972:$G$974,3,TRUE))))))) -> 12496 | H33: =IF($F$15=1,IF($F$17=0,0,IF($F$19=0,0,IF($F$19=1,(VLOOKUP(1,Tablas!$A$972:$G$974,4,TRUE)),(VLOOKUP(2,Tablas!$A$972:$G$974,4,TRUE))))), IF($F$17=0,0,IF($F$19=0,0,IF($F$19=1,(VLOOKUP(1,Tablas!$A$972:$G$974,4,TRUE)),IF($F$19=2,(VLOOKUP(2,Tablas!$A$972:$G$974,4,TRUE)), (VLOOKUP(3,Tablas!$A$972:$G$974,4,TRUE))))))) -> 8063
E35: Tarifas semi anuales
E36: Prima para Asegurado Titular | G36: =VLOOKUP($H$15,Tablas!$A$1428:$G$1494,3,TRUE) -> 34385.87 | H36: =VLOOKUP($H$15,Tablas!$A$1428:$G$1494,4,TRUE) -> 22185.27
E37: Prima para conyuge | G37: =IF($F$15=1,0,(VLOOKUP($H$17,Tablas!$A$1428:$G$1494,3,TRUE))) -> 56757.17 | H37: =IF($F$15=1,0,(VLOOKUP($H$17,Tablas!$A$1428:$G$1494,4,TRUE))) -> 36617.17
E38: Prima para hijo (s) | G38: =IF($F$15=1, (IF($F$17=0, 0, (IF($F$19>$F$17, (VLOOKUP($F$17,Tablas!$A$1495:$G$1497,3,TRUE)), (IF($F$17>4,(IF($F$19=0, (VLOOKUP(3,Tablas!$A$1495:$G$1497,3,TRUE)), (IF($F$19=1, (VLOOKUP(3,Tablas!$A$1495:$G$1497,3,TRUE)), (IF($F$19=2, (VLOOKUP(3,Tablas!$A$1495:$G$1497,3,TRUE)), (VLOOKUP(3,Tablas!$A$1495:$G$1497,3,TRUE)))))))), (IF($F$17=4,(IF(4-$F$19=0,(VLOOKUP(2,Tablas!$A$1495:$G$1497,3,TRUE)), (IF(4-$F$19=1,(VLOOKUP(2,Tablas!$A$1495:$G$1497,3,TRUE)), (IF(4-$F$19=2, (VLOOKUP(2,Tablas!$A$1495:$G$1497,3,TRUE)), (VLOOKUP(3,Tablas!$A$1495:$G$1497,3,TRUE)))))))), (IF($F$17=3,(IF(3-$F$19=0,(VLOOKUP(1,Tablas!$A$1495:$G$1497,3,TRUE)), (IF(3-$F$19=1,(VLOOKUP(1,Tablas!$A$1495:$G$1497,3,TRUE)), (IF(3-$F$19=2, (VLOOKUP(2,Tablas!$A$1495:$G$1497,3,TRUE)), (VLOOKUP(3,Tablas!$A$1495:$G$1497,3,TRUE)))))))), (IF($F$17=2,(IF(2-$F$19=0, 0, (IF(2-$F$19=1,(VLOOKUP(1,Tablas!$A$1495:$G$1497,3,TRUE)), (IF(2-$F$19=2, (VLOOKUP(2,Tablas!$A$1495:$G$1497,3,TRUE)), 0)))))), (IF($F$17=1,(IF(1-$F$19=0, 0, (IF(1-$F$19=1,(VLOOKUP(1,Tablas!$A$1495:$G$1497,3,TRUE)),0)))),0)))))))))))))), (IF($F$17=0, 0, (IF($F$19>$F$17, (VLOOKUP($F$17,Tablas!$A$1495:$G$1497,3,TRUE)), (IF($F$17=4,(IF(4-$F$19=0, 0, (IF(4-$F$19=1, (VLOOKUP(1,Tablas!$A$1495:$G$1497,3,TRUE)), (IF(4-$F$19=2, (VLOOKUP(2,Tablas!$A$1495:$G$1497,3,TRUE)), (IF(4-$F$19=3, (VLOOKUP(3,Tablas!$A$1495:$G$1497,3,TRUE)), (IF(4-$F$19=4, (VLOOKUP(3,Tablas!$A$1495:$G$1497,3,TRUE)), 0)))))))))), (IF($F$17=5,(IF(5-$F$19=0, (VLOOKUP(1,Tablas!$A$1495:$G$1497,3,TRUE)), (IF(5-$F$19=1, (VLOOKUP(1,Tablas!$A$1495:$G$1497,3,TRUE)), (IF(5-$F$19=2, (VLOOKUP(2,Tablas!$A$1495:$G$1497,3,TRUE)), (IF(5-$F$19=3, (VLOOKUP(3,Tablas!$A$1495:$G$1497,3,TRUE)), (IF(5-$F$19=4, (VLOOKUP(3,Tablas!$A$1495:$G$1497,3,TRUE)), (VLOOKUP(3,Tablas!$A$1495:$G$1497,3,TRUE)))))))))))), (IF($F$17=6,(IF(6-$F$19=0, (VLOOKUP(2,Tablas!$A$1495:$G$1497,3,TRUE)), (IF(6-$F$19=1, (VLOOKUP(2,Tablas!$A$1495:$G$1497,3,TRUE)), (IF(6-$F$19=2, (VLOOKUP(2,Tablas!$A$1495:$G$1497,3,TRUE)), (IF(6-$F$19=3, (VLOOKUP(3,Tablas!$A$1495:$G$1497,3,TRUE)), (IF(6-$F$19=4, (VLOOKUP(3,Tablas!$A$1495:$G$1497,3,TRUE)), (VLOOKUP(3,Tablas!$A$1495:$G$1497,3,TRUE)))))))))))), (IF($F$17>6,(IF(7-$F$19=0, (VLOOKUP(3,Tablas!$A$1495:$G$1497,3,TRUE)), (IF(7-$F$19=1, (VLOOKUP(3,Tablas!$A$1495:$G$1497,3,TRUE)), (IF(7-$F$19=2, (VLOOKUP(3,Tablas!$A$1495:$G$1497,3,TRUE)), (IF(7-$F$19=3, (VLOOKUP(3,Tablas!$A$1495:$G$1497,3,TRUE)), (IF(7-$F$19=4, (VLOOKUP(3,Tablas!$A$1495:$G$1497,3,TRUE)), (VLOOKUP(3,Tablas!$A$1495:$G$1497,3,TRUE)))))))))))), (IF($F$17=3,(IF(3-$F$19=0,0, (IF(3-$F$19=1,(VLOOKUP(1,Tablas!$A$1495:$G$1497,3,TRUE)), (IF(3-$F$19=2, (VLOOKUP(2,Tablas!$A$1495:$G$1497,3,TRUE)), (VLOOKUP(3,Tablas!$A$1495:$G$1497,3,TRUE)))))))), (IF($F$17=2,(IF(2-$F$19=0, 0, (IF(2-$F$19=1,(VLOOKUP(1,Tablas!$A$1495:$G$1497,3,TRUE)), (IF(2-$F$19=2, (VLOOKUP(2,Tablas!$A$1495:$G$1497,3,TRUE)), 0)))))), (IF($F$17=1,(IF(1-$F$19=0, 0, (IF(1-$F$19=1,(VLOOKUP(1,Tablas!$A$1495:$G$1497,3,TRUE)),0)))),0))))))))))))))))))) -> 3897.62 | H38: =IF($F$15=1, (IF($F$17=0, 0, (IF($F$19>$F$17, (VLOOKUP($F$17,Tablas!$A$1495:$G$1497,4,TRUE)), (IF($F$17>4,(IF($F$19=0, (VLOOKUP(3,Tablas!$A$1495:$G$1497,4,TRUE)), (IF($F$19=1, (VLOOKUP(3,Tablas!$A$1495:$G$1497,4,TRUE)), (IF($F$19=2, (VLOOKUP(3,Tablas!$A$1495:$G$1497,4,TRUE)), (VLOOKUP(3,Tablas!$A$1495:$G$1497,4,TRUE)))))))), (IF($F$17=4,(IF(4-$F$19=0,(VLOOKUP(2,Tablas!$A$1495:$G$1497,4,TRUE)), (IF(4-$F$19=1,(VLOOKUP(2,Tablas!$A$1495:$G$1497,4,TRUE)), (IF(4-$F$19=2, (VLOOKUP(2,Tablas!$A$1495:$G$1497,4,TRUE)), (VLOOKUP(3,Tablas!$A$1495:$G$1497,4,TRUE)))))))), (IF($F$17=3,(IF(3-$F$19=0,(VLOOKUP(1,Tablas!$A$1495:$G$1497,4,TRUE)), (IF(3-$F$19=1,(VLOOKUP(1,Tablas!$A$1495:$G$1497,4,TRUE)), (IF(3-$F$19=2, (VLOOKUP(2,Tablas!$A$1495:$G$1497,4,TRUE)), (VLOOKUP(3,Tablas!$A$1495:$G$1497,4,TRUE)))))))), (IF($F$17=2,(IF(2-$F$19=0, 0, (IF(2-$F$19=1,(VLOOKUP(1,Tablas!$A$1495:$G$1497,4,TRUE)), (IF(2-$F$19=2, (VLOOKUP(2,Tablas!$A$1495:$G$1497,4,TRUE)), 0)))))), (IF($F$17=1,(IF(1-$F$19=0, 0, (IF(1-$F$19=1,(VLOOKUP(1,Tablas!$A$1495:$G$1497,4,TRUE)),0)))),0)))))))))))))), (IF($F$17=0, 0, (IF($F$19>$F$17, (VLOOKUP($F$17,Tablas!$A$1495:$G$1497,4,TRUE)), (IF($F$17=4,(IF(4-$F$19=0, 0, (IF(4-$F$19=1, (VLOOKUP(1,Tablas!$A$1495:$G$1497,4,TRUE)), (IF(4-$F$19=2, (VLOOKUP(2,Tablas!$A$1495:$G$1497,4,TRUE)), (IF(4-$F$19=3, (VLOOKUP(3,Tablas!$A$1495:$G$1497,4,TRUE)), (IF(4-$F$19=4, (VLOOKUP(3,Tablas!$A$1495:$G$1497,4,TRUE)), 0)))))))))), (IF($F$17=5,(IF(5-$F$19=0, (VLOOKUP(1,Tablas!$A$1495:$G$1497,4,TRUE)), (IF(5-$F$19=1, (VLOOKUP(1,Tablas!$A$1495:$G$1497,4,TRUE)), (IF(5-$F$19=2, (VLOOKUP(2,Tablas!$A$1495:$G$1497,4,TRUE)), (IF(5-$F$19=3, (VLOOKUP(3,Tablas!$A$1495:$G$1497,4,TRUE)), (IF(5-$F$19=4, (VLOOKUP(3,Tablas!$A$1495:$G$1497,4,TRUE)), (VLOOKUP(3,Tablas!$A$1495:$G$1497,4,TRUE)))))))))))), (IF($F$17=6,(IF(6-$F$19=0, (VLOOKUP(2,Tablas!$A$1495:$G$1497,4,TRUE)), (IF(6-$F$19=1, (VLOOKUP(2,Tablas!$A$1495:$G$1497,4,TRUE)), (IF(6-$F$19=2, (VLOOKUP(2,Tablas!$A$1495:$G$1497,4,TRUE)), (IF(6-$F$19=3, (VLOOKUP(3,Tablas!$A$1495:$G$1497,4,TRUE)), (IF(6-$F$19=4, (VLOOKUP(3,Tablas!$A$1495:$G$1497,4,TRUE)), (VLOOKUP(3,Tablas!$A$1495:$G$1497,4,TRUE)))))))))))), (IF($F$17>6,(IF(7-$F$19=0, (VLOOKUP(3,Tablas!$A$1495:$G$1497,4,TRUE)), (IF(7-$F$19=1, (VLOOKUP(3,Tablas!$A$1495:$G$1497,4,TRUE)), (IF(7-$F$19=2, (VLOOKUP(3,Tablas!$A$1495:$G$1497,4,TRUE)), (IF(7-$F$19=3, (VLOOKUP(3,Tablas!$A$1495:$G$1497,4,TRUE)), (IF(7-$F$19=4, (VLOOKUP(3,Tablas!$A$1495:$G$1497,4,TRUE)), (VLOOKUP(3,Tablas!$A$1495:$G$1497,4,TRUE)))))))))))), (IF($F$17=3,(IF(3-$F$19=0,0, (IF(3-$F$19=1,(VLOOKUP(1,Tablas!$A$1495:$G$1497,4,TRUE)), (IF(3-$F$19=2, (VLOOKUP(2,Tablas!$A$1495:$G$1497,4,TRUE)), (VLOOKUP(3,Tablas!$A$1495:$G$1497,4,TRUE)))))))), (IF($F$17=2,(IF(2-$F$19=0, 0, (IF(2-$F$19=1,(VLOOKUP(1,Tablas!$A$1495:$G$1497,4,TRUE)), (IF(2-$F$19=2, (VLOOKUP(2,Tablas!$A$1495:$G$1497,4,TRUE)), 0)))))), (IF($F$17=1,(IF(1-$F$19=0, 0, (IF(1-$F$19=1,(VLOOKUP(1,Tablas!$A$1495:$G$1497,4,TRUE)),0)))),0))))))))))))))))))) -> 2514.32
E39: Total de Prima neta | G39: =SUM(G36:G38) -> 95040.66 | H39: =SUM(H36:H38) -> 61316.76
E40: Tarifa administrativa anual | G40: 75 | H40: 75
E41: IVA (12%) | G41: =(G39+G40)*0% -> 0 | H41: =(H39+H40)*0% -> 0
E42: TOTAL de primera cuota | G42: =SUM(G39:G41) -> 95115.66 | H42: =SUM(H39:H41) -> 61391.76
E43: Costo de segunda cuota | G43: =G39 -> 95040.66 | H43: =H39 -> 61316.76
E44: TOTAL ANUAL | G44: =G42+G43 -> 190156.32 | H44: =H42+H43 -> 122708.52
E45: Ahorros en tarifas de prima para niños | G45: =IF($F$15=1,IF($F$17=0,0,IF($F$19=0,0,IF($F$19=1,(VLOOKUP(1,Tablas!$A$1495:$G$1497,3,TRUE)),(VLOOKUP(2,Tablas!$A$1495:$G$1497,3,TRUE))))), IF($F$17=0,0,IF($F$19=0,0,IF($F$19=1,(VLOOKUP(1,Tablas!$A$1495:$G$1497,3,TRUE)),IF($F$19=2,(VLOOKUP(2,Tablas!$A$1495:$G$1497,3,TRUE)), (VLOOKUP(3,Tablas!$A$1495:$G$1497,3,TRUE))))))) -> 6622.88 | H45: =IF($F$15=1,IF($F$17=0,0,IF($F$19=0,0,IF($F$19=1,(VLOOKUP(1,Tablas!$A$1495:$G$1497,4,TRUE)),(VLOOKUP(2,Tablas!$A$1495:$G$1497,4,TRUE))))), IF($F$17=0,0,IF($F$19=0,0,IF($F$19=1,(VLOOKUP(1,Tablas!$A$1495:$G$1497,4,TRUE)),IF($F$19=2,(VLOOKUP(2,Tablas!$A$1495:$G$1497,4,TRUE)), (VLOOKUP(3,Tablas!$A$1495:$G$1497,4,TRUE))))))) -> 4273.39
E47: Tarifas trimestrales
E48: Prima para Asegurado Titular | G48: =VLOOKUP($H$15,Tablas!$A$1054:$G$1120,3,TRUE) -> 17841.725 | H48: =VLOOKUP($H$15,Tablas!$A$1054:$G$1120,4,TRUE) -> 11511.225
E49: Prima para conyuge | G49: =IF($F$15=1,0,(VLOOKUP($H$17,Tablas!$A$1054:$G$1120,3,TRUE))) -> 29449.475 | H49: =IF($F$15=1,0,(VLOOKUP($H$17,Tablas!$A$1054:$G$1120,4,TRUE))) -> 18999.475
E50: Prima para hijo (s) | G50: =IF($F$15=1, (IF($F$17=0, 0, (IF($F$19>$F$17, (VLOOKUP($F$17,Tablas!$A$1121:$G$1123,3,TRUE)), (IF($F$17>4,(IF($F$19=0, (VLOOKUP(3,Tablas!$A$1121:$G$1123,3,TRUE)), (IF($F$19=1, (VLOOKUP(3,Tablas!$A$1121:$G$1123,3,TRUE)), (IF($F$19=2, (VLOOKUP(3,Tablas!$A$1121:$G$1123,3,TRUE)), (VLOOKUP(3,Tablas!$A$1121:$G$1123,3,TRUE)))))))), (IF($F$17=4,(IF(4-$F$19=0,(VLOOKUP(2,Tablas!$A$1121:$G$1123,3,TRUE)), (IF(4-$F$19=1,(VLOOKUP(2,Tablas!$A$1121:$G$1123,3,TRUE)), (IF(4-$F$19=2, (VLOOKUP(2,Tablas!$A$1121:$G$1123,3,TRUE)), (VLOOKUP(3,Tablas!$A$1121:$G$1123,3,TRUE)))))))), (IF($F$17=3,(IF(3-$F$19=0,(VLOOKUP(1,Tablas!$A$1121:$G$1123,3,TRUE)), (IF(3-$F$19=1,(VLOOKUP(1,Tablas!$A$1121:$G$1123,3,TRUE)), (IF(3-$F$19=2, (VLOOKUP(2,Tablas!$A$1121:$G$1123,3,TRUE)), (VLOOKUP(3,Tablas!$A$1121:$G$1123,3,TRUE)))))))), (IF($F$17=2,(IF(2-$F$19=0, 0, (IF(2-$F$19=1,(VLOOKUP(1,Tablas!$A$1121:$G$1123,3,TRUE)), (IF(2-$F$19=2, (VLOOKUP(2,Tablas!$A$1121:$G$1123,3,TRUE)), 0)))))), (IF($F$17=1,(IF(1-$F$19=0, 0, (IF(1-$F$19=1,(VLOOKUP(1,Tablas!$A$1121:$G$1123,3,TRUE)),0)))),0)))))))))))))), (IF($F$17=0, 0, (IF($F$19>$F$17, (VLOOKUP($F$17,Tablas!$A$1121:$G$1123,3,TRUE)), (IF($F$17=4,(IF(4-$F$19=0, 0, (IF(4-$F$19=1, (VLOOKUP(1,Tablas!$A$1121:$G$1123,3,TRUE)), (IF(4-$F$19=2, (VLOOKUP(2,Tablas!$A$1121:$G$1123,3,TRUE)), (IF(4-$F$19=3, (VLOOKUP(3,Tablas!$A$1121:$G$1123,3,TRUE)), (IF(4-$F$19=4, (VLOOKUP(3,Tablas!$A$1121:$G$1123,3,TRUE)), 0)))))))))), (IF($F$17=5,(IF(5-$F$19=0, (VLOOKUP(1,Tablas!$A$1121:$G$1123,3,TRUE)), (IF(5-$F$19=1, (VLOOKUP(1,Tablas!$A$1121:$G$1123,3,TRUE)), (IF(5-$F$19=2, (VLOOKUP(2,Tablas!$A$1121:$G$1123,3,TRUE)), (IF(5-$F$19=3, (VLOOKUP(3,Tablas!$A$1121:$G$1123,3,TRUE)), (IF(5-$F$19=4, (VLOOKUP(3,Tablas!$A$1121:$G$1123,3,TRUE)), (VLOOKUP(3,Tablas!$A$1121:$G$1123,3,TRUE)))))))))))), (IF($F$17=6,(IF(6-$F$19=0, (VLOOKUP(2,Tablas!$A$1121:$G$1123,3,TRUE)), (IF(6-$F$19=1, (VLOOKUP(2,Tablas!$A$1121:$G$1123,3,TRUE)), (IF(6-$F$19=2, (VLOOKUP(2,Tablas!$A$1121:$G$1123,3,TRUE)), (IF(6-$F$19=3, (VLOOKUP(3,Tablas!$A$1121:$G$1123,3,TRUE)), (IF(6-$F$19=4, (VLOOKUP(3,Tablas!$A$1121:$G$1123,3,TRUE)), (VLOOKUP(3,Tablas!$A$1121:$G$1123,3,TRUE)))))))))))), (IF($F$17>6,(IF(7-$F$19=0, (VLOOKUP(3,Tablas!$A$1121:$G$1123,3,TRUE)), (IF(7-$F$19=1, (VLOOKUP(3,Tablas!$A$1121:$G$1123,3,TRUE)), (IF(7-$F$19=2, (VLOOKUP(3,Tablas!$A$1121:$G$1123,3,TRUE)), (IF(7-$F$19=3, (VLOOKUP(3,Tablas!$A$1121:$G$1123,3,TRUE)), (IF(7-$F$19=4, (VLOOKUP(3,Tablas!$A$1121:$G$1123,3,TRUE)), (VLOOKUP(3,Tablas!$A$1121:$G$1123,3,TRUE)))))))))))), (IF($F$17=3,(IF(3-$F$19=0,0, (IF(3-$F$19=1,(VLOOKUP(1,Tablas!$A$1121:$G$1123,3,TRUE)), (IF(3-$F$19=2, (VLOOKUP(2,Tablas!$A$1121:$G$1123,3,TRUE)), (VLOOKUP(3,Tablas!$A$1121:$G$1123,3,TRUE)))))))), (IF($F$17=2,(IF(2-$F$19=0, 0, (IF(2-$F$19=1,(VLOOKUP(1,Tablas!$A$1121:$G$1123,3,TRUE)), (IF(2-$F$19=2, (VLOOKUP(2,Tablas!$A$1121:$G$1123,3,TRUE)), 0)))))), (IF($F$17=1,(IF(1-$F$19=0, 0, (IF(1-$F$19=1,(VLOOKUP(1,Tablas!$A$1121:$G$1123,3,TRUE)),0)))),0))))))))))))))))))) -> 2022.35 | H50: =IF($F$15=1, (IF($F$17=0, 0, (IF($F$19>$F$17, (VLOOKUP($F$17,Tablas!$A$1121:$G$1123,4,TRUE)), (IF($F$17>4,(IF($F$19=0, (VLOOKUP(3,Tablas!$A$1121:$G$1123,4,TRUE)), (IF($F$19=1, (VLOOKUP(3,Tablas!$A$1121:$G$1123,4,TRUE)), (IF($F$19=2, (VLOOKUP(3,Tablas!$A$1121:$G$1123,4,TRUE)), (VLOOKUP(3,Tablas!$A$1121:$G$1123,4,TRUE)))))))), (IF($F$17=4,(IF(4-$F$19=0,(VLOOKUP(2,Tablas!$A$1121:$G$1123,4,TRUE)), (IF(4-$F$19=1,(VLOOKUP(2,Tablas!$A$1121:$G$1123,4,TRUE)), (IF(4-$F$19=2, (VLOOKUP(2,Tablas!$A$1121:$G$1123,4,TRUE)), (VLOOKUP(3,Tablas!$A$1121:$G$1123,4,TRUE)))))))), (IF($F$17=3,(IF(3-$F$19=0,(VLOOKUP(1,Tablas!$A$1121:$G$1123,4,TRUE)), (IF(3-$F$19=1,(VLOOKUP(1,Tablas!$A$1121:$G$1123,4,TRUE)), (IF(3-$F$19=2, (VLOOKUP(2,Tablas!$A$1121:$G$1123,4,TRUE)), (VLOOKUP(3,Tablas!$A$1121:$G$1123,4,TRUE)))))))), (IF($F$17=2,(IF(2-$F$19=0, 0, (IF(2-$F$19=1,(VLOOKUP(1,Tablas!$A$1121:$G$1123,4,TRUE)), (IF(2-$F$19=2, (VLOOKUP(2,Tablas!$A$1121:$G$1123,4,TRUE)), 0)))))), (IF($F$17=1,(IF(1-$F$19=0, 0, (IF(1-$F$19=1,(VLOOKUP(1,Tablas!$A$1121:$G$1123,4,TRUE)),0)))),0)))))))))))))), (IF($F$17=0, 0, (IF($F$19>$F$17, (VLOOKUP($F$17,Tablas!$A$1121:$G$1123,4,TRUE)), (IF($F$17=4,(IF(4-$F$19=0, 0, (IF(4-$F$19=1, (VLOOKUP(1,Tablas!$A$1121:$G$1123,4,TRUE)), (IF(4-$F$19=2, (VLOOKUP(2,Tablas!$A$1121:$G$1123,4,TRUE)), (IF(4-$F$19=3, (VLOOKUP(3,Tablas!$A$1121:$G$1123,4,TRUE)), (IF(4-$F$19=4, (VLOOKUP(3,Tablas!$A$1121:$G$1123,4,TRUE)), 0)))))))))), (IF($F$17=5,(IF(5-$F$19=0, (VLOOKUP(1,Tablas!$A$1121:$G$1123,4,TRUE)), (IF(5-$F$19=1, (VLOOKUP(1,Tablas!$A$1121:$G$1123,4,TRUE)), (IF(5-$F$19=2, (VLOOKUP(2,Tablas!$A$1121:$G$1123,4,TRUE)), (IF(5-$F$19=3, (VLOOKUP(3,Tablas!$A$1121:$G$1123,4,TRUE)), (IF(5-$F$19=4, (VLOOKUP(3,Tablas!$A$1121:$G$1123,4,TRUE)), (VLOOKUP(3,Tablas!$A$1121:$G$1123,4,TRUE)))))))))))), (IF($F$17=6,(IF(6-$F$19=0, (VLOOKUP(2,Tablas!$A$1121:$G$1123,4,TRUE)), (IF(6-$F$19=1, (VLOOKUP(2,Tablas!$A$1121:$G$1123,4,TRUE)), (IF(6-$F$19=2, (VLOOKUP(2,Tablas!$A$1121:$G$1123,4,TRUE)), (IF(6-$F$19=3, (VLOOKUP(3,Tablas!$A$1121:$G$1123,4,TRUE)), (IF(6-$F$19=4, (VLOOKUP(3,Tablas!$A$1121:$G$1123,4,TRUE)), (VLOOKUP(3,Tablas!$A$1121:$G$1123,4,TRUE)))))))))))), (IF($F$17>6,(IF(7-$F$19=0, (VLOOKUP(3,Tablas!$A$1121:$G$1123,4,TRUE)), (IF(7-$F$19=1, (VLOOKUP(3,Tablas!$A$1121:$G$1123,4,TRUE)), (IF(7-$F$19=2, (VLOOKUP(3,Tablas!$A$1121:$G$1123,4,TRUE)), (IF(7-$F$19=3, (VLOOKUP(3,Tablas!$A$1121:$G$1123,4,TRUE)), (IF(7-$F$19=4, (VLOOKUP(3,Tablas!$A$1121:$G$1123,4,TRUE)), (VLOOKUP(3,Tablas!$A$1121:$G$1123,4,TRUE)))))))))))), (IF($F$17=3,(IF(3-$F$19=0,0, (IF(3-$F$19=1,(VLOOKUP(1,Tablas!$A$1121:$G$1123,4,TRUE)), (IF(3-$F$19=2, (VLOOKUP(2,Tablas!$A$1121:$G$1123,4,TRUE)), (VLOOKUP(3,Tablas!$A$1121:$G$1123,4,TRUE)))))))), (IF($F$17=2,(IF(2-$F$19=0, 0, (IF(2-$F$19=1,(VLOOKUP(1,Tablas!$A$1121:$G$1123,4,TRUE)), (IF(2-$F$19=2, (VLOOKUP(2,Tablas!$A$1121:$G$1123,4,TRUE)), 0)))))), (IF($F$17=1,(IF(1-$F$19=0, 0, (IF(1-$F$19=1,(VLOOKUP(1,Tablas!$A$1121:$G$1123,4,TRUE)),0)))),0))))))))))))))))))) -> 1304.6
E51: Total de Prima neta | G51: =SUM(G48:G50) -> 49313.55 | H51: =SUM(H48:H50) -> 31815.3
E52: Tarifa administrativa anual | G52: 75 | H52: 75
E53: IVA (12%) | G53: =(G51+G52)*0% -> 0 | H53: =(H51+H52)*0% -> 0
E54: TOTAL de primera cuota | G54: =SUM(G51:G53) -> 49388.55 | H54: =SUM(H51:H53) -> 31890.3
E55: Costo de tarifa trimestral 2 a 4 | G55: =G51 -> 49313.55 | H55: =H51 -> 31815.3
E56: TOTAL ANUAL | G56: =G54+(G55*3) -> 197329.2 | H56: =H54+(H55*3) -> 127336.2
E57: Ahorros en tarifas de prima para niños | G57: =IF($F$15=1,IF($F$17=0,0,IF($F$19=0,0,IF($F$19=1,(VLOOKUP(1,Tablas!$A$1121:$G$1123,3,TRUE)),(VLOOKUP(2,Tablas!$A$1121:$G$1123,3,TRUE))))), IF($F$17=0,0,IF($F$19=0,0,IF($F$19=1,(VLOOKUP(1,Tablas!$A$1121:$G$1123,3,TRUE)),IF($F$19=2,(VLOOKUP(2,Tablas!$A$1121:$G$1123,3,TRUE)), (VLOOKUP(3,Tablas!$A$1121:$G$1123,3,TRUE))))))) -> 3436.4 | H57: =IF($F$15=1,IF($F$17=0,0,IF($F$19=0,0,IF($F$19=1,(VLOOKUP(1,Tablas!$A$1121:$G$1123,4,TRUE)),(VLOOKUP(2,Tablas!$A$1121:$G$1123,4,TRUE))))), IF($F$17=0,0,IF($F$19=0,0,IF($F$19=1,(VLOOKUP(1,Tablas!$A$1121:$G$1123,4,TRUE)),IF($F$19=2,(VLOOKUP(2,Tablas!$A$1121:$G$1123,4,TRUE)), (VLOOKUP(3,Tablas!$A$1121:$G$1123,4,TRUE))))))) -> 2217.325
E59: Tarifas mensuales
E60: Prima para Asegurado Titular | G60: =VLOOKUP($H$15,Tablas!$A$979:$G$1045,3,TRUE) -> 6055.373333 | H60: =VLOOKUP($H$15,Tablas!$A$979:$G$1045,4,TRUE) -> 3906.84
E61: Prima para conyuge | G61: =IF($F$15=1,0,(VLOOKUP($H$17,Tablas!$A$979:$G$1045,3,TRUE))) -> 9994.973333 | H61: =IF($F$15=1,0,(VLOOKUP($H$17,Tablas!$A$979:$G$1045,4,TRUE))) -> 6448.306667
E62: Prima para hijo (s) | G62: =IF($F$15=1, (IF($F$17=0, 0, (IF($F$19>$F$17, (VLOOKUP($F$17,Tablas!$A$1046:$G$1048,3,TRUE)), (IF($F$17>4,(IF($F$19=0, (VLOOKUP(3,Tablas!$A$1046:$G$1048,3,TRUE)), (IF($F$19=1, (VLOOKUP(3,Tablas!$A$1046:$G$1048,3,TRUE)), (IF($F$19=2, (VLOOKUP(3,Tablas!$A$1046:$G$1048,3,TRUE)), (VLOOKUP(3,Tablas!$A$1046:$G$1048,3,TRUE)))))))), (IF($F$17=4,(IF(4-$F$19=0,(VLOOKUP(2,Tablas!$A$1046:$G$1048,3,TRUE)), (IF(4-$F$19=1,(VLOOKUP(2,Tablas!$A$1046:$G$1048,3,TRUE)), (IF(4-$F$19=2, (VLOOKUP(2,Tablas!$A$1046:$G$1048,3,TRUE)), (VLOOKUP(3,Tablas!$A$1046:$G$1048,3,TRUE)))))))), (IF($F$17=3,(IF(3-$F$19=0,(VLOOKUP(1,Tablas!$A$1046:$G$1048,3,TRUE)), (IF(3-$F$19=1,(VLOOKUP(1,Tablas!$A$1046:$G$1048,3,TRUE)), (IF(3-$F$19=2, (VLOOKUP(2,Tablas!$A$1046:$G$1048,3,TRUE)), (VLOOKUP(3,Tablas!$A$1046:$G$1048,3,TRUE)))))))), (IF($F$17=2,(IF(2-$F$19=0, 0, (IF(2-$F$19=1,(VLOOKUP(1,Tablas!$A$1046:$G$1048,3,TRUE)), (IF(2-$F$19=2, (VLOOKUP(2,Tablas!$A$1046:$G$1048,3,TRUE)), 0)))))), (IF($F$17=1,(IF(1-$F$19=0, 0, (IF(1-$F$19=1,(VLOOKUP(1,Tablas!$A$1046:$G$1048,3,TRUE)),0)))),0)))))))))))))), (IF($F$17=0, 0, (IF($F$19>$F$17, (VLOOKUP($F$17,Tablas!$A$1046:$G$1048,3,TRUE)), (IF($F$17=4,(IF(4-$F$19=0, 0, (IF(4-$F$19=1, (VLOOKUP(1,Tablas!$A$1046:$G$1048,3,TRUE)), (IF(4-$F$19=2, (VLOOKUP(2,Tablas!$A$1046:$G$1048,3,TRUE)), (IF(4-$F$19=3, (VLOOKUP(3,Tablas!$A$1046:$G$1048,3,TRUE)), (IF(4-$F$19=4, (VLOOKUP(3,Tablas!$A$1046:$G$1048,3,TRUE)), 0)))))))))), (IF($F$17=5,(IF(5-$F$19=0, (VLOOKUP(1,Tablas!$A$1046:$G$1048,3,TRUE)), (IF(5-$F$19=1, (VLOOKUP(1,Tablas!$A$1046:$G$1048,3,TRUE)), (IF(5-$F$19=2, (VLOOKUP(2,Tablas!$A$1046:$G$1048,3,TRUE)), (IF(5-$F$19=3, (VLOOKUP(3,Tablas!$A$1046:$G$1048,3,TRUE)), (IF(5-$F$19=4, (VLOOKUP(3,Tablas!$A$1046:$G$1048,3,TRUE)), (VLOOKUP(3,Tablas!$A$1046:$G$1048,3,TRUE)))))))))))), (IF($F$17=6,(IF(6-$F$19=0, (VLOOKUP(2,Tablas!$A$1046:$G$1048,3,TRUE)), (IF(6-$F$19=1, (VLOOKUP(2,Tablas!$A$1046:$G$1048,3,TRUE)), (IF(6-$F$19=2, (VLOOKUP(2,Tablas!$A$1046:$G$1048,3,TRUE)), (IF(6-$F$19=3, (VLOOKUP(3,Tablas!$A$1046:$G$1048,3,TRUE)), (IF(6-$F$19=4, (VLOOKUP(3,Tablas!$A$1046:$G$1048,3,TRUE)), (VLOOKUP(3,Tablas!$A$1046:$G$1048,3,TRUE)))))))))))), (IF($F$17>6,(IF(7-$F$19=0, (VLOOKUP(3,Tablas!$A$1046:$G$1048,3,TRUE)), (IF(7-$F$19=1, (VLOOKUP(3,Tablas!$A$1046:$G$1048,3,TRUE)), (IF(7-$F$19=2, (VLOOKUP(3,Tablas!$A$1046:$G$1048,3,TRUE)), (IF(7-$F$19=3, (VLOOKUP(3,Tablas!$A$1046:$G$1048,3,TRUE)), (IF(7-$F$19=4, (VLOOKUP(3,Tablas!$A$1046:$G$1048,3,TRUE)), (VLOOKUP(3,Tablas!$A$1046:$G$1048,3,TRUE)))))))))))), (IF($F$17=3,(IF(3-$F$19=0,0, (IF(3-$F$19=1,(VLOOKUP(1,Tablas!$A$1046:$G$1048,3,TRUE)), (IF(3-$F$19=2, (VLOOKUP(2,Tablas!$A$1046:$G$1048,3,TRUE)), (VLOOKUP(3,Tablas!$A$1046:$G$1048,3,TRUE)))))))), (IF($F$17=2,(IF(2-$F$19=0, 0, (IF(2-$F$19=1,(VLOOKUP(1,Tablas!$A$1046:$G$1048,3,TRUE)), (IF(2-$F$19=2, (VLOOKUP(2,Tablas!$A$1046:$G$1048,3,TRUE)), 0)))))), (IF($F$17=1,(IF(1-$F$19=0, 0, (IF(1-$F$19=1,(VLOOKUP(1,Tablas!$A$1046:$G$1048,3,TRUE)),0)))),0))))))))))))))))))) -> 686.3733333 | H62: =IF($F$15=1, (IF($F$17=0, 0, (IF($F$19>$F$17, (VLOOKUP($F$17,Tablas!$A$1046:$G$1048,4,TRUE)), (IF($F$17>4,(IF($F$19=0, (VLOOKUP(3,Tablas!$A$1046:$G$1048,4,TRUE)), (IF($F$19=1, (VLOOKUP(3,Tablas!$A$1046:$G$1048,4,TRUE)), (IF($F$19=2, (VLOOKUP(3,Tablas!$A$1046:$G$1048,4,TRUE)), (VLOOKUP(3,Tablas!$A$1046:$G$1048,4,TRUE)))))))), (IF($F$17=4,(IF(4-$F$19=0,(VLOOKUP(2,Tablas!$A$1046:$G$1048,4,TRUE)), (IF(4-$F$19=1,(VLOOKUP(2,Tablas!$A$1046:$G$1048,4,TRUE)), (IF(4-$F$19=2, (VLOOKUP(2,Tablas!$A$1046:$G$1048,4,TRUE)), (VLOOKUP(3,Tablas!$A$1046:$G$1048,4,TRUE)))))))), (IF($F$17=3,(IF(3-$F$19=0,(VLOOKUP(1,Tablas!$A$1046:$G$1048,4,TRUE)), (IF(3-$F$19=1,(VLOOKUP(1,Tablas!$A$1046:$G$1048,4,TRUE)), (IF(3-$F$19=2, (VLOOKUP(2,Tablas!$A$1046:$G$1048,4,TRUE)), (VLOOKUP(3,Tablas!$A$1046:$G$1048,4,TRUE)))))))), (IF($F$17=2,(IF(2-$F$19=0, 0, (IF(2-$F$19=1,(VLOOKUP(1,Tablas!$A$1046:$G$1048,4,TRUE)), (IF(2-$F$19=2, (VLOOKUP(2,Tablas!$A$1046:$G$1048,4,TRUE)), 0)))))), (IF($F$17=1,(IF(1-$F$19=0, 0, (IF(1-$F$19=1,(VLOOKUP(1,Tablas!$A$1046:$G$1048,4,TRUE)),0)))),0)))))))))))))), (IF($F$17=0, 0, (IF($F$19>$F$17, (VLOOKUP($F$17,Tablas!$A$1046:$G$1048,4,TRUE)), (IF($F$17=4,(IF(4-$F$19=0, 0, (IF(4-$F$19=1, (VLOOKUP(1,Tablas!$A$1046:$G$1048,4,TRUE)), (IF(4-$F$19=2, (VLOOKUP(2,Tablas!$A$1046:$G$1048,4,TRUE)), (IF(4-$F$19=3, (VLOOKUP(3,Tablas!$A$1046:$G$1048,4,TRUE)), (IF(4-$F$19=4, (VLOOKUP(3,Tablas!$A$1046:$G$1048,4,TRUE)), 0)))))))))), (IF($F$17=5,(IF(5-$F$19=0, (VLOOKUP(1,Tablas!$A$1046:$G$1048,4,TRUE)), (IF(5-$F$19=1, (VLOOKUP(1,Tablas!$A$1046:$G$1048,4,TRUE)), (IF(5-$F$19=2, (VLOOKUP(2,Tablas!$A$1046:$G$1048,4,TRUE)), (IF(5-$F$19=3, (VLOOKUP(3,Tablas!$A$1046:$G$1048,4,TRUE)), (IF(5-$F$19=4, (VLOOKUP(3,Tablas!$A$1046:$G$1048,4,TRUE)), (VLOOKUP(3,Tablas!$A$1046:$G$1048,4,TRUE)))))))))))), (IF($F$17=6,(IF(6-$F$19=0, (VLOOKUP(2,Tablas!$A$1046:$G$1048,4,TRUE)), (IF(6-$F$19=1, (VLOOKUP(2,Tablas!$A$1046:$G$1048,4,TRUE)), (IF(6-$F$19=2, (VLOOKUP(2,Tablas!$A$1046:$G$1048,4,TRUE)), (IF(6-$F$19=3, (VLOOKUP(3,Tablas!$A$1046:$G$1048,4,TRUE)), (IF(6-$F$19=4, (VLOOKUP(3,Tablas!$A$1046:$G$1048,4,TRUE)), (VLOOKUP(3,Tablas!$A$1046:$G$1048,4,TRUE)))))))))))), (IF($F$17>6,(IF(7-$F$19=0, (VLOOKUP(3,Tablas!$A$1046:$G$1048,4,TRUE)), (IF(7-$F$19=1, (VLOOKUP(3,Tablas!$A$1046:$G$1048,4,TRUE)), (IF(7-$F$19=2, (VLOOKUP(3,Tablas!$A$1046:$G$1048,4,TRUE)), (IF(7-$F$19=3, (VLOOKUP(3,Tablas!$A$1046:$G$1048,4,TRUE)), (IF(7-$F$19=4, (VLOOKUP(3,Tablas!$A$1046:$G$1048,4,TRUE)), (VLOOKUP(3,Tablas!$A$1046:$G$1048,4,TRUE)))))))))))), (IF($F$17=3,(IF(3-$F$19=0,0, (IF(3-$F$19=1,(VLOOKUP(1,Tablas!$A$1046:$G$1048,4,TRUE)), (IF(3-$F$19=2, (VLOOKUP(2,Tablas!$A$1046:$G$1048,4,TRUE)), (VLOOKUP(3,Tablas!$A$1046:$G$1048,4,TRUE)))))))), (IF($F$17=2,(IF(2-$F$19=0, 0, (IF(2-$F$19=1,(VLOOKUP(1,Tablas!$A$1046:$G$1048,4,TRUE)), (IF(2-$F$19=2, (VLOOKUP(2,Tablas!$A$1046:$G$1048,4,TRUE)), 0)))))), (IF($F$17=1,(IF(1-$F$19=0, 0, (IF(1-$F$19=1,(VLOOKUP(1,Tablas!$A$1046:$G$1048,4,TRUE)),0)))),0))))))))))))))))))) -> 442.7733333
E63: Total de Prima neta | G63: =SUM(G60:G62) -> 16736.72 | H63: =SUM(H60:H62) -> 10797.92
E64: Tarifa administrativa anual | G64: 75 | H64: 75
E65: IVA (12%) | G65: =(G63+G64)*0% -> 0 | H65: =(H63+H64)*0% -> 0
E66: TOTAL de primera cuota | G66: =SUM(G63:G65) -> 16811.72 | H66: =SUM(H63:H65) -> 10872.92
E67: Costo de tarifa mensual 2 a 12 | G67: =G63 -> 16736.72 | H67: =H63 -> 10797.92
E68: TOTAL ANUAL | G68: =G66+(G67*11) -> 200915.64 | H68: =H66+(H67*11) -> 129650.04
E69: Ahorros en tarifas de prima para niños | G69: =IF($F$15=1,IF($F$17=0,0,IF($F$19=0,0,IF($F$19=1,(VLOOKUP(1,Tablas!$A$1046:$G$1048,3,TRUE)),(VLOOKUP(2,Tablas!$A$1046:$G$1048,3,TRUE))))), IF($F$17=0,0,IF($F$19=0,0,IF($F$19=1,(VLOOKUP(1,Tablas!$A$1046:$G$1048,3,TRUE)),IF($F$19=2,(VLOOKUP(2,Tablas!$A$1046:$G$1048,3,TRUE)), (VLOOKUP(3,Tablas!$A$1046:$G$1048,3,TRUE))))))) -> 1166.293333 | H69: =IF($F$15=1,IF($F$17=0,0,IF($F$19=0,0,IF($F$19=1,(VLOOKUP(1,Tablas!$A$1046:$G$1048,4,TRUE)),(VLOOKUP(2,Tablas!$A$1046:$G$1048,4,TRUE))))), IF($F$17=0,0,IF($F$19=0,0,IF($F$19=1,(VLOOKUP(1,Tablas!$A$1046:$G$1048,4,TRUE)),IF($F$19=2,(VLOOKUP(2,Tablas!$A$1046:$G$1048,4,TRUE)), (VLOOKUP(3,Tablas!$A$1046:$G$1048,4,TRUE))))))) -> 752.5466667
E71: Tarifas en US $ - Efectivas a partir del 1ro de enero de 2022
E72: Este presupuesto solamente tiene carácter informativo y en ningún momento expresa compromiso legal para suministrarle cobertura de seguro. La emisión de una póliza de seguro Bupa está sujeta a todas las evaluaciones de riesgo por parte de Bupa y a la recepción de todos los pagos de prima requeridos.

Sheet Global Elite
A14: GLOBAL ELITE HEALTH PLAN | D14: Nombre del Asegurado Titular | F14: =+'INGRESO DE DATOS'!$D$15 -> NOMBRE COMPLETO
D16: Número de adultos en la póliza | F16: =+'INGRESO DE DATOS'!$D$17 -> 2 | I16: Edad del Asegurado Titular | J16: =+'INGRESO DE DATOS'!$D$19 -> 65
D18: Número de niños en la póliza | F18: =+'INGRESO DE DATOS'!$J$17 -> 3 | I18: Edad del/la conyuge | J18: =+'INGRESO DE DATOS'!$J$19 -> 71
D20: Número de niños menores de 10 años | F20: =+'INGRESO DE DATOS'!$D$27 -> 2 | I20: Fecha de la cotización: | J20: =NOW() -> 2021-11-08T13:01:54.110
H21: FALSE
E22: DEDUCTIBLES | G22: PLAN 1 | H22: PLAN 2 | I22: PLAN 3 | J22: PLAN 4 | K22: PLAN 5
E23: En el país de residencia | G23: 250 | H23: 2000 | I23: 3500 | J23: 5000 | K23: 10000
E24: Fuera del país de residencia | G24: 5000 | H24: 2000 | I24: 3500 | J24: 5000 | K24: 10000
E26: Tarifas anuales
E27: Prima para Asegurado Titular | G27: =VLOOKUP($J$16,Tablas!$A$6:$G$72,3,TRUE) -> 27811 | H27: =VLOOKUP($J$16,Tablas!$A$6:$G$72,4,TRUE) -> 24376 | I27: =VLOOKUP($J$16,Tablas!$A$6:$G$72,5,TRUE) -> 19858 | J27: =VLOOKUP($J$16,Tablas!$A$6:$G$72,6,TRUE) -> 17219 | K27: =VLOOKUP($J$16,Tablas!$A$6:$G$72,7,TRUE) -> 13355
E28: Prima para conyuge | G28: =IF($F$16=1,0,(VLOOKUP($J$18,Tablas!$A$6:$G$72,3,TRUE))) -> 46292 | H28: =IF($F$16=1,0,(VLOOKUP($J$18,Tablas!$A$6:$G$72,4,TRUE))) -> 40575 | I28: =IF($F$16=1,0,(VLOOKUP($J$18,Tablas!$A$6:$G$72,5,TRUE))) -> 33169 | J28: =IF($F$16=1,0,(VLOOKUP($J$18,Tablas!$A$6:$G$72,6,TRUE))) -> 28762 | K28: =IF($F$16=1,0,(VLOOKUP($J$18,Tablas!$A$6:$G$72,7,TRUE))) -> 22305
E29: Prima para hijo (s) | G29: =IF($F$16=1, (IF($F$18=0, 0, (IF($F$20>$F$18, (VLOOKUP($F$18,Tablas!$A$73:$G$75,3,TRUE)), (IF($F$18>4,(IF($F$20=0, (VLOOKUP(3,Tablas!$A$73:$G$75,3,TRUE)), (IF($F$20=1, (VLOOKUP(3,Tablas!$A$73:$G$75,3,TRUE)), (IF($F$20=2, (VLOOKUP(3,Tablas!$A$73:$G$75,3,TRUE)), (VLOOKUP(3,Tablas!$A$73:$G$75,3,TRUE)))))))), (IF($F$18=4,(IF(4-$F$20=0,(VLOOKUP(2,Tablas!$A$73:$G$75,3,TRUE)), (IF(4-$F$20=1,(VLOOKUP(2,Tablas!$A$73:$G$75,3,TRUE)), (IF(4-$F$20=2, (VLOOKUP(2,Tablas!$A$73:$G$75,3,TRUE)), (VLOOKUP(3,Tablas!$A$73:$G$75,3,TRUE)))))))), (IF($F$18=3,(IF(3-$F$20=0,(VLOOKUP(1,Tablas!$A$73:$G$75,3,TRUE)), (IF(3-$F$20=1,(VLOOKUP(1,Tablas!$A$73:$G$75,3,TRUE)), (IF(3-$F$20=2, (VLOOKUP(2,Tablas!$A$73:$G$75,3,TRUE)), (VLOOKUP(3,Tablas!$A$73:$G$75,3,TRUE)))))))), (IF($F$18=2,(IF(2-$F$20=0, 0, (IF(2-$F$20=1,(VLOOKUP(1,Tablas!$A$73:$G$75,3,TRUE)), (IF(2-$F$20=2, (VLOOKUP(2,Tablas!$A$73:$G$75,3,TRUE)), 0)))))), (IF($F$18=1,(IF(1-$F$20=0, 0, (IF(1-$F$20=1,(VLOOKUP(1,Tablas!$A$73:$G$75,3,TRUE)),0)))),0)))))))))))))), (IF($F$18=0, 0, (IF($F$20>$F$18, (VLOOKUP($F$18,Tablas!$A$73:$G$75,3,TRUE)), (IF($F$18=4,(IF(4-$F$20=0, 0, (IF(4-$F$20=1, (VLOOKUP(1,Tablas!$A$73:$G$75,3,TRUE)), (IF(4-$F$20=2, (VLOOKUP(2,Tablas!$A$73:$G$75,3,TRUE)), (IF(4-$F$20=3, (VLOOKUP(3,Tablas!$A$73:$G$75,3,TRUE)), (IF(4-$F$20=4, (VLOOKUP(3,Tablas!$A$73:$G$75,3,TRUE)), 0)))))))))), (IF($F$18=5,(IF(5-$F$20=0, (VLOOKUP(1,Tablas!$A$73:$G$75,3,TRUE)), (IF(5-$F$20=1, (VLOOKUP(1,Tablas!$A$73:$G$75,3,TRUE)), (IF(5-$F$20=2, (VLOOKUP(2,Tablas!$A$73:$G$75,3,TRUE)), (IF(5-$F$20=3, (VLOOKUP(3,Tablas!$A$73:$G$75,3,TRUE)), (IF(5-$F$20=4, (VLOOKUP(3,Tablas!$A$73:$G$75,3,TRUE)), (VLOOKUP(3,Tablas!$A$73:$G$75,3,TRUE)))))))))))), (IF($F$18=6,(IF(6-$F$20=0, (VLOOKUP(2,Tablas!$A$73:$G$75,3,TRUE)), (IF(6-$F$20=1, (VLOOKUP(2,Tablas!$A$73:$G$75,3,TRUE)), (IF(6-$F$20=2, (VLOOKUP(2,Tablas!$A$73:$G$75,3,TRUE)), (IF(6-$F$20=3, (VLOOKUP(3,Tablas!$A$73:$G$75,3,TRUE)), (IF(6-$F$20=4, (VLOOKUP(3,Tablas!$A$73:$G$75,3,TRUE)), (VLOOKUP(3,Tablas!$A$73:$G$75,3,TRUE)))))))))))), (IF($F$18>6,(IF(7-$F$20=0, (VLOOKUP(3,Tablas!$A$73:$G$75,3,TRUE)), (IF(7-$F$20=1, (VLOOKUP(3,Tablas!$A$73:$G$75,3,TRUE)), (IF(7-$F$20=2, (VLOOKUP(3,Tablas!$A$73:$G$75,3,TRUE)), (IF(7-$F$20=3, (VLOOKUP(3,Tablas!$A$73:$G$75,3,TRUE)), (IF(7-$F$20=4, (VLOOKUP(3,Tablas!$A$73:$G$75,3,TRUE)), (VLOOKUP(3,Tablas!$A$73:$G$75,3,TRUE)))))))))))), (IF($F$18=3,(IF(3-$F$20=0,0, (IF(3-$F$20=1,(VLOOKUP(1,Tablas!$A$73:$G$75,3,TRUE)), (IF(3-$F$20=2, (VLOOKUP(2,Tablas!$A$73:$G$75,3,TRUE)), (VLOOKUP(3,Tablas!$A$73:$G$75,3,TRUE)))))))), (IF($F$18=2,(IF(2-$F$20=0, 0, (IF(2-$F$20=1,(VLOOKUP(1,Tablas!$A$73:$G$75,3,TRUE)), (IF(2-$F$20=2, (VLOOKUP(2,Tablas!$A$73:$G$75,3,TRUE)), 0)))))), (IF($F$18=1,(IF(1-$F$20=0, 0, (IF(1-$F$20=1,(VLOOKUP(1,Tablas!$A$73:$G$75,3,TRUE)),0)))),0))))))))))))))))))) -> 3163 | H29: =IF($F$16=1, (IF($F$18=0, 0, (IF($F$20>$F$18, (VLOOKUP($F$18,Tablas!$A$73:$G$75,4,TRUE)), (IF($F$18>4,(IF($F$20=0, (VLOOKUP(3,Tablas!$A$73:$G$75,4,TRUE)), (IF($F$20=1, (VLOOKUP(3,Tablas!$A$73:$G$75,4,TRUE)), (IF($F$20=2, (VLOOKUP(3,Tablas!$A$73:$G$75,4,TRUE)), (VLOOKUP(3,Tablas!$A$73:$G$75,4,TRUE)))))))), (IF($F$18=4,(IF(4-$F$20=0,(VLOOKUP(2,Tablas!$A$73:$G$75,4,TRUE)), (IF(4-$F$20=1,(VLOOKUP(2,Tablas!$A$73:$G$75,4,TRUE)), (IF(4-$F$20=2, (VLOOKUP(2,Tablas!$A$73:$G$75,4,TRUE)), (VLOOKUP(3,Tablas!$A$73:$G$75,4,TRUE)))))))), (IF($F$18=3,(IF(3-$F$20=0,(VLOOKUP(1,Tablas!$A$73:$G$75,4,TRUE)), (IF(3-$F$20=1,(VLOOKUP(1,Tablas!$A$73:$G$75,4,TRUE)), (IF(3-$F$20=2, (VLOOKUP(2,Tablas!$A$73:$G$75,4,TRUE)), (VLOOKUP(3,Tablas!$A$73:$G$75,4,TRUE)))))))), (IF($F$18=2,(IF(2-$F$20=0, 0, (IF(2-$F$20=1,(VLOOKUP(1,Tablas!$A$73:$G$75,4,TRUE)), (IF(2-$F$20=2, (VLOOKUP(2,Tablas!$A$73:$G$75,4,TRUE)), 0)))))), (IF($F$18=1,(IF(1-$F$20=0, 0, (IF(1-$F$20=1,(VLOOKUP(1,Tablas!$A$73:$G$75,4,TRUE)),0)))),0)))))))))))))), (IF($F$18=0, 0, (IF($F$20>$F$18, (VLOOKUP($F$18,Tablas!$A$73:$G$75,4,TRUE)), (IF($F$18=4,(IF(4-$F$20=0, 0, (IF(4-$F$20=1, (VLOOKUP(1,Tablas!$A$73:$G$75,4,TRUE)), (IF(4-$F$20=2, (VLOOKUP(2,Tablas!$A$73:$G$75,4,TRUE)), (IF(4-$F$20=3, (VLOOKUP(3,Tablas!$A$73:$G$75,4,TRUE)), (IF(4-$F$20=4, (VLOOKUP(3,Tablas!$A$73:$G$75,4,TRUE)), 0)))))))))), (IF($F$18=5,(IF(5-$F$20=0, (VLOOKUP(1,Tablas!$A$73:$G$75,4,TRUE)), (IF(5-$F$20=1, (VLOOKUP(1,Tablas!$A$73:$G$75,4,TRUE)), (IF(5-$F$20=2, (VLOOKUP(2,Tablas!$A$73:$G$75,4,TRUE)), (IF(5-$F$20=3, (VLOOKUP(3,Tablas!$A$73:$G$75,4,TRUE)), (IF(5-$F$20=4, (VLOOKUP(3,Tablas!$A$73:$G$75,4,TRUE)), (VLOOKUP(3,Tablas!$A$73:$G$75,4,TRUE)))))))))))), (IF($F$18=6,(IF(6-$F$20=0, (VLOOKUP(2,Tablas!$A$73:$G$75,4,TRUE)), (IF(6-$F$20=1, (VLOOKUP(2,Tablas!$A$73:$G$75,4,TRUE)), (IF(6-$F$20=2, (VLOOKUP(2,Tablas!$A$73:$G$75,4,TRUE)), (IF(6-$F$20=3, (VLOOKUP(3,Tablas!$A$73:$G$75,4,TRUE)), (IF(6-$F$20=4, (VLOOKUP(3,Tablas!$A$73:$G$75,4,TRUE)), (VLOOKUP(3,Tablas!$A$73:$G$75,4,TRUE)))))))))))), (IF($F$18>6,(IF(7-$F$20=0, (VLOOKUP(3,Tablas!$A$73:$G$75,4,TRUE)), (IF(7-$F$20=1, (VLOOKUP(3,Tablas!$A$73:$G$75,4,TRUE)), (IF(7-$F$20=2, (VLOOKUP(3,Tablas!$A$73:$G$75,4,TRUE)), (IF(7-$F$20=3, (VLOOKUP(3,Tablas!$A$73:$G$75,4,TRUE)), (IF(7-$F$20=4, (VLOOKUP(3,Tablas!$A$73:$G$75,4,TRUE)), (VLOOKUP(3,Tablas!$A$73:$G$75,4,TRUE)))))))))))), (IF($F$18=3,(IF(3-$F$20=0,0, (IF(3-$F$20=1,(VLOOKUP(1,Tablas!$A$73:$G$75,4,TRUE)), (IF(3-$F$20=2, (VLOOKUP(2,Tablas!$A$73:$G$75,4,TRUE)), (VLOOKUP(3,Tablas!$A$73:$G$75,4,TRUE)))))))), (IF($F$18=2,(IF(2-$F$20=0, 0, (IF(2-$F$20=1,(VLOOKUP(1,Tablas!$A$73:$G$75,4,TRUE)), (IF(2-$F$20=2, (VLOOKUP(2,Tablas!$A$73:$G$75,4,TRUE)), 0)))))), (IF($F$18=1,(IF(1-$F$20=0, 0, (IF(1-$F$20=1,(VLOOKUP(1,Tablas!$A$73:$G$75,4,TRUE)),0)))),0))))))))))))))))))) -> 2773 | I29: =IF($F$16=1, (IF($F$18=0, 0, (IF($F$20>$F$18, (VLOOKUP($F$18,Tablas!$A$73:$G$75,5,TRUE)), (IF($F$18>4,(IF($F$20=0, (VLOOKUP(3,Tablas!$A$73:$G$75,5,TRUE)), (IF($F$20=1, (VLOOKUP(3,Tablas!$A$73:$G$75,5,TRUE)), (IF($F$20=2, (VLOOKUP(3,Tablas!$A$73:$G$75,5,TRUE)), (VLOOKUP(3,Tablas!$A$73:$G$75,5,TRUE)))))))), (IF($F$18=4,(IF(4-$F$20=0,(VLOOKUP(2,Tablas!$A$73:$G$75,5,TRUE)), (IF(4-$F$20=1,(VLOOKUP(2,Tablas!$A$73:$G$75,5,TRUE)), (IF(4-$F$20=2, (VLOOKUP(2,Tablas!$A$73:$G$75,5,TRUE)), (VLOOKUP(3,Tablas!$A$73:$G$75,5,TRUE)))))))), (IF($F$18=3,(IF(3-$F$20=0,(VLOOKUP(1,Tablas!$A$73:$G$75,5,TRUE)), (IF(3-$F$20=1,(VLOOKUP(1,Tablas!$A$73:$G$75,5,TRUE)), (IF(3-$F$20=2, (VLOOKUP(2,Tablas!$A$73:$G$75,5,TRUE)), (VLOOKUP(3,Tablas!$A$73:$G$75,5,TRUE)))))))), (IF($F$18=2,(IF(2-$F$20=0, 0, (IF(2-$F$20=1,(VLOOKUP(1,Tablas!$A$73:$G$75,5,TRUE)), (IF(2-$F$20=2, (VLOOKUP(2,Tablas!$A$73:$G$75,5,TRUE)), 0)))))), (IF($F$18=1,(IF(1-$F$20=0, 0, (IF(1-$F$20=1,(VLOOKUP(1,Tablas!$A$73:$G$75,5,TRUE)),0)))),0)))))))))))))), (IF($F$18=0, 0, (IF($F$20>$F$18, (VLOOKUP($F$18,Tablas!$A$73:$G$75,5,TRUE)), (IF($F$18=4,(IF(4-$F$20=0, 0, (IF(4-$F$20=1, (VLOOKUP(1,Tablas!$A$73:$G$75,5,TRUE)), (IF(4-$F$20=2, (VLOOKUP(2,Tablas!$A$73:$G$75,5,TRUE)), (IF(4-$F$20=3, (VLOOKUP(3,Tablas!$A$73:$G$75,5,TRUE)), (IF(4-$F$20=4, (VLOOKUP(3,Tablas!$A$73:$G$75,5,TRUE)), 0)))))))))), (IF($F$18=5,(IF(5-$F$20=0, (VLOOKUP(1,Tablas!$A$73:$G$75,5,TRUE)), (IF(5-$F$20=1, (VLOOKUP(1,Tablas!$A$73:$G$75,5,TRUE)), (IF(5-$F$20=2, (VLOOKUP(2,Tablas!$A$73:$G$75,5,TRUE)), (IF(5-$F$20=3, (VLOOKUP(3,Tablas!$A$73:$G$75,5,TRUE)), (IF(5-$F$20=4, (VLOOKUP(3,Tablas!$A$73:$G$75,5,TRUE)), (VLOOKUP(3,Tablas!$A$73:$G$75,5,TRUE)))))))))))), (IF($F$18=6,(IF(6-$F$20=0, (VLOOKUP(2,Tablas!$A$73:$G$75,5,TRUE)), (IF(6-$F$20=1, (VLOOKUP(2,Tablas!$A$73:$G$75,5,TRUE)), (IF(6-$F$20=2, (VLOOKUP(2,Tablas!$A$73:$G$75,5,TRUE)), (IF(6-$F$20=3, (VLOOKUP(3,Tablas!$A$73:$G$75,5,TRUE)), (IF(6-$F$20=4, (VLOOKUP(3,Tablas!$A$73:$G$75,5,TRUE)), (VLOOKUP(3,Tablas!$A$73:$G$75,5,TRUE)))))))))))), (IF($F$18>6,(IF(7-$F$20=0, (VLOOKUP(3,Tablas!$A$73:$G$75,5,TRUE)), (IF(7-$F$20=1, (VLOOKUP(3,Tablas!$A$73:$G$75,5,TRUE)), (IF(7-$F$20=2, (VLOOKUP(3,Tablas!$A$73:$G$75,5,TRUE)), (IF(7-$F$20=3, (VLOOKUP(3,Tablas!$A$73:$G$75,5,TRUE)), (IF(7-$F$20=4, (VLOOKUP(3,Tablas!$A$73:$G$75,5,TRUE)), (VLOOKUP(3,Tablas!$A$73:$G$75,5,TRUE)))))))))))), (IF($F$18=3,(IF(3-$F$20=0,0, (IF(3-$F$20=1,(VLOOKUP(1,Tablas!$A$73:$G$75,5,TRUE)), (IF(3-$F$20=2, (VLOOKUP(2,Tablas!$A$73:$G$75,5,TRUE)), (VLOOKUP(3,Tablas!$A$73:$G$75,5,TRUE)))))))), (IF($F$18=2,(IF(2-$F$20=0, 0, (IF(2-$F$20=1,(VLOOKUP(1,Tablas!$A$73:$G$75,5,TRUE)), (IF(2-$F$20=2, (VLOOKUP(2,Tablas!$A$73:$G$75,5,TRUE)), 0)))))), (IF($F$18=1,(IF(1-$F$20=0, 0, (IF(1-$F$20=1,(VLOOKUP(1,Tablas!$A$73:$G$75,5,TRUE)),0)))),0))))))))))))))))))) -> 2349 | J29: =IF($F$16=1, (IF($F$18=0, 0, (IF($F$20>$F$18, (VLOOKUP($F$18,Tablas!$A$73:$G$75,6,TRUE)), (IF($F$18>4,(IF($F$20=0, (VLOOKUP(3,Tablas!$A$73:$G$75,6,TRUE)), (IF($F$20=1, (VLOOKUP(3,Tablas!$A$73:$G$75,6,TRUE)), (IF($F$20=2, (VLOOKUP(3,Tablas!$A$73:$G$75,6,TRUE)), (VLOOKUP(3,Tablas!$A$73:$G$75,6,TRUE)))))))), (IF($F$18=4,(IF(4-$F$20=0,(VLOOKUP(2,Tablas!$A$73:$G$75,6,TRUE)), (IF(4-$F$20=1,(VLOOKUP(2,Tablas!$A$73:$G$75,6,TRUE)), (IF(4-$F$20=2, (VLOOKUP(2,Tablas!$A$73:$G$75,6,TRUE)), (VLOOKUP(3,Tablas!$A$73:$G$75,6,TRUE)))))))), (IF($F$18=3,(IF(3-$F$20=0,(VLOOKUP(1,Tablas!$A$73:$G$75,6,TRUE)), (IF(3-$F$20=1,(VLOOKUP(1,Tablas!$A$73:$G$75,6,TRUE)), (IF(3-$F$20=2, (VLOOKUP(2,Tablas!$A$73:$G$75,6,TRUE)), (VLOOKUP(3,Tablas!$A$73:$G$75,6,TRUE)))))))), (IF($F$18=2,(IF(2-$F$20=0, 0, (IF(2-$F$20=1,(VLOOKUP(1,Tablas!$A$73:$G$75,6,TRUE)), (IF(2-$F$20=2, (VLOOKUP(2,Tablas!$A$73:$G$75,6,TRUE)), 0)))))), (IF($F$18=1,(IF(1-$F$20=0, 0, (IF(1-$F$20=1,(VLOOKUP(1,Tablas!$A$73:$G$75,6,TRUE)),0)))),0)))))))))))))), (IF($F$18=0, 0, (IF($F$20>$F$18, (VLOOKUP($F$18,Tablas!$A$73:$G$75,6,TRUE)), (IF($F$18=4,(IF(4-$F$20=0, 0, (IF(4-$F$20=1, (VLOOKUP(1,Tablas!$A$73:$G$75,6,TRUE)), (IF(4-$F$20=2, (VLOOKUP(2,Tablas!$A$73:$G$75,6,TRUE)), (IF(4-$F$20=3, (VLOOKUP(3,Tablas!$A$73:$G$75,6,TRUE)), (IF(4-$F$20=4, (VLOOKUP(3,Tablas!$A$73:$G$75,6,TRUE)), 0)))))))))), (IF($F$18=5,(IF(5-$F$20=0, (VLOOKUP(1,Tablas!$A$73:$G$75,6,TRUE)), (IF(5-$F$20=1, (VLOOKUP(1,Tablas!$A$73:$G$75,6,TRUE)), (IF(5-$F$20=2, (VLOOKUP(2,Tablas!$A$73:$G$75,6,TRUE)), (IF(5-$F$20=3, (VLOOKUP(3,Tablas!$A$73:$G$75,6,TRUE)), (IF(5-$F$20=4, (VLOOKUP(3,Tablas!$A$73:$G$75,6,TRUE)), (VLOOKUP(3,Tablas!$A$73:$G$75,6,TRUE)))))))))))), (IF($F$18=6,(IF(6-$F$20=0, (VLOOKUP(2,Tablas!$A$73:$G$75,6,TRUE)), (IF(6-$F$20=1, (VLOOKUP(2,Tablas!$A$73:$G$75,6,TRUE)), (IF(6-$F$20=2, (VLOOKUP(2,Tablas!$A$73:$G$75,6,TRUE)), (IF(6-$F$20=3, (VLOOKUP(3,Tablas!$A$73:$G$75,6,TRUE)), (IF(6-$F$20=4, (VLOOKUP(3,Tablas!$A$73:$G$75,6,TRUE)), (VLOOKUP(3,Tablas!$A$73:$G$75,6,TRUE)))))))))))), (IF($F$18>6,(IF(7-$F$20=0, (VLOOKUP(3,Tablas!$A$73:$G$75,6,TRUE)), (IF(7-$F$20=1, (VLOOKUP(3,Tablas!$A$73:$G$75,6,TRUE)), (IF(7-$F$20=2, (VLOOKUP(3,Tablas!$A$73:$G$75,6,TRUE)), (IF(7-$F$20=3, (VLOOKUP(3,Tablas!$A$73:$G$75,6,TRUE)), (IF(7-$F$20=4, (VLOOKUP(3,Tablas!$A$73:$G$75,6,TRUE)), (VLOOKUP(3,Tablas!$A$73:$G$75,6,TRUE)))))))))))), (IF($F$18=3,(IF(3-$F$20=0,0, (IF(3-$F$20=1,(VLOOKUP(1,Tablas!$A$73:$G$75,6,TRUE)), (IF(3-$F$20=2, (VLOOKUP(2,Tablas!$A$73:$G$75,6,TRUE)), (VLOOKUP(3,Tablas!$A$73:$G$75,6,TRUE)))))))), (IF($F$18=2,(IF(2-$F$20=0, 0, (IF(2-$F$20=1,(VLOOKUP(1,Tablas!$A$73:$G$75,6,TRUE)), (IF(2-$F$20=2, (VLOOKUP(2,Tablas!$A$73:$G$75,6,TRUE)), 0)))))), (IF($F$18=1,(IF(1-$F$20=0, 0, (IF(1-$F$20=1,(VLOOKUP(1,Tablas!$A$73:$G$75,6,TRUE)),0)))),0))))))))))))))))))) -> 2038 | K29: =IF($F$16=1, (IF($F$18=0, 0, (IF($F$20>$F$18, (VLOOKUP($F$18,Tablas!$A$73:$G$75,7,TRUE)), (IF($F$18>4,(IF($F$20=0, (VLOOKUP(3,Tablas!$A$73:$G$75,7,TRUE)), (IF($F$20=1, (VLOOKUP(3,Tablas!$A$73:$G$75,7,TRUE)), (IF($F$20=2, (VLOOKUP(3,Tablas!$A$73:$G$75,7,TRUE)), (VLOOKUP(3,Tablas!$A$73:$G$75,7,TRUE)))))))), (IF($F$18=4,(IF(4-$F$20=0,(VLOOKUP(2,Tablas!$A$73:$G$75,7,TRUE)), (IF(4-$F$20=1,(VLOOKUP(2,Tablas!$A$73:$G$75,7,TRUE)), (IF(4-$F$20=2, (VLOOKUP(2,Tablas!$A$73:$G$75,7,TRUE)), (VLOOKUP(3,Tablas!$A$73:$G$75,7,TRUE)))))))), (IF($F$18=3,(IF(3-$F$20=0,(VLOOKUP(1,Tablas!$A$73:$G$75,7,TRUE)), (IF(3-$F$20=1,(VLOOKUP(1,Tablas!$A$73:$G$75,7,TRUE)), (IF(3-$F$20=2, (VLOOKUP(2,Tablas!$A$73:$G$75,7,TRUE)), (VLOOKUP(3,Tablas!$A$73:$G$75,7,TRUE)))))))), (IF($F$18=2,(IF(2-$F$20=0, 0, (IF(2-$F$20=1,(VLOOKUP(1,Tablas!$A$73:$G$75,7,TRUE)), (IF(2-$F$20=2, (VLOOKUP(2,Tablas!$A$73:$G$75,7,TRUE)), 0)))))), (IF($F$18=1,(IF(1-$F$20=0, 0, (IF(1-$F$20=1,(VLOOKUP(1,Tablas!$A$73:$G$75,7,TRUE)),0)))),0)))))))))))))), (IF($F$18=0, 0, (IF($F$20>$F$18, (VLOOKUP($F$18,Tablas!$A$73:$G$75,7,TRUE)), (IF($F$18=4,(IF(4-$F$20=0, 0, (IF(4-$F$20=1, (VLOOKUP(1,Tablas!$A$73:$G$75,7,TRUE)), (IF(4-$F$20=2, (VLOOKUP(2,Tablas!$A$73:$G$75,7,TRUE)), (IF(4-$F$20=3, (VLOOKUP(3,Tablas!$A$73:$G$75,7,TRUE)), (IF(4-$F$20=4, (VLOOKUP(3,Tablas!$A$73:$G$75,7,TRUE)), 0)))))))))), (IF($F$18=5,(IF(5-$F$20=0, (VLOOKUP(1,Tablas!$A$73:$G$75,7,TRUE)), (IF(5-$F$20=1, (VLOOKUP(1,Tablas!$A$73:$G$75,7,TRUE)), (IF(5-$F$20=2, (VLOOKUP(2,Tablas!$A$73:$G$75,7,TRUE)), (IF(5-$F$20=3, (VLOOKUP(3,Tablas!$A$73:$G$75,7,TRUE)), (IF(5-$F$20=4, (VLOOKUP(3,Tablas!$A$73:$G$75,7,TRUE)), (VLOOKUP(3,Tablas!$A$73:$G$75,7,TRUE)))))))))))), (IF($F$18=6,(IF(6-$F$20=0, (VLOOKUP(2,Tablas!$A$73:$G$75,7,TRUE)), (IF(6-$F$20=1, (VLOOKUP(2,Tablas!$A$73:$G$75,7,TRUE)), (IF(6-$F$20=2, (VLOOKUP(2,Tablas!$A$73:$G$75,7,TRUE)), (IF(6-$F$20=3, (VLOOKUP(3,Tablas!$A$73:$G$75,7,TRUE)), (IF(6-$F$20=4, (VLOOKUP(3,Tablas!$A$73:$G$75,7,TRUE)), (VLOOKUP(3,Tablas!$A$73:$G$75,7,TRUE)))))))))))), (IF($F$18>6,(IF(7-$F$20=0, (VLOOKUP(3,Tablas!$A$73:$G$75,7,TRUE)), (IF(7-$F$20=1, (VLOOKUP(3,Tablas!$A$73:$G$75,7,TRUE)), (IF(7-$F$20=2, (VLOOKUP(3,Tablas!$A$73:$G$75,7,TRUE)), (IF(7-$F$20=3, (VLOOKUP(3,Tablas!$A$73:$G$75,7,TRUE)), (IF(7-$F$20=4, (VLOOKUP(3,Tablas!$A$73:$G$75,7,TRUE)), (VLOOKUP(3,Tablas!$A$73:$G$75,7,TRUE)))))))))))), (IF($F$18=3,(IF(3-$F$20=0,0, (IF(3-$F$20=1,(VLOOKUP(1,Tablas!$A$73:$G$75,7,TRUE)), (IF(3-$F$20=2, (VLOOKUP(2,Tablas!$A$73:$G$75,7,TRUE)), (VLOOKUP(3,Tablas!$A$73:$G$75,7,TRUE)))))))), (IF($F$18=2,(IF(2-$F$20=0, 0, (IF(2-$F$20=1,(VLOOKUP(1,Tablas!$A$73:$G$75,7,TRUE)), (IF(2-$F$20=2, (VLOOKUP(2,Tablas!$A$73:$G$75,7,TRUE)), 0)))))), (IF($F$18=1,(IF(1-$F$20=0, 0, (IF(1-$F$20=1,(VLOOKUP(1,Tablas!$A$73:$G$75,7,TRUE)),0)))),0))))))))))))))))))) -> 1581
E30: Total de Prima neta | G30: =SUM(G27:G29) -> 77266 | H30: =SUM(H27:H29) -> 67724 | I30: 55376 | J30: =SUM(J27:J29) -> 48019 | K30: 37241
E31: Descuento por variante con coaseguro fuera del país de residencia | G31: =IF('INGRESO DE DATOS'!$H$22,G30*-25%,0) -> 0 | H31: =IF('INGRESO DE DATOS'!$H$22,H30*-25%,0) -> 0 | I31: =IF('INGRESO DE DATOS'!$H$22,I30*-25%,0) -> 0 | J31: =IF('INGRESO DE DATOS'!$H$22,J30*-25%,0) -> 0 | K31: =IF('INGRESO DE DATOS'!$H$22,K30*-25%,0) -> 0
E32: Tarifa administrativa anual | G32: 75 | H32: 75 | I32: 75 | J32: 75 | K32: 75
E33: IVA (12%) | G33: =(G30+G32)*0% -> 0 | H33: =(H30+H32)*0% -> 0 | I33: 0 | J33: 0 | K33: 0
E34: TOTAL ANUAL | G34: =SUM(G30:G33) -> 77341 | H34: =SUM(H30:H33) -> 67799 | I34: =SUM(I30:I33) -> 55451 | J34: =SUM(J30:J33) -> 48094 | K34: =SUM(K30:K33) -> 37316
E35: Ahorros en tarifas de prima para niños | G35: =IF($F$16=1,IF($F$18=0,0,IF($F$20=0,0,IF($F$20=1,(VLOOKUP(1,Tablas!$A$73:$G$75,3,TRUE)),(VLOOKUP(2,Tablas!$A$73:$G$75,3,TRUE))))), IF($F$18=0,0,IF($F$20=0,0,IF($F$20=1,(VLOOKUP(1,Tablas!$A$73:$G$75,3,TRUE)),IF($F$20=2,(VLOOKUP(2,Tablas!$A$73:$G$75,3,TRUE)), (VLOOKUP(3,Tablas!$A$73:$G$75,3,TRUE))))))) -> 5379 | H35: =IF($F$16=1,IF($F$18=0,0,IF($F$20=0,0,IF($F$20=1,(VLOOKUP(1,Tablas!$A$73:$G$75,4,TRUE)),(VLOOKUP(2,Tablas!$A$73:$G$75,4,TRUE))))), IF($F$18=0,0,IF($F$20=0,0,IF($F$20=1,(VLOOKUP(1,Tablas!$A$73:$G$75,4,TRUE)),IF($F$20=2,(VLOOKUP(2,Tablas!$A$73:$G$75,4,TRUE)), (VLOOKUP(3,Tablas!$A$73:$G$75,4,TRUE))))))) -> 4715 | I35: =IF($F$16=1,IF($F$18=0,0,IF($F$20=0,0,IF($F$20=1,(VLOOKUP(1,Tablas!$A$73:$G$75,5,TRUE)),(VLOOKUP(2,Tablas!$A$73:$G$75,5,TRUE))))), IF($F$18=0,0,IF($F$20=0,0,IF($F$20=1,(VLOOKUP(1,Tablas!$A$73:$G$75,5,TRUE)),IF($F$20=2,(VLOOKUP(2,Tablas!$A$73:$G$75,5,TRUE)), (VLOOKUP(3,Tablas!$A$73:$G$75,5,TRUE))))))) -> 3993 | J35: =IF($F$16=1,IF($F$18=0,0,IF($F$20=0,0,IF($F$20=1,(VLOOKUP(1,Tablas!$A$73:$G$75,6,TRUE)),(VLOOKUP(2,Tablas!$A$73:$G$75,6,TRUE))))), IF($F$18=0,0,IF($F$20=0,0,IF($F$20=1,(VLOOKUP(1,Tablas!$A$73:$G$75,6,TRUE)),IF($F$20=2,(VLOOKUP(2,Tablas!$A$73:$G$75,6,TRUE)), (VLOOKUP(3,Tablas!$A$73:$G$75,6,TRUE))))))) -> 3462 | K35: =IF($F$16=1,IF($F$18=0,0,IF($F$20=0,0,IF($F$20=1,(VLOOKUP(1,Tablas!$A$73:$G$75,7,TRUE)),(VLOOKUP(2,Tablas!$A$73:$G$75,7,TRUE))))), IF($F$18=0,0,IF($F$20=0,0,IF($F$20=1,(VLOOKUP(1,Tablas!$A$73:$G$75,7,TRUE)),IF($F$20=2,(VLOOKUP(2,Tablas!$A$73:$G$75,7,TRUE)), (VLOOKUP(3,Tablas!$A$73:$G$75,7,TRUE))))))) -> 2686
E37: Tarifas semi anuales
E38: Prima para Asegurado Titular | G38: =VLOOKUP($J$16,Tablas!$A$455:$G$521,3,TRUE) -> 14739.83 | H38: =VLOOKUP($J$16,Tablas!$A$455:$G$521,4,TRUE) -> 12919.28 | I38: =VLOOKUP($J$16,Tablas!$A$455:$G$521,5,TRUE) -> 10524.74 | J38: =VLOOKUP($J$16,Tablas!$A$455:$G$521,6,TRUE) -> 9126.07 | K38: =VLOOKUP($J$16,Tablas!$A$455:$G$521,7,TRUE) -> 7078.15
E39: Prima para conyuge | G39: =IF($F$16=1,0,(VLOOKUP($J$18,Tablas!$A$455:$G$521,3,TRUE))) -> 24534.76 | H39: =IF($F$16=1,0,(VLOOKUP($J$18,Tablas!$A$455:$G$521,4,TRUE))) -> 21504.75 | I39: =IF($F$16=1,0,(VLOOKUP($J$18,Tablas!$A$455:$G$521,5,TRUE))) -> 17579.57 | J39: =IF($F$16=1,0,(VLOOKUP($J$18,Tablas!$A$455:$G$521,6,TRUE))) -> 15243.86 | K39: =IF($F$16=1,0,(VLOOKUP($J$18,Tablas!$A$455:$G$521,7,TRUE))) -> 11821.65
E40: Prima para hijo (s) | G40: =IF($F$16=1, (IF($F$18=0, 0, (IF($F$20>$F$18, (VLOOKUP($F$18,Tablas!$A$522:$G$524,3,TRUE)), (IF($F$18>4,(IF($F$20=0, (VLOOKUP(3,Tablas!$A$522:$G$524,3,TRUE)), (IF($F$20=1, (VLOOKUP(3,Tablas!$A$522:$G$524,3,TRUE)), (IF($F$20=2, (VLOOKUP(3,Tablas!$A$522:$G$524,3,TRUE)), (VLOOKUP(3,Tablas!$A$522:$G$524,3,TRUE)))))))), (IF($F$18=4,(IF(4-$F$20=0,(VLOOKUP(2,Tablas!$A$522:$G$524,3,TRUE)), (IF(4-$F$20=1,(VLOOKUP(2,Tablas!$A$522:$G$524,3,TRUE)), (IF(4-$F$20=2, (VLOOKUP(2,Tablas!$A$522:$G$524,3,TRUE)), (VLOOKUP(3,Tablas!$A$522:$G$524,3,TRUE)))))))), (IF($F$18=3,(IF(3-$F$20=0,(VLOOKUP(1,Tablas!$A$522:$G$524,3,TRUE)), (IF(3-$F$20=1,(VLOOKUP(1,Tablas!$A$522:$G$524,3,TRUE)), (IF(3-$F$20=2, (VLOOKUP(2,Tablas!$A$522:$G$524,3,TRUE)), (VLOOKUP(3,Tablas!$A$522:$G$524,3,TRUE)))))))), (IF($F$18=2,(IF(2-$F$20=0, 0, (IF(2-$F$20=1,(VLOOKUP(1,Tablas!$A$522:$G$524,3,TRUE)), (IF(2-$F$20=2, (VLOOKUP(2,Tablas!$A$522:$G$524,3,TRUE)), 0)))))), (IF($F$18=1,(IF(1-$F$20=0, 0, (IF(1-$F$20=1,(VLOOKUP(1,Tablas!$A$522:$G$524,3,TRUE)),0)))),0)))))))))))))), (IF($F$18=0, 0, (IF($F$20>$F$18, (VLOOKUP($F$18,Tablas!$A$522:$G$524,3,TRUE)), (IF($F$18=4,(IF(4-$F$20=0, 0, (IF(4-$F$20=1, (VLOOKUP(1,Tablas!$A$522:$G$524,3,TRUE)), (IF(4-$F$20=2, (VLOOKUP(2,Tablas!$A$522:$G$524,3,TRUE)), (IF(4-$F$20=3, (VLOOKUP(3,Tablas!$A$522:$G$524,3,TRUE)), (IF(4-$F$20=4, (VLOOKUP(3,Tablas!$A$522:$G$524,3,TRUE)), 0)))))))))), (IF($F$18=5,(IF(5-$F$20=0, (VLOOKUP(1,Tablas!$A$522:$G$524,3,TRUE)), (IF(5-$F$20=1, (VLOOKUP(1,Tablas!$A$522:$G$524,3,TRUE)), (IF(5-$F$20=2, (VLOOKUP(2,Tablas!$A$522:$G$524,3,TRUE)), (IF(5-$F$20=3, (VLOOKUP(3,Tablas!$A$522:$G$524,3,TRUE)), (IF(5-$F$20=4, (VLOOKUP(3,Tablas!$A$522:$G$524,3,TRUE)), (VLOOKUP(3,Tablas!$A$522:$G$524,3,TRUE)))))))))))), (IF($F$18=6,(IF(6-$F$20=0, (VLOOKUP(2,Tablas!$A$522:$G$524,3,TRUE)), (IF(6-$F$20=1, (VLOOKUP(2,Tablas!$A$522:$G$524,3,TRUE)), (IF(6-$F$20=2, (VLOOKUP(2,Tablas!$A$522:$G$524,3,TRUE)), (IF(6-$F$20=3, (VLOOKUP(3,Tablas!$A$522:$G$524,3,TRUE)), (IF(6-$F$20=4, (VLOOKUP(3,Tablas!$A$522:$G$524,3,TRUE)), (VLOOKUP(3,Tablas!$A$522:$G$524,3,TRUE)))))))))))), (IF($F$18>6,(IF(7-$F$20=0, (VLOOKUP(3,Tablas!$A$522:$G$524,3,TRUE)), (IF(7-$F$20=1, (VLOOKUP(3,Tablas!$A$522:$G$524,3,TRUE)), (IF(7-$F$20=2, (VLOOKUP(3,Tablas!$A$522:$G$524,3,TRUE)), (IF(7-$F$20=3, (VLOOKUP(3,Tablas!$A$522:$G$524,3,TRUE)), (IF(7-$F$20=4, (VLOOKUP(3,Tablas!$A$522:$G$524,3,TRUE)), (VLOOKUP(3,Tablas!$A$522:$G$524,3,TRUE)))))))))))), (IF($F$18=3,(IF(3-$F$20=0,0, (IF(3-$F$20=1,(VLOOKUP(1,Tablas!$A$522:$G$524,3,TRUE)), (IF(3-$F$20=2, (VLOOKUP(2,Tablas!$A$522:$G$524,3,TRUE)), (VLOOKUP(3,Tablas!$A$522:$G$524,3,TRUE)))))))), (IF($F$18=2,(IF(2-$F$20=0, 0, (IF(2-$F$20=1,(VLOOKUP(1,Tablas!$A$522:$G$524,3,TRUE)), (IF(2-$F$20=2, (VLOOKUP(2,Tablas!$A$522:$G$524,3,TRUE)), 0)))))), (IF($F$18=1,(IF(1-$F$20=0, 0, (IF(1-$F$20=1,(VLOOKUP(1,Tablas!$A$522:$G$524,3,TRUE)),0)))),0))))))))))))))))))) -> 1676.39 | H40: =IF($F$16=1, (IF($F$18=0, 0, (IF($F$20>$F$18, (VLOOKUP($F$18,Tablas!$A$522:$G$524,4,TRUE)), (IF($F$18>4,(IF($F$20=0, (VLOOKUP(3,Tablas!$A$522:$G$524,4,TRUE)), (IF($F$20=1, (VLOOKUP(3,Tablas!$A$522:$G$524,4,TRUE)), (IF($F$20=2, (VLOOKUP(3,Tablas!$A$522:$G$524,4,TRUE)), (VLOOKUP(3,Tablas!$A$522:$G$524,4,TRUE)))))))), (IF($F$18=4,(IF(4-$F$20=0,(VLOOKUP(2,Tablas!$A$522:$G$524,4,TRUE)), (IF(4-$F$20=1,(VLOOKUP(2,Tablas!$A$522:$G$524,4,TRUE)), (IF(4-$F$20=2, (VLOOKUP(2,Tablas!$A$522:$G$524,4,TRUE)), (VLOOKUP(3,Tablas!$A$522:$G$524,4,TRUE)))))))), (IF($F$18=3,(IF(3-$F$20=0,(VLOOKUP(1,Tablas!$A$522:$G$524,4,TRUE)), (IF(3-$F$20=1,(VLOOKUP(1,Tablas!$A$522:$G$524,4,TRUE)), (IF(3-$F$20=2, (VLOOKUP(2,Tablas!$A$522:$G$524,4,TRUE)), (VLOOKUP(3,Tablas!$A$522:$G$524,4,TRUE)))))))), (IF($F$18=2,(IF(2-$F$20=0, 0, (IF(2-$F$20=1,(VLOOKUP(1,Tablas!$A$522:$G$524,4,TRUE)), (IF(2-$F$20=2, (VLOOKUP(2,Tablas!$A$522:$G$524,4,TRUE)), 0)))))), (IF($F$18=1,(IF(1-$F$20=0, 0, (IF(1-$F$20=1,(VLOOKUP(1,Tablas!$A$522:$G$524,4,TRUE)),0)))),0)))))))))))))), (IF($F$18=0, 0, (IF($F$20>$F$18, (VLOOKUP($F$18,Tablas!$A$522:$G$524,4,TRUE)), (IF($F$18=4,(IF(4-$F$20=0, 0, (IF(4-$F$20=1, (VLOOKUP(1,Tablas!$A$522:$G$524,4,TRUE)), (IF(4-$F$20=2, (VLOOKUP(2,Tablas!$A$522:$G$524,4,TRUE)), (IF(4-$F$20=3, (VLOOKUP(3,Tablas!$A$522:$G$524,4,TRUE)), (IF(4-$F$20=4, (VLOOKUP(3,Tablas!$A$522:$G$524,4,TRUE)), 0)))))))))), (IF($F$18=5,(IF(5-$F$20=0, (VLOOKUP(1,Tablas!$A$522:$G$524,4,TRUE)), (IF(5-$F$20=1, (VLOOKUP(1,Tablas!$A$522:$G$524,4,TRUE)), (IF(5-$F$20=2, (VLOOKUP(2,Tablas!$A$522:$G$524,4,TRUE)), (IF(5-$F$20=3, (VLOOKUP(3,Tablas!$A$522:$G$524,4,TRUE)), (IF(5-$F$20=4, (VLOOKUP(3,Tablas!$A$522:$G$524,4,TRUE)), (VLOOKUP(3,Tablas!$A$522:$G$524,4,TRUE)))))))))))), (IF($F$18=6,(IF(6-$F$20=0, (VLOOKUP(2,Tablas!$A$522:$G$524,4,TRUE)), (IF(6-$F$20=1, (VLOOKUP(2,Tablas!$A$522:$G$524,4,TRUE)), (IF(6-$F$20=2, (VLOOKUP(2,Tablas!$A$522:$G$524,4,TRUE)), (IF(6-$F$20=3, (VLOOKUP(3,Tablas!$A$522:$G$524,4,TRUE)), (IF(6-$F$20=4, (VLOOKUP(3,Tablas!$A$522:$G$524,4,TRUE)), (VLOOKUP(3,Tablas!$A$522:$G$524,4,TRUE)))))))))))), (IF($F$18>6,(IF(7-$F$20=0, (VLOOKUP(3,Tablas!$A$522:$G$524,4,TRUE)), (IF(7-$F$20=1, (VLOOKUP(3,Tablas!$A$522:$G$524,4,TRUE)), (IF(7-$F$20=2, (VLOOKUP(3,Tablas!$A$522:$G$524,4,TRUE)), (IF(7-$F$20=3, (VLOOKUP(3,Tablas!$A$522:$G$524,4,TRUE)), (IF(7-$F$20=4, (VLOOKUP(3,Tablas!$A$522:$G$524,4,TRUE)), (VLOOKUP(3,Tablas!$A$522:$G$524,4,TRUE)))))))))))), (IF($F$18=3,(IF(3-$F$20=0,0, (IF(3-$F$20=1,(VLOOKUP(1,Tablas!$A$522:$G$524,4,TRUE)), (IF(3-$F$20=2, (VLOOKUP(2,Tablas!$A$522:$G$524,4,TRUE)), (VLOOKUP(3,Tablas!$A$522:$G$524,4,TRUE)))))))), (IF($F$18=2,(IF(2-$F$20=0, 0, (IF(2-$F$20=1,(VLOOKUP(1,Tablas!$A$522:$G$524,4,TRUE)), (IF(2-$F$20=2, (VLOOKUP(2,Tablas!$A$522:$G$524,4,TRUE)), 0)))))), (IF($F$18=1,(IF(1-$F$20=0, 0, (IF(1-$F$20=1,(VLOOKUP(1,Tablas!$A$522:$G$524,4,TRUE)),0)))),0))))))))))))))))))) -> 1469.69 | I40: =IF($F$16=1, (IF($F$18=0, 0, (IF($F$20>$F$18, (VLOOKUP($F$18,Tablas!$A$522:$G$524,5,TRUE)), (IF($F$18>4,(IF($F$20=0, (VLOOKUP(3,Tablas!$A$522:$G$524,5,TRUE)), (IF($F$20=1, (VLOOKUP(3,Tablas!$A$522:$G$524,5,TRUE)), (IF($F$20=2, (VLOOKUP(3,Tablas!$A$522:$G$524,5,TRUE)), (VLOOKUP(3,Tablas!$A$522:$G$524,5,TRUE)))))))), (IF($F$18=4,(IF(4-$F$20=0,(VLOOKUP(2,Tablas!$A$522:$G$524,5,TRUE)), (IF(4-$F$20=1,(VLOOKUP(2,Tablas!$A$522:$G$524,5,TRUE)), (IF(4-$F$20=2, (VLOOKUP(2,Tablas!$A$522:$G$524,5,TRUE)), (VLOOKUP(3,Tablas!$A$522:$G$524,5,TRUE)))))))), (IF($F$18=3,(IF(3-$F$20=0,(VLOOKUP(1,Tablas!$A$522:$G$524,5,TRUE)), (IF(3-$F$20=1,(VLOOKUP(1,Tablas!$A$522:$G$524,5,TRUE)), (IF(3-$F$20=2, (VLOOKUP(2,Tablas!$A$522:$G$524,5,TRUE)), (VLOOKUP(3,Tablas!$A$522:$G$524,5,TRUE)))))))), (IF($F$18=2,(IF(2-$F$20=0, 0, (IF(2-$F$20=1,(VLOOKUP(1,Tablas!$A$522:$G$524,5,TRUE)), (IF(2-$F$20=2, (VLOOKUP(2,Tablas!$A$522:$G$524,5,TRUE)), 0)))))), (IF($F$18=1,(IF(1-$F$20=0, 0, (IF(1-$F$20=1,(VLOOKUP(1,Tablas!$A$522:$G$524,5,TRUE)),0)))),0)))))))))))))), (IF($F$18=0, 0, (IF($F$20>$F$18, (VLOOKUP($F$18,Tablas!$A$522:$G$524,5,TRUE)), (IF($F$18=4,(IF(4-$F$20=0, 0, (IF(4-$F$20=1, (VLOOKUP(1,Tablas!$A$522:$G$524,5,TRUE)), (IF(4-$F$20=2, (VLOOKUP(2,Tablas!$A$522:$G$524,5,TRUE)), (IF(4-$F$20=3, (VLOOKUP(3,Tablas!$A$522:$G$524,5,TRUE)), (IF(4-$F$20=4, (VLOOKUP(3,Tablas!$A$522:$G$524,5,TRUE)), 0)))))))))), (IF($F$18=5,(IF(5-$F$20=0, (VLOOKUP(1,Tablas!$A$522:$G$524,5,TRUE)), (IF(5-$F$20=1, (VLOOKUP(1,Tablas!$A$522:$G$524,5,TRUE)), (IF(5-$F$20=2, (VLOOKUP(2,Tablas!$A$522:$G$524,5,TRUE)), (IF(5-$F$20=3, (VLOOKUP(3,Tablas!$A$522:$G$524,5,TRUE)), (IF(5-$F$20=4, (VLOOKUP(3,Tablas!$A$522:$G$524,5,TRUE)), (VLOOKUP(3,Tablas!$A$522:$G$524,5,TRUE)))))))))))), (IF($F$18=6,(IF(6-$F$20=0, (VLOOKUP(2,Tablas!$A$522:$G$524,5,TRUE)), (IF(6-$F$20=1, (VLOOKUP(2,Tablas!$A$522:$G$524,5,TRUE)), (IF(6-$F$20=2, (VLOOKUP(2,Tablas!$A$522:$G$524,5,TRUE)), (IF(6-$F$20=3, (VLOOKUP(3,Tablas!$A$522:$G$524,5,TRUE)), (IF(6-$F$20=4, (VLOOKUP(3,Tablas!$A$522:$G$524,5,TRUE)), (VLOOKUP(3,Tablas!$A$522:$G$524,5,TRUE)))))))))))), (IF($F$18>6,(IF(7-$F$20=0, (VLOOKUP(3,Tablas!$A$522:$G$524,5,TRUE)), (IF(7-$F$20=1, (VLOOKUP(3,Tablas!$A$522:$G$524,5,TRUE)), (IF(7-$F$20=2, (VLOOKUP(3,Tablas!$A$522:$G$524,5,TRUE)), (IF(7-$F$20=3, (VLOOKUP(3,Tablas!$A$522:$G$524,5,TRUE)), (IF(7-$F$20=4, (VLOOKUP(3,Tablas!$A$522:$G$524,5,TRUE)), (VLOOKUP(3,Tablas!$A$522:$G$524,5,TRUE)))))))))))), (IF($F$18=3,(IF(3-$F$20=0,0, (IF(3-$F$20=1,(VLOOKUP(1,Tablas!$A$522:$G$524,5,TRUE)), (IF(3-$F$20=2, (VLOOKUP(2,Tablas!$A$522:$G$524,5,TRUE)), (VLOOKUP(3,Tablas!$A$522:$G$524,5,TRUE)))))))), (IF($F$18=2,(IF(2-$F$20=0, 0, (IF(2-$F$20=1,(VLOOKUP(1,Tablas!$A$522:$G$524,5,TRUE)), (IF(2-$F$20=2, (VLOOKUP(2,Tablas!$A$522:$G$524,5,TRUE)), 0)))))), (IF($F$18=1,(IF(1-$F$20=0, 0, (IF(1-$F$20=1,(VLOOKUP(1,Tablas!$A$522:$G$524,5,TRUE)),0)))),0))))))))))))))))))) -> 1244.97 | J40: =IF($F$16=1, (IF($F$18=0, 0, (IF($F$20>$F$18, (VLOOKUP($F$18,Tablas!$A$522:$G$524,6,TRUE)), (IF($F$18>4,(IF($F$20=0, (VLOOKUP(3,Tablas!$A$522:$G$524,6,TRUE)), (IF($F$20=1, (VLOOKUP(3,Tablas!$A$522:$G$524,6,TRUE)), (IF($F$20=2, (VLOOKUP(3,Tablas!$A$522:$G$524,6,TRUE)), (VLOOKUP(3,Tablas!$A$522:$G$524,6,TRUE)))))))), (IF($F$18=4,(IF(4-$F$20=0,(VLOOKUP(2,Tablas!$A$522:$G$524,6,TRUE)), (IF(4-$F$20=1,(VLOOKUP(2,Tablas!$A$522:$G$524,6,TRUE)), (IF(4-$F$20=2, (VLOOKUP(2,Tablas!$A$522:$G$524,6,TRUE)), (VLOOKUP(3,Tablas!$A$522:$G$524,6,TRUE)))))))), (IF($F$18=3,(IF(3-$F$20=0,(VLOOKUP(1,Tablas!$A$522:$G$524,6,TRUE)), (IF(3-$F$20=1,(VLOOKUP(1,Tablas!$A$522:$G$524,6,TRUE)), (IF(3-$F$20=2, (VLOOKUP(2,Tablas!$A$522:$G$524,6,TRUE)), (VLOOKUP(3,Tablas!$A$522:$G$524,6,TRUE)))))))), (IF($F$18=2,(IF(2-$F$20=0, 0, (IF(2-$F$20=1,(VLOOKUP(1,Tablas!$A$522:$G$524,6,TRUE)), (IF(2-$F$20=2, (VLOOKUP(2,Tablas!$A$522:$G$524,6,TRUE)), 0)))))), (IF($F$18=1,(IF(1-$F$20=0, 0, (IF(1-$F$20=1,(VLOOKUP(1,Tablas!$A$522:$G$524,6,TRUE)),0)))),0)))))))))))))), (IF($F$18=0, 0, (IF($F$20>$F$18, (VLOOKUP($F$18,Tablas!$A$522:$G$524,6,TRUE)), (IF($F$18=4,(IF(4-$F$20=0, 0, (IF(4-$F$20=1, (VLOOKUP(1,Tablas!$A$522:$G$524,6,TRUE)), (IF(4-$F$20=2, (VLOOKUP(2,Tablas!$A$522:$G$524,6,TRUE)), (IF(4-$F$20=3, (VLOOKUP(3,Tablas!$A$522:$G$524,6,TRUE)), (IF(4-$F$20=4, (VLOOKUP(3,Tablas!$A$522:$G$524,6,TRUE)), 0)))))))))), (IF($F$18=5,(IF(5-$F$20=0, (VLOOKUP(1,Tablas!$A$522:$G$524,6,TRUE)), (IF(5-$F$20=1, (VLOOKUP(1,Tablas!$A$522:$G$524,6,TRUE)), (IF(5-$F$20=2, (VLOOKUP(2,Tablas!$A$522:$G$524,6,TRUE)), (IF(5-$F$20=3, (VLOOKUP(3,Tablas!$A$522:$G$524,6,TRUE)), (IF(5-$F$20=4, (VLOOKUP(3,Tablas!$A$522:$G$524,6,TRUE)), (VLOOKUP(3,Tablas!$A$522:$G$524,6,TRUE)))))))))))), (IF($F$18=6,(IF(6-$F$20=0, (VLOOKUP(2,Tablas!$A$522:$G$524,6,TRUE)), (IF(6-$F$20=1, (VLOOKUP(2,Tablas!$A$522:$G$524,6,TRUE)), (IF(6-$F$20=2, (VLOOKUP(2,Tablas!$A$522:$G$524,6,TRUE)), (IF(6-$F$20=3, (VLOOKUP(3,Tablas!$A$522:$G$524,6,TRUE)), (IF(6-$F$20=4, (VLOOKUP(3,Tablas!$A$522:$G$524,6,TRUE)), (VLOOKUP(3,Tablas!$A$522:$G$524,6,TRUE)))))))))))), (IF($F$18>6,(IF(7-$F$20=0, (VLOOKUP(3,Tablas!$A$522:$G$524,6,TRUE)), (IF(7-$F$20=1, (VLOOKUP(3,Tablas!$A$522:$G$524,6,TRUE)), (IF(7-$F$20=2, (VLOOKUP(3,Tablas!$A$522:$G$524,6,TRUE)), (IF(7-$F$20=3, (VLOOKUP(3,Tablas!$A$522:$G$524,6,TRUE)), (IF(7-$F$20=4, (VLOOKUP(3,Tablas!$A$522:$G$524,6,TRUE)), (VLOOKUP(3,Tablas!$A$522:$G$524,6,TRUE)))))))))))), (IF($F$18=3,(IF(3-$F$20=0,0, (IF(3-$F$20=1,(VLOOKUP(1,Tablas!$A$522:$G$524,6,TRUE)), (IF(3-$F$20=2, (VLOOKUP(2,Tablas!$A$522:$G$524,6,TRUE)), (VLOOKUP(3,Tablas!$A$522:$G$524,6,TRUE)))))))), (IF($F$18=2,(IF(2-$F$20=0, 0, (IF(2-$F$20=1,(VLOOKUP(1,Tablas!$A$522:$G$524,6,TRUE)), (IF(2-$F$20=2, (VLOOKUP(2,Tablas!$A$522:$G$524,6,TRUE)), 0)))))), (IF($F$18=1,(IF(1-$F$20=0, 0, (IF(1-$F$20=1,(VLOOKUP(1,Tablas!$A$522:$G$524,6,TRUE)),0)))),0))))))))))))))))))) -> 1080.14 | K40: =IF($F$16=1, (IF($F$18=0, 0, (IF($F$20>$F$18, (VLOOKUP($F$18,Tablas!$A$522:$G$524,7,TRUE)), (IF($F$18>4,(IF($F$20=0, (VLOOKUP(3,Tablas!$A$522:$G$524,7,TRUE)), (IF($F$20=1, (VLOOKUP(3,Tablas!$A$522:$G$524,7,TRUE)), (IF($F$20=2, (VLOOKUP(3,Tablas!$A$522:$G$524,7,TRUE)), (VLOOKUP(3,Tablas!$A$522:$G$524,7,TRUE)))))))), (IF($F$18=4,(IF(4-$F$20=0,(VLOOKUP(2,Tablas!$A$522:$G$524,7,TRUE)), (IF(4-$F$20=1,(VLOOKUP(2,Tablas!$A$522:$G$524,7,TRUE)), (IF(4-$F$20=2, (VLOOKUP(2,Tablas!$A$522:$G$524,7,TRUE)), (VLOOKUP(3,Tablas!$A$522:$G$524,7,TRUE)))))))), (IF($F$18=3,(IF(3-$F$20=0,(VLOOKUP(1,Tablas!$A$522:$G$524,7,TRUE)), (IF(3-$F$20=1,(VLOOKUP(1,Tablas!$A$522:$G$524,7,TRUE)), (IF(3-$F$20=2, (VLOOKUP(2,Tablas!$A$522:$G$524,7,TRUE)), (VLOOKUP(3,Tablas!$A$522:$G$524,7,TRUE)))))))), (IF($F$18=2,(IF(2-$F$20=0, 0, (IF(2-$F$20=1,(VLOOKUP(1,Tablas!$A$522:$G$524,7,TRUE)), (IF(2-$F$20=2, (VLOOKUP(2,Tablas!$A$522:$G$524,7,TRUE)), 0)))))), (IF($F$18=1,(IF(1-$F$20=0, 0, (IF(1-$F$20=1,(VLOOKUP(1,Tablas!$A$522:$G$524,7,TRUE)),0)))),0)))))))))))))), (IF($F$18=0, 0, (IF($F$20>$F$18, (VLOOKUP($F$18,Tablas!$A$522:$G$524,7,TRUE)), (IF($F$18=4,(IF(4-$F$20=0, 0, (IF(4-$F$20=1, (VLOOKUP(1,Tablas!$A$522:$G$524,7,TRUE)), (IF(4-$F$20=2, (VLOOKUP(2,Tablas!$A$522:$G$524,7,TRUE)), (IF(4-$F$20=3, (VLOOKUP(3,Tablas!$A$522:$G$524,7,TRUE)), (IF(4-$F$20=4, (VLOOKUP(3,Tablas!$A$522:$G$524,7,TRUE)), 0)))))))))), (IF($F$18=5,(IF(5-$F$20=0, (VLOOKUP(1,Tablas!$A$522:$G$524,7,TRUE)), (IF(5-$F$20=1, (VLOOKUP(1,Tablas!$A$522:$G$524,7,TRUE)), (IF(5-$F$20=2, (VLOOKUP(2,Tablas!$A$522:$G$524,7,TRUE)), (IF(5-$F$20=3, (VLOOKUP(3,Tablas!$A$522:$G$524,7,TRUE)), (IF(5-$F$20=4, (VLOOKUP(3,Tablas!$A$522:$G$524,7,TRUE)), (VLOOKUP(3,Tablas!$A$522:$G$524,7,TRUE)))))))))))), (IF($F$18=6,(IF(6-$F$20=0, (VLOOKUP(2,Tablas!$A$522:$G$524,7,TRUE)), (IF(6-$F$20=1, (VLOOKUP(2,Tablas!$A$522:$G$524,7,TRUE)), (IF(6-$F$20=2, (VLOOKUP(2,Tablas!$A$522:$G$524,7,TRUE)), (IF(6-$F$20=3, (VLOOKUP(3,Tablas!$A$522:$G$524,7,TRUE)), (IF(6-$F$20=4, (VLOOKUP(3,Tablas!$A$522:$G$524,7,TRUE)), (VLOOKUP(3,Tablas!$A$522:$G$524,7,TRUE)))))))))))), (IF($F$18>6,(IF(7-$F$20=0, (VLOOKUP(3,Tablas!$A$522:$G$524,7,TRUE)), (IF(7-$F$20=1, (VLOOKUP(3,Tablas!$A$522:$G$524,7,TRUE)), (IF(7-$F$20=2, (VLOOKUP(3,Tablas!$A$522:$G$524,7,TRUE)), (IF(7-$F$20=3, (VLOOKUP(3,Tablas!$A$522:$G$524,7,TRUE)), (IF(7-$F$20=4, (VLOOKUP(3,Tablas!$A$522:$G$524,7,TRUE)), (VLOOKUP(3,Tablas!$A$522:$G$524,7,TRUE)))))))))))), (IF($F$18=3,(IF(3-$F$20=0,0, (IF(3-$F$20=1,(VLOOKUP(1,Tablas!$A$522:$G$524,7,TRUE)), (IF(3-$F$20=2, (VLOOKUP(2,Tablas!$A$522:$G$524,7,TRUE)), (VLOOKUP(3,Tablas!$A$522:$G$524,7,TRUE)))))))), (IF($F$18=2,(IF(2-$F$20=0, 0, (IF(2-$F$20=1,(VLOOKUP(1,Tablas!$A$522:$G$524,7,TRUE)), (IF(2-$F$20=2, (VLOOKUP(2,Tablas!$A$522:$G$524,7,TRUE)), 0)))))), (IF($F$18=1,(IF(1-$F$20=0, 0, (IF(1-$F$20=1,(VLOOKUP(1,Tablas!$A$522:$G$524,7,TRUE)),0)))),0))))))))))))))))))) -> 837.93
E41: Total de Prima neta | G41: =SUM(G38:G40) -> 40950.98 | H41: =SUM(H38:H40) -> 35893.72 | I41: =SUM(I38:I40) -> 29349.28 | J41: =SUM(J38:J40) -> 25450.07 | K41: =SUM(K38:K40) -> 19737.73
E42: Descuento por variante con coaseguro fuera del país de residencia | G42: =IF('INGRESO DE DATOS'!$H$22,G41*-25%,0) -> 0 | H42: =IF('INGRESO DE DATOS'!$H$22,H41*-25%,0) -> 0 | I42: =IF('INGRESO DE DATOS'!$H$22,I41*-25%,0) -> 0 | J42: =IF('INGRESO DE DATOS'!$H$22,J41*-25%,0) -> 0 | K42: =IF('INGRESO DE DATOS'!$H$22,K41*-25%,0) -> 0
E43: Tarifa administrativa anual | G43: 75 | H43: 75 | I43: 75 | J43: 75 | K43: 75
E44: IVA (12%) | G44: =(G41+G43)*0% -> 0 | H44: =(H41+H43)*0% -> 0 | I44: 0 | J44: 0 | K44: 0
E45: TOTAL de primera cuota | G45: =SUM(G41:G44) -> 41025.98 | H45: =SUM(H41:H44) -> 35968.72 | I45: 29424.28 | J45: 25525.07 | K45: 19812.73
E46: Costo de segunda cuota | G46: =SUM(G41:G42) -> 40950.98 | H46: =SUM(H41:H42) -> 35893.72 | I46: 29349.28 | J46: 25450.07 | K46: 19737.73
E47: TOTAL ANUAL | G47: =G45+G46 -> 81976.96 | H47: =H45+H46 -> 71862.44 | I47: 58773.56 | J47: =J45+J46 -> 50975.14 | K47: 39550.46
E48: Ahorros en tarifas de prima para niños | G48: =IF($F$16=1,IF($F$18=0,0,IF($F$20=0,0,IF($F$20=1,(VLOOKUP(1,Tablas!$A$522:$G$524,3,TRUE)),(VLOOKUP(2,Tablas!$A$522:$G$524,3,TRUE))))), IF($F$18=0,0,IF($F$20=0,0,IF($F$20=1,(VLOOKUP(1,Tablas!$A$522:$G$524,3,TRUE)),IF($F$20=2,(VLOOKUP(2,Tablas!$A$522:$G$524,3,TRUE)), (VLOOKUP(3,Tablas!$A$522:$G$524,3,TRUE))))))) -> 2850.87 | H48: =IF($F$16=1,IF($F$18=0,0,IF($F$20=0,0,IF($F$20=1,(VLOOKUP(1,Tablas!$A$522:$G$524,4,TRUE)),(VLOOKUP(2,Tablas!$A$522:$G$524,4,TRUE))))), IF($F$18=0,0,IF($F$20=0,0,IF($F$20=1,(VLOOKUP(1,Tablas!$A$522:$G$524,4,TRUE)),IF($F$20=2,(VLOOKUP(2,Tablas!$A$522:$G$524,4,TRUE)), (VLOOKUP(3,Tablas!$A$522:$G$524,4,TRUE))))))) -> 2498.95 | I48: =IF($F$16=1,IF($F$18=0,0,IF($F$20=0,0,IF($F$20=1,(VLOOKUP(1,Tablas!$A$522:$G$524,5,TRUE)),(VLOOKUP(2,Tablas!$A$522:$G$524,5,TRUE))))), IF($F$18=0,0,IF($F$20=0,0,IF($F$20=1,(VLOOKUP(1,Tablas!$A$522:$G$524,5,TRUE)),IF($F$20=2,(VLOOKUP(2,Tablas!$A$522:$G$524,5,TRUE)), (VLOOKUP(3,Tablas!$A$522:$G$524,5,TRUE))))))) -> 2116.29 | J48: =IF($F$16=1,IF($F$18=0,0,IF($F$20=0,0,IF($F$20=1,(VLOOKUP(1,Tablas!$A$522:$G$524,6,TRUE)),(VLOOKUP(2,Tablas!$A$522:$G$524,6,TRUE))))), IF($F$18=0,0,IF($F$20=0,0,IF($F$20=1,(VLOOKUP(1,Tablas!$A$522:$G$524,6,TRUE)),IF($F$20=2,(VLOOKUP(2,Tablas!$A$522:$G$524,6,TRUE)), (VLOOKUP(3,Tablas!$A$522:$G$524,6,TRUE))))))) -> 1834.86 | K48: =IF($F$16=1,IF($F$18=0,0,IF($F$20=0,0,IF($F$20=1,(VLOOKUP(1,Tablas!$A$522:$G$524,7,TRUE)),(VLOOKUP(2,Tablas!$A$522:$G$524,7,TRUE))))), IF($F$18=0,0,IF($F$20=0,0,IF($F$20=1,(VLOOKUP(1,Tablas!$A$522:$G$524,7,TRUE)),IF($F$20=2,(VLOOKUP(2,Tablas!$A$522:$G$524,7,TRUE)), (VLOOKUP(3,Tablas!$A$522:$G$524,7,TRUE))))))) -> 1423.58
E50: Tarifas trimestrales
E51: Prima para Asegurado Titular | G51: =VLOOKUP($J$16,Tablas!$A$680:$G$746,3,TRUE) -> 7648.025 | H51: =VLOOKUP($J$16,Tablas!$A$680:$G$746,4,TRUE) -> 6703.4 | I51: =VLOOKUP($J$16,Tablas!$A$680:$G$746,5,TRUE) -> 5460.95 | J51: =VLOOKUP($J$16,Tablas!$A$680:$G$746,6,TRUE) -> 4735.225 | K51: =VLOOKUP($J$16,Tablas!$A$680:$G$746,7,TRUE) -> 3672.625
E52: Prima para conyuge | G52: =IF($F$16=1,0,(VLOOKUP($J$18,Tablas!$A$680:$G$746,3,TRUE))) -> 12730.3 | H52: =IF($F$16=1,0,(VLOOKUP($J$18,Tablas!$A$680:$G$746,4,TRUE))) -> 11158.125 | I52: =IF($F$16=1,0,(VLOOKUP($J$18,Tablas!$A$680:$G$746,5,TRUE))) -> 9121.475 | J52: =IF($F$16=1,0,(VLOOKUP($J$18,Tablas!$A$680:$G$746,6,TRUE))) -> 7909.55 | K52: =IF($F$16=1,0,(VLOOKUP($J$18,Tablas!$A$680:$G$746,7,TRUE))) -> 6133.875
E53: Prima para hijo (s) | G53: =IF($F$16=1, (IF($F$18=0, 0, (IF($F$20>$F$18, (VLOOKUP($F$18,Tablas!$A$747:$G$749,3,TRUE)), (IF($F$18>4,(IF($F$20=0, (VLOOKUP(3,Tablas!$A$747:$G$749,3,TRUE)), (IF($F$20=1, (VLOOKUP(3,Tablas!$A$747:$G$749,3,TRUE)), (IF($F$20=2, (VLOOKUP(3,Tablas!$A$747:$G$749,3,TRUE)), (VLOOKUP(3,Tablas!$A$747:$G$749,3,TRUE)))))))), (IF($F$18=4,(IF(4-$F$20=0,(VLOOKUP(2,Tablas!$A$747:$G$749,3,TRUE)), (IF(4-$F$20=1,(VLOOKUP(2,Tablas!$A$747:$G$749,3,TRUE)), (IF(4-$F$20=2, (VLOOKUP(2,Tablas!$A$747:$G$749,3,TRUE)), (VLOOKUP(3,Tablas!$A$747:$G$749,3,TRUE)))))))), (IF($F$18=3,(IF(3-$F$20=0,(VLOOKUP(1,Tablas!$A$747:$G$749,3,TRUE)), (IF(3-$F$20=1,(VLOOKUP(1,Tablas!$A$747:$G$749,3,TRUE)), (IF(3-$F$20=2, (VLOOKUP(2,Tablas!$A$747:$G$749,3,TRUE)), (VLOOKUP(3,Tablas!$A$747:$G$749,3,TRUE)))))))), (IF($F$18=2,(IF(2-$F$20=0, 0, (IF(2-$F$20=1,(VLOOKUP(1,Tablas!$A$747:$G$749,3,TRUE)), (IF(2-$F$20=2, (VLOOKUP(2,Tablas!$A$747:$G$749,3,TRUE)), 0)))))), (IF($F$18=1,(IF(1-$F$20=0, 0, (IF(1-$F$20=1,(VLOOKUP(1,Tablas!$A$747:$G$749,3,TRUE)),0)))),0)))))))))))))), (IF($F$18=0, 0, (IF($F$20>$F$18, (VLOOKUP($F$18,Tablas!$A$747:$G$749,3,TRUE)), (IF($F$18=4,(IF(4-$F$20=0, 0, (IF(4-$F$20=1, (VLOOKUP(1,Tablas!$A$747:$G$749,3,TRUE)), (IF(4-$F$20=2, (VLOOKUP(2,Tablas!$A$747:$G$749,3,TRUE)), (IF(4-$F$20=3, (VLOOKUP(3,Tablas!$A$747:$G$749,3,TRUE)), (IF(4-$F$20=4, (VLOOKUP(3,Tablas!$A$747:$G$749,3,TRUE)), 0)))))))))), (IF($F$18=5,(IF(5-$F$20=0, (VLOOKUP(1,Tablas!$A$747:$G$749,3,TRUE)), (IF(5-$F$20=1, (VLOOKUP(1,Tablas!$A$747:$G$749,3,TRUE)), (IF(5-$F$20=2, (VLOOKUP(2,Tablas!$A$747:$G$749,3,TRUE)), (IF(5-$F$20=3, (VLOOKUP(3,Tablas!$A$747:$G$749,3,TRUE)), (IF(5-$F$20=4, (VLOOKUP(3,Tablas!$A$747:$G$749,3,TRUE)), (VLOOKUP(3,Tablas!$A$747:$G$749,3,TRUE)))))))))))), (IF($F$18=6,(IF(6-$F$20=0, (VLOOKUP(2,Tablas!$A$747:$G$749,3,TRUE)), (IF(6-$F$20=1, (VLOOKUP(2,Tablas!$A$747:$G$749,3,TRUE)), (IF(6-$F$20=2, (VLOOKUP(2,Tablas!$A$747:$G$749,3,TRUE)), (IF(6-$F$20=3, (VLOOKUP(3,Tablas!$A$747:$G$749,3,TRUE)), (IF(6-$F$20=4, (VLOOKUP(3,Tablas!$A$747:$G$749,3,TRUE)), (VLOOKUP(3,Tablas!$A$747:$G$749,3,TRUE)))))))))))), (IF($F$18>6,(IF(7-$F$20=0, (VLOOKUP(3,Tablas!$A$747:$G$749,3,TRUE)), (IF(7-$F$20=1, (VLOOKUP(3,Tablas!$A$747:$G$749,3,TRUE)), (IF(7-$F$20=2, (VLOOKUP(3,Tablas!$A$747:$G$749,3,TRUE)), (IF(7-$F$20=3, (VLOOKUP(3,Tablas!$A$747:$G$749,3,TRUE)), (IF(7-$F$20=4, (VLOOKUP(3,Tablas!$A$747:$G$749,3,TRUE)), (VLOOKUP(3,Tablas!$A$747:$G$749,3,TRUE)))))))))))), (IF($F$18=3,(IF(3-$F$20=0,0, (IF(3-$F$20=1,(VLOOKUP(1,Tablas!$A$747:$G$749,3,TRUE)), (IF(3-$F$20=2, (VLOOKUP(2,Tablas!$A$747:$G$749,3,TRUE)), (VLOOKUP(3,Tablas!$A$747:$G$749,3,TRUE)))))))), (IF($F$18=2,(IF(2-$F$20=0, 0, (IF(2-$F$20=1,(VLOOKUP(1,Tablas!$A$747:$G$749,3,TRUE)), (IF(2-$F$20=2, (VLOOKUP(2,Tablas!$A$747:$G$749,3,TRUE)), 0)))))), (IF($F$18=1,(IF(1-$F$20=0, 0, (IF(1-$F$20=1,(VLOOKUP(1,Tablas!$A$747:$G$749,3,TRUE)),0)))),0))))))))))))))))))) -> 869.825 | H53: =IF($F$16=1, (IF($F$18=0, 0, (IF($F$20>$F$18, (VLOOKUP($F$18,Tablas!$A$747:$G$749,4,TRUE)), (IF($F$18>4,(IF($F$20=0, (VLOOKUP(3,Tablas!$A$747:$G$749,4,TRUE)), (IF($F$20=1, (VLOOKUP(3,Tablas!$A$747:$G$749,4,TRUE)), (IF($F$20=2, (VLOOKUP(3,Tablas!$A$747:$G$749,4,TRUE)), (VLOOKUP(3,Tablas!$A$747:$G$749,4,TRUE)))))))), (IF($F$18=4,(IF(4-$F$20=0,(VLOOKUP(2,Tablas!$A$747:$G$749,4,TRUE)), (IF(4-$F$20=1,(VLOOKUP(2,Tablas!$A$747:$G$749,4,TRUE)), (IF(4-$F$20=2, (VLOOKUP(2,Tablas!$A$747:$G$749,4,TRUE)), (VLOOKUP(3,Tablas!$A$747:$G$749,4,TRUE)))))))), (IF($F$18=3,(IF(3-$F$20=0,(VLOOKUP(1,Tablas!$A$747:$G$749,4,TRUE)), (IF(3-$F$20=1,(VLOOKUP(1,Tablas!$A$747:$G$749,4,TRUE)), (IF(3-$F$20=2, (VLOOKUP(2,Tablas!$A$747:$G$749,4,TRUE)), (VLOOKUP(3,Tablas!$A$747:$G$749,4,TRUE)))))))), (IF($F$18=2,(IF(2-$F$20=0, 0, (IF(2-$F$20=1,(VLOOKUP(1,Tablas!$A$747:$G$749,4,TRUE)), (IF(2-$F$20=2, (VLOOKUP(2,Tablas!$A$747:$G$749,4,TRUE)), 0)))))), (IF($F$18=1,(IF(1-$F$20=0, 0, (IF(1-$F$20=1,(VLOOKUP(1,Tablas!$A$747:$G$749,4,TRUE)),0)))),0)))))))))))))), (IF($F$18=0, 0, (IF($F$20>$F$18, (VLOOKUP($F$18,Tablas!$A$747:$G$749,4,TRUE)), (IF($F$18=4,(IF(4-$F$20=0, 0, (IF(4-$F$20=1, (VLOOKUP(1,Tablas!$A$747:$G$749,4,TRUE)), (IF(4-$F$20=2, (VLOOKUP(2,Tablas!$A$747:$G$749,4,TRUE)), (IF(4-$F$20=3, (VLOOKUP(3,Tablas!$A$747:$G$749,4,TRUE)), (IF(4-$F$20=4, (VLOOKUP(3,Tablas!$A$747:$G$749,4,TRUE)), 0)))))))))), (IF($F$18=5,(IF(5-$F$20=0, (VLOOKUP(1,Tablas!$A$747:$G$749,4,TRUE)), (IF(5-$F$20=1, (VLOOKUP(1,Tablas!$A$747:$G$749,4,TRUE)), (IF(5-$F$20=2, (VLOOKUP(2,Tablas!$A$747:$G$749,4,TRUE)), (IF(5-$F$20=3, (VLOOKUP(3,Tablas!$A$747:$G$749,4,TRUE)), (IF(5-$F$20=4, (VLOOKUP(3,Tablas!$A$747:$G$749,4,TRUE)), (VLOOKUP(3,Tablas!$A$747:$G$749,4,TRUE)))))))))))), (IF($F$18=6,(IF(6-$F$20=0, (VLOOKUP(2,Tablas!$A$747:$G$749,4,TRUE)), (IF(6-$F$20=1, (VLOOKUP(2,Tablas!$A$747:$G$749,4,TRUE)), (IF(6-$F$20=2, (VLOOKUP(2,Tablas!$A$747:$G$749,4,TRUE)), (IF(6-$F$20=3, (VLOOKUP(3,Tablas!$A$747:$G$749,4,TRUE)), (IF(6-$F$20=4, (VLOOKUP(3,Tablas!$A$747:$G$749,4,TRUE)), (VLOOKUP(3,Tablas!$A$747:$G$749,4,TRUE)))))))))))), (IF($F$18>6,(IF(7-$F$20=0, (VLOOKUP(3,Tablas!$A$747:$G$749,4,TRUE)), (IF(7-$F$20=1, (VLOOKUP(3,Tablas!$A$747:$G$749,4,TRUE)), (IF(7-$F$20=2, (VLOOKUP(3,Tablas!$A$747:$G$749,4,TRUE)), (IF(7-$F$20=3, (VLOOKUP(3,Tablas!$A$747:$G$749,4,TRUE)), (IF(7-$F$20=4, (VLOOKUP(3,Tablas!$A$747:$G$749,4,TRUE)), (VLOOKUP(3,Tablas!$A$747:$G$749,4,TRUE)))))))))))), (IF($F$18=3,(IF(3-$F$20=0,0, (IF(3-$F$20=1,(VLOOKUP(1,Tablas!$A$747:$G$749,4,TRUE)), (IF(3-$F$20=2, (VLOOKUP(2,Tablas!$A$747:$G$749,4,TRUE)), (VLOOKUP(3,Tablas!$A$747:$G$749,4,TRUE)))))))), (IF($F$18=2,(IF(2-$F$20=0, 0, (IF(2-$F$20=1,(VLOOKUP(1,Tablas!$A$747:$G$749,4,TRUE)), (IF(2-$F$20=2, (VLOOKUP(2,Tablas!$A$747:$G$749,4,TRUE)), 0)))))), (IF($F$18=1,(IF(1-$F$20=0, 0, (IF(1-$F$20=1,(VLOOKUP(1,Tablas!$A$747:$G$749,4,TRUE)),0)))),0))))))))))))))))))) -> 762.575 | I53: =IF($F$16=1, (IF($F$18=0, 0, (IF($F$20>$F$18, (VLOOKUP($F$18,Tablas!$A$747:$G$749,5,TRUE)), (IF($F$18>4,(IF($F$20=0, (VLOOKUP(3,Tablas!$A$747:$G$749,5,TRUE)), (IF($F$20=1, (VLOOKUP(3,Tablas!$A$747:$G$749,5,TRUE)), (IF($F$20=2, (VLOOKUP(3,Tablas!$A$747:$G$749,5,TRUE)), (VLOOKUP(3,Tablas!$A$747:$G$749,5,TRUE)))))))), (IF($F$18=4,(IF(4-$F$20=0,(VLOOKUP(2,Tablas!$A$747:$G$749,5,TRUE)), (IF(4-$F$20=1,(VLOOKUP(2,Tablas!$A$747:$G$749,5,TRUE)), (IF(4-$F$20=2, (VLOOKUP(2,Tablas!$A$747:$G$749,5,TRUE)), (VLOOKUP(3,Tablas!$A$747:$G$749,5,TRUE)))))))), (IF($F$18=3,(IF(3-$F$20=0,(VLOOKUP(1,Tablas!$A$747:$G$749,5,TRUE)), (IF(3-$F$20=1,(VLOOKUP(1,Tablas!$A$747:$G$749,5,TRUE)), (IF(3-$F$20=2, (VLOOKUP(2,Tablas!$A$747:$G$749,5,TRUE)), (VLOOKUP(3,Tablas!$A$747:$G$749,5,TRUE)))))))), (IF($F$18=2,(IF(2-$F$20=0, 0, (IF(2-$F$20=1,(VLOOKUP(1,Tablas!$A$747:$G$749,5,TRUE)), (IF(2-$F$20=2, (VLOOKUP(2,Tablas!$A$747:$G$749,5,TRUE)), 0)))))), (IF($F$18=1,(IF(1-$F$20=0, 0, (IF(1-$F$20=1,(VLOOKUP(1,Tablas!$A$747:$G$749,5,TRUE)),0)))),0)))))))))))))), (IF($F$18=0, 0, (IF($F$20>$F$18, (VLOOKUP($F$18,Tablas!$A$747:$G$749,5,TRUE)), (IF($F$18=4,(IF(4-$F$20=0, 0, (IF(4-$F$20=1, (VLOOKUP(1,Tablas!$A$747:$G$749,5,TRUE)), (IF(4-$F$20=2, (VLOOKUP(2,Tablas!$A$747:$G$749,5,TRUE)), (IF(4-$F$20=3, (VLOOKUP(3,Tablas!$A$747:$G$749,5,TRUE)), (IF(4-$F$20=4, (VLOOKUP(3,Tablas!$A$747:$G$749,5,TRUE)), 0)))))))))), (IF($F$18=5,(IF(5-$F$20=0, (VLOOKUP(1,Tablas!$A$747:$G$749,5,TRUE)), (IF(5-$F$20=1, (VLOOKUP(1,Tablas!$A$747:$G$749,5,TRUE)), (IF(5-$F$20=2, (VLOOKUP(2,Tablas!$A$747:$G$749,5,TRUE)), (IF(5-$F$20=3, (VLOOKUP(3,Tablas!$A$747:$G$749,5,TRUE)), (IF(5-$F$20=4, (VLOOKUP(3,Tablas!$A$747:$G$749,5,TRUE)), (VLOOKUP(3,Tablas!$A$747:$G$749,5,TRUE)))))))))))), (IF($F$18=6,(IF(6-$F$20=0, (VLOOKUP(2,Tablas!$A$747:$G$749,5,TRUE)), (IF(6-$F$20=1, (VLOOKUP(2,Tablas!$A$747:$G$749,5,TRUE)), (IF(6-$F$20=2, (VLOOKUP(2,Tablas!$A$747:$G$749,5,TRUE)), (IF(6-$F$20=3, (VLOOKUP(3,Tablas!$A$747:$G$749,5,TRUE)), (IF(6-$F$20=4, (VLOOKUP(3,Tablas!$A$747:$G$749,5,TRUE)), (VLOOKUP(3,Tablas!$A$747:$G$749,5,TRUE)))))))))))), (IF($F$18>6,(IF(7-$F$20=0, (VLOOKUP(3,Tablas!$A$747:$G$749,5,TRUE)), (IF(7-$F$20=1, (VLOOKUP(3,Tablas!$A$747:$G$749,5,TRUE)), (IF(7-$F$20=2, (VLOOKUP(3,Tablas!$A$747:$G$749,5,TRUE)), (IF(7-$F$20=3, (VLOOKUP(3,Tablas!$A$747:$G$749,5,TRUE)), (IF(7-$F$20=4, (VLOOKUP(3,Tablas!$A$747:$G$749,5,TRUE)), (VLOOKUP(3,Tablas!$A$747:$G$749,5,TRUE)))))))))))), (IF($F$18=3,(IF(3-$F$20=0,0, (IF(3-$F$20=1,(VLOOKUP(1,Tablas!$A$747:$G$749,5,TRUE)), (IF(3-$F$20=2, (VLOOKUP(2,Tablas!$A$747:$G$749,5,TRUE)), (VLOOKUP(3,Tablas!$A$747:$G$749,5,TRUE)))))))), (IF($F$18=2,(IF(2-$F$20=0, 0, (IF(2-$F$20=1,(VLOOKUP(1,Tablas!$A$747:$G$749,5,TRUE)), (IF(2-$F$20=2, (VLOOKUP(2,Tablas!$A$747:$G$749,5,TRUE)), 0)))))), (IF($F$18=1,(IF(1-$F$20=0, 0, (IF(1-$F$20=1,(VLOOKUP(1,Tablas!$A$747:$G$749,5,TRUE)),0)))),0))))))))))))))))))) -> 645.975 | J53: =IF($F$16=1, (IF($F$18=0, 0, (IF($F$20>$F$18, (VLOOKUP($F$18,Tablas!$A$747:$G$749,6,TRUE)), (IF($F$18>4,(IF($F$20=0, (VLOOKUP(3,Tablas!$A$747:$G$749,6,TRUE)), (IF($F$20=1, (VLOOKUP(3,Tablas!$A$747:$G$749,6,TRUE)), (IF($F$20=2, (VLOOKUP(3,Tablas!$A$747:$G$749,6,TRUE)), (VLOOKUP(3,Tablas!$A$747:$G$749,6,TRUE)))))))), (IF($F$18=4,(IF(4-$F$20=0,(VLOOKUP(2,Tablas!$A$747:$G$749,6,TRUE)), (IF(4-$F$20=1,(VLOOKUP(2,Tablas!$A$747:$G$749,6,TRUE)), (IF(4-$F$20=2, (VLOOKUP(2,Tablas!$A$747:$G$749,6,TRUE)), (VLOOKUP(3,Tablas!$A$747:$G$749,6,TRUE)))))))), (IF($F$18=3,(IF(3-$F$20=0,(VLOOKUP(1,Tablas!$A$747:$G$749,6,TRUE)), (IF(3-$F$20=1,(VLOOKUP(1,Tablas!$A$747:$G$749,6,TRUE)), (IF(3-$F$20=2, (VLOOKUP(2,Tablas!$A$747:$G$749,6,TRUE)), (VLOOKUP(3,Tablas!$A$747:$G$749,6,TRUE)))))))), (IF($F$18=2,(IF(2-$F$20=0, 0, (IF(2-$F$20=1,(VLOOKUP(1,Tablas!$A$747:$G$749,6,TRUE)), (IF(2-$F$20=2, (VLOOKUP(2,Tablas!$A$747:$G$749,6,TRUE)), 0)))))), (IF($F$18=1,(IF(1-$F$20=0, 0, (IF(1-$F$20=1,(VLOOKUP(1,Tablas!$A$747:$G$749,6,TRUE)),0)))),0)))))))))))))), (IF($F$18=0, 0, (IF($F$20>$F$18, (VLOOKUP($F$18,Tablas!$A$747:$G$749,6,TRUE)), (IF($F$18=4,(IF(4-$F$20=0, 0, (IF(4-$F$20=1, (VLOOKUP(1,Tablas!$A$747:$G$749,6,TRUE)), (IF(4-$F$20=2, (VLOOKUP(2,Tablas!$A$747:$G$749,6,TRUE)), (IF(4-$F$20=3, (VLOOKUP(3,Tablas!$A$747:$G$749,6,TRUE)), (IF(4-$F$20=4, (VLOOKUP(3,Tablas!$A$747:$G$749,6,TRUE)), 0)))))))))), (IF($F$18=5,(IF(5-$F$20=0, (VLOOKUP(1,Tablas!$A$747:$G$749,6,TRUE)), (IF(5-$F$20=1, (VLOOKUP(1,Tablas!$A$747:$G$749,6,TRUE)), (IF(5-$F$20=2, (VLOOKUP(2,Tablas!$A$747:$G$749,6,TRUE)), (IF(5-$F$20=3, (VLOOKUP(3,Tablas!$A$747:$G$749,6,TRUE)), (IF(5-$F$20=4, (VLOOKUP(3,Tablas!$A$747:$G$749,6,TRUE)), (VLOOKUP(3,Tablas!$A$747:$G$749,6,TRUE)))))))))))), (IF($F$18=6,(IF(6-$F$20=0, (VLOOKUP(2,Tablas!$A$747:$G$749,6,TRUE)), (IF(6-$F$20=1, (VLOOKUP(2,Tablas!$A$747:$G$749,6,TRUE)), (IF(6-$F$20=2, (VLOOKUP(2,Tablas!$A$747:$G$749,6,TRUE)), (IF(6-$F$20=3, (VLOOKUP(3,Tablas!$A$747:$G$749,6,TRUE)), (IF(6-$F$20=4, (VLOOKUP(3,Tablas!$A$747:$G$749,6,TRUE)), (VLOOKUP(3,Tablas!$A$747:$G$749,6,TRUE)))))))))))), (IF($F$18>6,(IF(7-$F$20=0, (VLOOKUP(3,Tablas!$A$747:$G$749,6,TRUE)), (IF(7-$F$20=1, (VLOOKUP(3,Tablas!$A$747:$G$749,6,TRUE)), (IF(7-$F$20=2, (VLOOKUP(3,Tablas!$A$747:$G$749,6,TRUE)), (IF(7-$F$20=3, (VLOOKUP(3,Tablas!$A$747:$G$749,6,TRUE)), (IF(7-$F$20=4, (VLOOKUP(3,Tablas!$A$747:$G$749,6,TRUE)), (VLOOKUP(3,Tablas!$A$747:$G$749,6,TRUE)))))))))))), (IF($F$18=3,(IF(3-$F$20=0,0, (IF(3-$F$20=1,(VLOOKUP(1,Tablas!$A$747:$G$749,6,TRUE)), (IF(3-$F$20=2, (VLOOKUP(2,Tablas!$A$747:$G$749,6,TRUE)), (VLOOKUP(3,Tablas!$A$747:$G$749,6,TRUE)))))))), (IF($F$18=2,(IF(2-$F$20=0, 0, (IF(2-$F$20=1,(VLOOKUP(1,Tablas!$A$747:$G$749,6,TRUE)), (IF(2-$F$20=2, (VLOOKUP(2,Tablas!$A$747:$G$749,6,TRUE)), 0)))))), (IF($F$18=1,(IF(1-$F$20=0, 0, (IF(1-$F$20=1,(VLOOKUP(1,Tablas!$A$747:$G$749,6,TRUE)),0)))),0))))))))))))))))))) -> 560.45 | K53: =IF($F$16=1, (IF($F$18=0, 0, (IF($F$20>$F$18, (VLOOKUP($F$18,Tablas!$A$747:$G$749,7,TRUE)), (IF($F$18>4,(IF($F$20=0, (VLOOKUP(3,Tablas!$A$747:$G$749,7,TRUE)), (IF($F$20=1, (VLOOKUP(3,Tablas!$A$747:$G$749,7,TRUE)), (IF($F$20=2, (VLOOKUP(3,Tablas!$A$747:$G$749,7,TRUE)), (VLOOKUP(3,Tablas!$A$747:$G$749,7,TRUE)))))))), (IF($F$18=4,(IF(4-$F$20=0,(VLOOKUP(2,Tablas!$A$747:$G$749,7,TRUE)), (IF(4-$F$20=1,(VLOOKUP(2,Tablas!$A$747:$G$749,7,TRUE)), (IF(4-$F$20=2, (VLOOKUP(2,Tablas!$A$747:$G$749,7,TRUE)), (VLOOKUP(3,Tablas!$A$747:$G$749,7,TRUE)))))))), (IF($F$18=3,(IF(3-$F$20=0,(VLOOKUP(1,Tablas!$A$747:$G$749,7,TRUE)), (IF(3-$F$20=1,(VLOOKUP(1,Tablas!$A$747:$G$749,7,TRUE)), (IF(3-$F$20=2, (VLOOKUP(2,Tablas!$A$747:$G$749,7,TRUE)), (VLOOKUP(3,Tablas!$A$747:$G$749,7,TRUE)))))))), (IF($F$18=2,(IF(2-$F$20=0, 0, (IF(2-$F$20=1,(VLOOKUP(1,Tablas!$A$747:$G$749,7,TRUE)), (IF(2-$F$20=2, (VLOOKUP(2,Tablas!$A$747:$G$749,7,TRUE)), 0)))))), (IF($F$18=1,(IF(1-$F$20=0, 0, (IF(1-$F$20=1,(VLOOKUP(1,Tablas!$A$747:$G$749,7,TRUE)),0)))),0)))))))))))))), (IF($F$18=0, 0, (IF($F$20>$F$18, (VLOOKUP($F$18,Tablas!$A$747:$G$749,7,TRUE)), (IF($F$18=4,(IF(4-$F$20=0, 0, (IF(4-$F$20=1, (VLOOKUP(1,Tablas!$A$747:$G$749,7,TRUE)), (IF(4-$F$20=2, (VLOOKUP(2,Tablas!$A$747:$G$749,7,TRUE)), (IF(4-$F$20=3, (VLOOKUP(3,Tablas!$A$747:$G$749,7,TRUE)), (IF(4-$F$20=4, (VLOOKUP(3,Tablas!$A$747:$G$749,7,TRUE)), 0)))))))))), (IF($F$18=5,(IF(5-$F$20=0, (VLOOKUP(1,Tablas!$A$747:$G$749,7,TRUE)), (IF(5-$F$20=1, (VLOOKUP(1,Tablas!$A$747:$G$749,7,TRUE)), (IF(5-$F$20=2, (VLOOKUP(2,Tablas!$A$747:$G$749,7,TRUE)), (IF(5-$F$20=3, (VLOOKUP(3,Tablas!$A$747:$G$749,7,TRUE)), (IF(5-$F$20=4, (VLOOKUP(3,Tablas!$A$747:$G$749,7,TRUE)), (VLOOKUP(3,Tablas!$A$747:$G$749,7,TRUE)))))))))))), (IF($F$18=6,(IF(6-$F$20=0, (VLOOKUP(2,Tablas!$A$747:$G$749,7,TRUE)), (IF(6-$F$20=1, (VLOOKUP(2,Tablas!$A$747:$G$749,7,TRUE)), (IF(6-$F$20=2, (VLOOKUP(2,Tablas!$A$747:$G$749,7,TRUE)), (IF(6-$F$20=3, (VLOOKUP(3,Tablas!$A$747:$G$749,7,TRUE)), (IF(6-$F$20=4, (VLOOKUP(3,Tablas!$A$747:$G$749,7,TRUE)), (VLOOKUP(3,Tablas!$A$747:$G$749,7,TRUE)))))))))))), (IF($F$18>6,(IF(7-$F$20=0, (VLOOKUP(3,Tablas!$A$747:$G$749,7,TRUE)), (IF(7-$F$20=1, (VLOOKUP(3,Tablas!$A$747:$G$749,7,TRUE)), (IF(7-$F$20=2, (VLOOKUP(3,Tablas!$A$747:$G$749,7,TRUE)), (IF(7-$F$20=3, (VLOOKUP(3,Tablas!$A$747:$G$749,7,TRUE)), (IF(7-$F$20=4, (VLOOKUP(3,Tablas!$A$747:$G$749,7,TRUE)), (VLOOKUP(3,Tablas!$A$747:$G$749,7,TRUE)))))))))))), (IF($F$18=3,(IF(3-$F$20=0,0, (IF(3-$F$20=1,(VLOOKUP(1,Tablas!$A$747:$G$749,7,TRUE)), (IF(3-$F$20=2, (VLOOKUP(2,Tablas!$A$747:$G$749,7,TRUE)), (VLOOKUP(3,Tablas!$A$747:$G$749,7,TRUE)))))))), (IF($F$18=2,(IF(2-$F$20=0, 0, (IF(2-$F$20=1,(VLOOKUP(1,Tablas!$A$747:$G$749,7,TRUE)), (IF(2-$F$20=2, (VLOOKUP(2,Tablas!$A$747:$G$749,7,TRUE)), 0)))))), (IF($F$18=1,(IF(1-$F$20=0, 0, (IF(1-$F$20=1,(VLOOKUP(1,Tablas!$A$747:$G$749,7,TRUE)),0)))),0))))))))))))))))))) -> 434.775
E54: Total de Prima neta | G54: =SUM(G51:G53) -> 21248.15 | H54: =SUM(H51:H53) -> 18624.1 | I54: =SUM(I51:I53) -> 15228.4 | J54: =SUM(J51:J53) -> 13205.225 | K54: =SUM(K51:K53) -> 10241.275
E55: Descuento por variante con coaseguro fuera del país de residencia | G55: =IF('INGRESO DE DATOS'!$H$22,G54*-25%,0) -> 0 | H55: =IF('INGRESO DE DATOS'!$H$22,H54*-25%,0) -> 0 | I55: =IF('INGRESO DE DATOS'!$H$22,I54*-25%,0) -> 0 | J55: =IF('INGRESO DE DATOS'!$H$22,J54*-25%,0) -> 0 | K55: =IF('INGRESO DE DATOS'!$H$22,K54*-25%,0) -> 0
E56: Tarifa administrativa anual | G56: 75 | H56: 75 | I56: 75 | J56: 75 | K56: 75
E57: IVA (12%) | G57: =(G54+G56)*0% -> 0 | H57: =(H54+H56)*0% -> 0 | I57: 0 | J57: 0 | K57: 0
E58: TOTAL de primera cuota | G58: =SUM(G54:G57) -> 21323.15 | H58: =SUM(H54:H57) -> 18699.1 | I58: 15303.4 | J58: 13280.225 | K58: 10316.275
E59: Costo de tarifa trimestral 2 a 4 | G59: =SUM(G54:G55) -> 21248.15 | H59: =SUM(H54:H55) -> 18624.1 | I59: 15228.4 | J59: 13205.225 | K59: 10241.275
E60: TOTAL ANUAL | G60: =G58+(G59*3) -> 85067.6 | H60: =H58+(H59*3) -> 74571.4 | I60: 60988.6 | J60: =J58+(J59*3) -> 52895.9 | K60: 41040.1
E61: Ahorros en tarifas de prima para niños | G61: =IF($F$16=1,IF($F$18=0,0,IF($F$20=0,0,IF($F$20=1,(VLOOKUP(1,Tablas!$A$747:$G$749,3,TRUE)),(VLOOKUP(2,Tablas!$A$747:$G$749,3,TRUE))))), IF($F$18=0,0,IF($F$20=0,0,IF($F$20=1,(VLOOKUP(1,Tablas!$A$747:$G$749,3,TRUE)),IF($F$20=2,(VLOOKUP(2,Tablas!$A$747:$G$749,3,TRUE)), (VLOOKUP(3,Tablas!$A$747:$G$749,3,TRUE))))))) -> 1479.225 | H61: =IF($F$16=1,IF($F$18=0,0,IF($F$20=0,0,IF($F$20=1,(VLOOKUP(1,Tablas!$A$747:$G$749,4,TRUE)),(VLOOKUP(2,Tablas!$A$747:$G$749,4,TRUE))))), IF($F$18=0,0,IF($F$20=0,0,IF($F$20=1,(VLOOKUP(1,Tablas!$A$747:$G$749,4,TRUE)),IF($F$20=2,(VLOOKUP(2,Tablas!$A$747:$G$749,4,TRUE)), (VLOOKUP(3,Tablas!$A$747:$G$749,4,TRUE))))))) -> 1296.625 | I61: =IF($F$16=1,IF($F$18=0,0,IF($F$20=0,0,IF($F$20=1,(VLOOKUP(1,Tablas!$A$747:$G$749,5,TRUE)),(VLOOKUP(2,Tablas!$A$747:$G$749,5,TRUE))))), IF($F$18=0,0,IF($F$20=0,0,IF($F$20=1,(VLOOKUP(1,Tablas!$A$747:$G$749,5,TRUE)),IF($F$20=2,(VLOOKUP(2,Tablas!$A$747:$G$749,5,TRUE)), (VLOOKUP(3,Tablas!$A$747:$G$749,5,TRUE))))))) -> 1098.075 | J61: =IF($F$16=1,IF($F$18=0,0,IF($F$20=0,0,IF($F$20=1,(VLOOKUP(1,Tablas!$A$747:$G$749,6,TRUE)),(VLOOKUP(2,Tablas!$A$747:$G$749,6,TRUE))))), IF($F$18=0,0,IF($F$20=0,0,IF($F$20=1,(VLOOKUP(1,Tablas!$A$747:$G$749,6,TRUE)),IF($F$20=2,(VLOOKUP(2,Tablas!$A$747:$G$749,6,TRUE)), (VLOOKUP(3,Tablas!$A$747:$G$749,6,TRUE))))))) -> 952.05 | K61: =IF($F$16=1,IF($F$18=0,0,IF($F$20=0,0,IF($F$20=1,(VLOOKUP(1,Tablas!$A$747:$G$749,7,TRUE)),(VLOOKUP(2,Tablas!$A$747:$G$749,7,TRUE))))), IF($F$18=0,0,IF($F$20=0,0,IF($F$20=1,(VLOOKUP(1,Tablas!$A$747:$G$749,7,TRUE)),IF($F$20=2,(VLOOKUP(2,Tablas!$A$747:$G$749,7,TRUE)), (VLOOKUP(3,Tablas!$A$747:$G$749,7,TRUE))))))) -> 738.65
E63: Tarifas mensuales
E64: Prima para Asegurado Titular | G64: =VLOOKUP($J$16,Tablas!$A$80:$G$146,3,TRUE) -> 2595.693333 | H64: =VLOOKUP($J$16,Tablas!$A$80:$G$146,4,TRUE) -> 2275.093333 | I64: =VLOOKUP($J$16,Tablas!$A$80:$G$146,5,TRUE) -> 1853.413333 | J64: =VLOOKUP($J$16,Tablas!$A$80:$G$146,6,TRUE) -> 1607.106667 | K64: =VLOOKUP($J$16,Tablas!$A$80:$G$146,7,TRUE) -> 1246.466667
E65: Prima para conyuge | G65: =IF($F$16=1,0,(VLOOKUP($J$18,Tablas!$A$80:$G$146,3,TRUE))) -> 4320.586667 | H65: =IF($F$16=1,0,(VLOOKUP($J$18,Tablas!$A$80:$G$146,4,TRUE))) -> 3787 | I65: =IF($F$16=1,0,(VLOOKUP($J$18,Tablas!$A$80:$G$146,5,TRUE))) -> 3095.773333 | J65: =IF($F$16=1,0,(VLOOKUP($J$18,Tablas!$A$80:$G$146,6,TRUE))) -> 2684.453333 | K65: =IF($F$16=1,0,(VLOOKUP($J$18,Tablas!$A$80:$G$146,7,TRUE))) -> 2081.8
E66: Prima para hijo (s) | G66: =IF($F$16=1, (IF($F$18=0, 0, (IF($F$20>$F$18, (VLOOKUP($F$18,Tablas!$A$147:$G$149,3,TRUE)), (IF($F$18>4,(IF($F$20=0, (VLOOKUP(3,Tablas!$A$147:$G$149,3,TRUE)), (IF($F$20=1, (VLOOKUP(3,Tablas!$A$147:$G$149,3,TRUE)), (IF($F$20=2, (VLOOKUP(3,Tablas!$A$147:$G$149,3,TRUE)), (VLOOKUP(3,Tablas!$A$147:$G$149,3,TRUE)))))))), (IF($F$18=4,(IF(4-$F$20=0,(VLOOKUP(2,Tablas!$A$147:$G$149,3,TRUE)), (IF(4-$F$20=1,(VLOOKUP(2,Tablas!$A$147:$G$149,3,TRUE)), (IF(4-$F$20=2, (VLOOKUP(2,Tablas!$A$147:$G$149,3,TRUE)), (VLOOKUP(3,Tablas!$A$147:$G$149,3,TRUE)))))))), (IF($F$18=3,(IF(3-$F$20=0,(VLOOKUP(1,Tablas!$A$147:$G$149,3,TRUE)), (IF(3-$F$20=1,(VLOOKUP(1,Tablas!$A$147:$G$149,3,TRUE)), (IF(3-$F$20=2, (VLOOKUP(2,Tablas!$A$147:$G$149,3,TRUE)), (VLOOKUP(3,Tablas!$A$147:$G$149,3,TRUE)))))))), (IF($F$18=2,(IF(2-$F$20=0, 0, (IF(2-$F$20=1,(VLOOKUP(1,Tablas!$A$147:$G$149,3,TRUE)), (IF(2-$F$20=2, (VLOOKUP(2,Tablas!$A$147:$G$149,3,TRUE)), 0)))))), (IF($F$18=1,(IF(1-$F$20=0, 0, (IF(1-$F$20=1,(VLOOKUP(1,Tablas!$A$147:$G$149,3,TRUE)),0)))),0)))))))))))))), (IF($F$18=0, 0, (IF($F$20>$F$18, (VLOOKUP($F$18,Tablas!$A$147:$G$149,3,TRUE)), (IF($F$18=4,(IF(4-$F$20=0, 0, (IF(4-$F$20=1, (VLOOKUP(1,Tablas!$A$147:$G$149,3,TRUE)), (IF(4-$F$20=2, (VLOOKUP(2,Tablas!$A$147:$G$149,3,TRUE)), (IF(4-$F$20=3, (VLOOKUP(3,Tablas!$A$147:$G$149,3,TRUE)), (IF(4-$F$20=4, (VLOOKUP(3,Tablas!$A$147:$G$149,3,TRUE)), 0)))))))))), (IF($F$18=5,(IF(5-$F$20=0, (VLOOKUP(1,Tablas!$A$147:$G$149,3,TRUE)), (IF(5-$F$20=1, (VLOOKUP(1,Tablas!$A$147:$G$149,3,TRUE)), (IF(5-$F$20=2, (VLOOKUP(2,Tablas!$A$147:$G$149,3,TRUE)), (IF(5-$F$20=3, (VLOOKUP(3,Tablas!$A$147:$G$149,3,TRUE)), (IF(5-$F$20=4, (VLOOKUP(3,Tablas!$A$147:$G$149,3,TRUE)), (VLOOKUP(3,Tablas!$A$147:$G$149,3,TRUE)))))))))))), (IF($F$18=6,(IF(6-$F$20=0, (VLOOKUP(2,Tablas!$A$147:$G$149,3,TRUE)), (IF(6-$F$20=1, (VLOOKUP(2,Tablas!$A$147:$G$149,3,TRUE)), (IF(6-$F$20=2, (VLOOKUP(2,Tablas!$A$147:$G$149,3,TRUE)), (IF(6-$F$20=3, (VLOOKUP(3,Tablas!$A$147:$G$149,3,TRUE)), (IF(6-$F$20=4, (VLOOKUP(3,Tablas!$A$147:$G$149,3,TRUE)), (VLOOKUP(3,Tablas!$A$147:$G$149,3,TRUE)))))))))))), (IF($F$18>6,(IF(7-$F$20=0, (VLOOKUP(3,Tablas!$A$147:$G$149,3,TRUE)), (IF(7-$F$20=1, (VLOOKUP(3,Tablas!$A$147:$G$149,3,TRUE)), (IF(7-$F$20=2, (VLOOKUP(3,Tablas!$A$147:$G$149,3,TRUE)), (IF(7-$F$20=3, (VLOOKUP(3,Tablas!$A$147:$G$149,3,TRUE)), (IF(7-$F$20=4, (VLOOKUP(3,Tablas!$A$147:$G$149,3,TRUE)), (VLOOKUP(3,Tablas!$A$147:$G$149,3,TRUE)))))))))))), (IF($F$18=3,(IF(3-$F$20=0,0, (IF(3-$F$20=1,(VLOOKUP(1,Tablas!$A$147:$G$149,3,TRUE)), (IF(3-$F$20=2, (VLOOKUP(2,Tablas!$A$147:$G$149,3,TRUE)), (VLOOKUP(3,Tablas!$A$147:$G$149,3,TRUE)))))))), (IF($F$18=2,(IF(2-$F$20=0, 0, (IF(2-$F$20=1,(VLOOKUP(1,Tablas!$A$147:$G$149,3,TRUE)), (IF(2-$F$20=2, (VLOOKUP(2,Tablas!$A$147:$G$149,3,TRUE)), 0)))))), (IF($F$18=1,(IF(1-$F$20=0, 0, (IF(1-$F$20=1,(VLOOKUP(1,Tablas!$A$147:$G$149,3,TRUE)),0)))),0))))))))))))))))))) -> 295.2133333 | H66: =IF($F$16=1, (IF($F$18=0, 0, (IF($F$20>$F$18, (VLOOKUP($F$18,Tablas!$A$147:$G$149,4,TRUE)), (IF($F$18>4,(IF($F$20=0, (VLOOKUP(3,Tablas!$A$147:$G$149,4,TRUE)), (IF($F$20=1, (VLOOKUP(3,Tablas!$A$147:$G$149,4,TRUE)), (IF($F$20=2, (VLOOKUP(3,Tablas!$A$147:$G$149,4,TRUE)), (VLOOKUP(3,Tablas!$A$147:$G$149,4,TRUE)))))))), (IF($F$18=4,(IF(4-$F$20=0,(VLOOKUP(2,Tablas!$A$147:$G$149,4,TRUE)), (IF(4-$F$20=1,(VLOOKUP(2,Tablas!$A$147:$G$149,4,TRUE)), (IF(4-$F$20=2, (VLOOKUP(2,Tablas!$A$147:$G$149,4,TRUE)), (VLOOKUP(3,Tablas!$A$147:$G$149,4,TRUE)))))))), (IF($F$18=3,(IF(3-$F$20=0,(VLOOKUP(1,Tablas!$A$147:$G$149,4,TRUE)), (IF(3-$F$20=1,(VLOOKUP(1,Tablas!$A$147:$G$149,4,TRUE)), (IF(3-$F$20=2, (VLOOKUP(2,Tablas!$A$147:$G$149,4,TRUE)), (VLOOKUP(3,Tablas!$A$147:$G$149,4,TRUE)))))))), (IF($F$18=2,(IF(2-$F$20=0, 0, (IF(2-$F$20=1,(VLOOKUP(1,Tablas!$A$147:$G$149,4,TRUE)), (IF(2-$F$20=2, (VLOOKUP(2,Tablas!$A$147:$G$149,4,TRUE)), 0)))))), (IF($F$18=1,(IF(1-$F$20=0, 0, (IF(1-$F$20=1,(VLOOKUP(1,Tablas!$A$147:$G$149,4,TRUE)),0)))),0)))))))))))))), (IF($F$18=0, 0, (IF($F$20>$F$18, (VLOOKUP($F$18,Tablas!$A$147:$G$149,4,TRUE)), (IF($F$18=4,(IF(4-$F$20=0, 0, (IF(4-$F$20=1, (VLOOKUP(1,Tablas!$A$147:$G$149,4,TRUE)), (IF(4-$F$20=2, (VLOOKUP(2,Tablas!$A$147:$G$149,4,TRUE)), (IF(4-$F$20=3, (VLOOKUP(3,Tablas!$A$147:$G$149,4,TRUE)), (IF(4-$F$20=4, (VLOOKUP(3,Tablas!$A$147:$G$149,4,TRUE)), 0)))))))))), (IF($F$18=5,(IF(5-$F$20=0, (VLOOKUP(1,Tablas!$A$147:$G$149,4,TRUE)), (IF(5-$F$20=1, (VLOOKUP(1,Tablas!$A$147:$G$149,4,TRUE)), (IF(5-$F$20=2, (VLOOKUP(2,Tablas!$A$147:$G$149,4,TRUE)), (IF(5-$F$20=3, (VLOOKUP(3,Tablas!$A$147:$G$149,4,TRUE)), (IF(5-$F$20=4, (VLOOKUP(3,Tablas!$A$147:$G$149,4,TRUE)), (VLOOKUP(3,Tablas!$A$147:$G$149,4,TRUE)))))))))))), (IF($F$18=6,(IF(6-$F$20=0, (VLOOKUP(2,Tablas!$A$147:$G$149,4,TRUE)), (IF(6-$F$20=1, (VLOOKUP(2,Tablas!$A$147:$G$149,4,TRUE)), (IF(6-$F$20=2, (VLOOKUP(2,Tablas!$A$147:$G$149,4,TRUE)), (IF(6-$F$20=3, (VLOOKUP(3,Tablas!$A$147:$G$149,4,TRUE)), (IF(6-$F$20=4, (VLOOKUP(3,Tablas!$A$147:$G$149,4,TRUE)), (VLOOKUP(3,Tablas!$A$147:$G$149,4,TRUE)))))))))))), (IF($F$18>6,(IF(7-$F$20=0, (VLOOKUP(3,Tablas!$A$147:$G$149,4,TRUE)), (IF(7-$F$20=1, (VLOOKUP(3,Tablas!$A$147:$G$149,4,TRUE)), (IF(7-$F$20=2, (VLOOKUP(3,Tablas!$A$147:$G$149,4,TRUE)), (IF(7-$F$20=3, (VLOOKUP(3,Tablas!$A$147:$G$149,4,TRUE)), (IF(7-$F$20=4, (VLOOKUP(3,Tablas!$A$147:$G$149,4,TRUE)), (VLOOKUP(3,Tablas!$A$147:$G$149,4,TRUE)))))))))))), (IF($F$18=3,(IF(3-$F$20=0,0, (IF(3-$F$20=1,(VLOOKUP(1,Tablas!$A$147:$G$149,4,TRUE)), (IF(3-$F$20=2, (VLOOKUP(2,Tablas!$A$147:$G$149,4,TRUE)), (VLOOKUP(3,Tablas!$A$147:$G$149,4,TRUE)))))))), (IF($F$18=2,(IF(2-$F$20=0, 0, (IF(2-$F$20=1,(VLOOKUP(1,Tablas!$A$147:$G$149,4,TRUE)), (IF(2-$F$20=2, (VLOOKUP(2,Tablas!$A$147:$G$149,4,TRUE)), 0)))))), (IF($F$18=1,(IF(1-$F$20=0, 0, (IF(1-$F$20=1,(VLOOKUP(1,Tablas!$A$147:$G$149,4,TRUE)),0)))),0))))))))))))))))))) -> 258.8133333 | I66: =IF($F$16=1, (IF($F$18=0, 0, (IF($F$20>$F$18, (VLOOKUP($F$18,Tablas!$A$147:$G$149,5,TRUE)), (IF($F$18>4,(IF($F$20=0, (VLOOKUP(3,Tablas!$A$147:$G$149,5,TRUE)), (IF($F$20=1, (VLOOKUP(3,Tablas!$A$147:$G$149,5,TRUE)), (IF($F$20=2, (VLOOKUP(3,Tablas!$A$147:$G$149,5,TRUE)), (VLOOKUP(3,Tablas!$A$147:$G$149,5,TRUE)))))))), (IF($F$18=4,(IF(4-$F$20=0,(VLOOKUP(2,Tablas!$A$147:$G$149,5,TRUE)), (IF(4-$F$20=1,(VLOOKUP(2,Tablas!$A$147:$G$149,5,TRUE)), (IF(4-$F$20=2, (VLOOKUP(2,Tablas!$A$147:$G$149,5,TRUE)), (VLOOKUP(3,Tablas!$A$147:$G$149,5,TRUE)))))))), (IF($F$18=3,(IF(3-$F$20=0,(VLOOKUP(1,Tablas!$A$147:$G$149,5,TRUE)), (IF(3-$F$20=1,(VLOOKUP(1,Tablas!$A$147:$G$149,5,TRUE)), (IF(3-$F$20=2, (VLOOKUP(2,Tablas!$A$147:$G$149,5,TRUE)), (VLOOKUP(3,Tablas!$A$147:$G$149,5,TRUE)))))))), (IF($F$18=2,(IF(2-$F$20=0, 0, (IF(2-$F$20=1,(VLOOKUP(1,Tablas!$A$147:$G$149,5,TRUE)), (IF(2-$F$20=2, (VLOOKUP(2,Tablas!$A$147:$G$149,5,TRUE)), 0)))))), (IF($F$18=1,(IF(1-$F$20=0, 0, (IF(1-$F$20=1,(VLOOKUP(1,Tablas!$A$147:$G$149,5,TRUE)),0)))),0)))))))))))))), (IF($F$18=0, 0, (IF($F$20>$F$18, (VLOOKUP($F$18,Tablas!$A$147:$G$149,5,TRUE)), (IF($F$18=4,(IF(4-$F$20=0, 0, (IF(4-$F$20=1, (VLOOKUP(1,Tablas!$A$147:$G$149,5,TRUE)), (IF(4-$F$20=2, (VLOOKUP(2,Tablas!$A$147:$G$149,5,TRUE)), (IF(4-$F$20=3, (VLOOKUP(3,Tablas!$A$147:$G$149,5,TRUE)), (IF(4-$F$20=4, (VLOOKUP(3,Tablas!$A$147:$G$149,5,TRUE)), 0)))))))))), (IF($F$18=5,(IF(5-$F$20=0, (VLOOKUP(1,Tablas!$A$147:$G$149,5,TRUE)), (IF(5-$F$20=1, (VLOOKUP(1,Tablas!$A$147:$G$149,5,TRUE)), (IF(5-$F$20=2, (VLOOKUP(2,Tablas!$A$147:$G$149,5,TRUE)), (IF(5-$F$20=3, (VLOOKUP(3,Tablas!$A$147:$G$149,5,TRUE)), (IF(5-$F$20=4, (VLOOKUP(3,Tablas!$A$147:$G$149,5,TRUE)), (VLOOKUP(3,Tablas!$A$147:$G$149,5,TRUE)))))))))))), (IF($F$18=6,(IF(6-$F$20=0, (VLOOKUP(2,Tablas!$A$147:$G$149,5,TRUE)), (IF(6-$F$20=1, (VLOOKUP(2,Tablas!$A$147:$G$149,5,TRUE)), (IF(6-$F$20=2, (VLOOKUP(2,Tablas!$A$147:$G$149,5,TRUE)), (IF(6-$F$20=3, (VLOOKUP(3,Tablas!$A$147:$G$149,5,TRUE)), (IF(6-$F$20=4, (VLOOKUP(3,Tablas!$A$147:$G$149,5,TRUE)), (VLOOKUP(3,Tablas!$A$147:$G$149,5,TRUE)))))))))))), (IF($F$18>6,(IF(7-$F$20=0, (VLOOKUP(3,Tablas!$A$147:$G$149,5,TRUE)), (IF(7-$F$20=1, (VLOOKUP(3,Tablas!$A$147:$G$149,5,TRUE)), (IF(7-$F$20=2, (VLOOKUP(3,Tablas!$A$147:$G$149,5,TRUE)), (IF(7-$F$20=3, (VLOOKUP(3,Tablas!$A$147:$G$149,5,TRUE)), (IF(7-$F$20=4, (VLOOKUP(3,Tablas!$A$147:$G$149,5,TRUE)), (VLOOKUP(3,Tablas!$A$147:$G$149,5,TRUE)))))))))))), (IF($F$18=3,(IF(3-$F$20=0,0, (IF(3-$F$20=1,(VLOOKUP(1,Tablas!$A$147:$G$149,5,TRUE)), (IF(3-$F$20=2, (VLOOKUP(2,Tablas!$A$147:$G$149,5,TRUE)), (VLOOKUP(3,Tablas!$A$147:$G$149,5,TRUE)))))))), (IF($F$18=2,(IF(2-$F$20=0, 0, (IF(2-$F$20=1,(VLOOKUP(1,Tablas!$A$147:$G$149,5,TRUE)), (IF(2-$F$20=2, (VLOOKUP(2,Tablas!$A$147:$G$149,5,TRUE)), 0)))))), (IF($F$18=1,(IF(1-$F$20=0, 0, (IF(1-$F$20=1,(VLOOKUP(1,Tablas!$A$147:$G$149,5,TRUE)),0)))),0))))))))))))))))))) -> 219.24 | J66: =IF($F$16=1, (IF($F$18=0, 0, (IF($F$20>$F$18, (VLOOKUP($F$18,Tablas!$A$147:$G$149,6,TRUE)), (IF($F$18>4,(IF($F$20=0, (VLOOKUP(3,Tablas!$A$147:$G$149,6,TRUE)), (IF($F$20=1, (VLOOKUP(3,Tablas!$A$147:$G$149,6,TRUE)), (IF($F$20=2, (VLOOKUP(3,Tablas!$A$147:$G$149,6,TRUE)), (VLOOKUP(3,Tablas!$A$147:$G$149,6,TRUE)))))))), (IF($F$18=4,(IF(4-$F$20=0,(VLOOKUP(2,Tablas!$A$147:$G$149,6,TRUE)), (IF(4-$F$20=1,(VLOOKUP(2,Tablas!$A$147:$G$149,6,TRUE)), (IF(4-$F$20=2, (VLOOKUP(2,Tablas!$A$147:$G$149,6,TRUE)), (VLOOKUP(3,Tablas!$A$147:$G$149,6,TRUE)))))))), (IF($F$18=3,(IF(3-$F$20=0,(VLOOKUP(1,Tablas!$A$147:$G$149,6,TRUE)), (IF(3-$F$20=1,(VLOOKUP(1,Tablas!$A$147:$G$149,6,TRUE)), (IF(3-$F$20=2, (VLOOKUP(2,Tablas!$A$147:$G$149,6,TRUE)), (VLOOKUP(3,Tablas!$A$147:$G$149,6,TRUE)))))))), (IF($F$18=2,(IF(2-$F$20=0, 0, (IF(2-$F$20=1,(VLOOKUP(1,Tablas!$A$147:$G$149,6,TRUE)), (IF(2-$F$20=2, (VLOOKUP(2,Tablas!$A$147:$G$149,6,TRUE)), 0)))))), (IF($F$18=1,(IF(1-$F$20=0, 0, (IF(1-$F$20=1,(VLOOKUP(1,Tablas!$A$147:$G$149,6,TRUE)),0)))),0)))))))))))))), (IF($F$18=0, 0, (IF($F$20>$F$18, (VLOOKUP($F$18,Tablas!$A$147:$G$149,6,TRUE)), (IF($F$18=4,(IF(4-$F$20=0, 0, (IF(4-$F$20=1, (VLOOKUP(1,Tablas!$A$147:$G$149,6,TRUE)), (IF(4-$F$20=2, (VLOOKUP(2,Tablas!$A$147:$G$149,6,TRUE)), (IF(4-$F$20=3, (VLOOKUP(3,Tablas!$A$147:$G$149,6,TRUE)), (IF(4-$F$20=4, (VLOOKUP(3,Tablas!$A$147:$G$149,6,TRUE)), 0)))))))))), (IF($F$18=5,(IF(5-$F$20=0, (VLOOKUP(1,Tablas!$A$147:$G$149,6,TRUE)), (IF(5-$F$20=1, (VLOOKUP(1,Tablas!$A$147:$G$149,6,TRUE)), (IF(5-$F$20=2, (VLOOKUP(2,Tablas!$A$147:$G$149,6,TRUE)), (IF(5-$F$20=3, (VLOOKUP(3,Tablas!$A$147:$G$149,6,TRUE)), (IF(5-$F$20=4, (VLOOKUP(3,Tablas!$A$147:$G$149,6,TRUE)), (VLOOKUP(3,Tablas!$A$147:$G$149,6,TRUE)))))))))))), (IF($F$18=6,(IF(6-$F$20=0, (VLOOKUP(2,Tablas!$A$147:$G$149,6,TRUE)), (IF(6-$F$20=1, (VLOOKUP(2,Tablas!$A$147:$G$149,6,TRUE)), (IF(6-$F$20=2, (VLOOKUP(2,Tablas!$A$147:$G$149,6,TRUE)), (IF(6-$F$20=3, (VLOOKUP(3,Tablas!$A$147:$G$149,6,TRUE)), (IF(6-$F$20=4, (VLOOKUP(3,Tablas!$A$147:$G$149,6,TRUE)), (VLOOKUP(3,Tablas!$A$147:$G$149,6,TRUE)))))))))))), (IF($F$18>6,(IF(7-$F$20=0, (VLOOKUP(3,Tablas!$A$147:$G$149,6,TRUE)), (IF(7-$F$20=1, (VLOOKUP(3,Tablas!$A$147:$G$149,6,TRUE)), (IF(7-$F$20=2, (VLOOKUP(3,Tablas!$A$147:$G$149,6,TRUE)), (IF(7-$F$20=3, (VLOOKUP(3,Tablas!$A$147:$G$149,6,TRUE)), (IF(7-$F$20=4, (VLOOKUP(3,Tablas!$A$147:$G$149,6,TRUE)), (VLOOKUP(3,Tablas!$A$147:$G$149,6,TRUE)))))))))))), (IF($F$18=3,(IF(3-$F$20=0,0, (IF(3-$F$20=1,(VLOOKUP(1,Tablas!$A$147:$G$149,6,TRUE)), (IF(3-$F$20=2, (VLOOKUP(2,Tablas!$A$147:$G$149,6,TRUE)), (VLOOKUP(3,Tablas!$A$147:$G$149,6,TRUE)))))))), (IF($F$18=2,(IF(2-$F$20=0, 0, (IF(2-$F$20=1,(VLOOKUP(1,Tablas!$A$147:$G$149,6,TRUE)), (IF(2-$F$20=2, (VLOOKUP(2,Tablas!$A$147:$G$149,6,TRUE)), 0)))))), (IF($F$18=1,(IF(1-$F$20=0, 0, (IF(1-$F$20=1,(VLOOKUP(1,Tablas!$A$147:$G$149,6,TRUE)),0)))),0))))))))))))))))))) -> 190.2133333 | K66: =IF($F$16=1, (IF($F$18=0, 0, (IF($F$20>$F$18, (VLOOKUP($F$18,Tablas!$A$147:$G$149,7,TRUE)), (IF($F$18>4,(IF($F$20=0, (VLOOKUP(3,Tablas!$A$147:$G$149,7,TRUE)), (IF($F$20=1, (VLOOKUP(3,Tablas!$A$147:$G$149,7,TRUE)), (IF($F$20=2, (VLOOKUP(3,Tablas!$A$147:$G$149,7,TRUE)), (VLOOKUP(3,Tablas!$A$147:$G$149,7,TRUE)))))))), (IF($F$18=4,(IF(4-$F$20=0,(VLOOKUP(2,Tablas!$A$147:$G$149,7,TRUE)), (IF(4-$F$20=1,(VLOOKUP(2,Tablas!$A$147:$G$149,7,TRUE)), (IF(4-$F$20=2, (VLOOKUP(2,Tablas!$A$147:$G$149,7,TRUE)), (VLOOKUP(3,Tablas!$A$147:$G$149,7,TRUE)))))))), (IF($F$18=3,(IF(3-$F$20=0,(VLOOKUP(1,Tablas!$A$147:$G$149,7,TRUE)), (IF(3-$F$20=1,(VLOOKUP(1,Tablas!$A$147:$G$149,7,TRUE)), (IF(3-$F$20=2, (VLOOKUP(2,Tablas!$A$147:$G$149,7,TRUE)), (VLOOKUP(3,Tablas!$A$147:$G$149,7,TRUE)))))))), (IF($F$18=2,(IF(2-$F$20=0, 0, (IF(2-$F$20=1,(VLOOKUP(1,Tablas!$A$147:$G$149,7,TRUE)), (IF(2-$F$20=2, (VLOOKUP(2,Tablas!$A$147:$G$149,7,TRUE)), 0)))))), (IF($F$18=1,(IF(1-$F$20=0, 0, (IF(1-$F$20=1,(VLOOKUP(1,Tablas!$A$147:$G$149,7,TRUE)),0)))),0)))))))))))))), (IF($F$18=0, 0, (IF($F$20>$F$18, (VLOOKUP($F$18,Tablas!$A$147:$G$149,7,TRUE)), (IF($F$18=4,(IF(4-$F$20=0, 0, (IF(4-$F$20=1, (VLOOKUP(1,Tablas!$A$147:$G$149,7,TRUE)), (IF(4-$F$20=2, (VLOOKUP(2,Tablas!$A$147:$G$149,7,TRUE)), (IF(4-$F$20=3, (VLOOKUP(3,Tablas!$A$147:$G$149,7,TRUE)), (IF(4-$F$20=4, (VLOOKUP(3,Tablas!$A$147:$G$149,7,TRUE)), 0)))))))))), (IF($F$18=5,(IF(5-$F$20=0, (VLOOKUP(1,Tablas!$A$147:$G$149,7,TRUE)), (IF(5-$F$20=1, (VLOOKUP(1,Tablas!$A$147:$G$149,7,TRUE)), (IF(5-$F$20=2, (VLOOKUP(2,Tablas!$A$147:$G$149,7,TRUE)), (IF(5-$F$20=3, (VLOOKUP(3,Tablas!$A$147:$G$149,7,TRUE)), (IF(5-$F$20=4, (VLOOKUP(3,Tablas!$A$147:$G$149,7,TRUE)), (VLOOKUP(3,Tablas!$A$147:$G$149,7,TRUE)))))))))))), (IF($F$18=6,(IF(6-$F$20=0, (VLOOKUP(2,Tablas!$A$147:$G$149,7,TRUE)), (IF(6-$F$20=1, (VLOOKUP(2,Tablas!$A$147:$G$149,7,TRUE)), (IF(6-$F$20=2, (VLOOKUP(2,Tablas!$A$147:$G$149,7,TRUE)), (IF(6-$F$20=3, (VLOOKUP(3,Tablas!$A$147:$G$149,7,TRUE)), (IF(6-$F$20=4, (VLOOKUP(3,Tablas!$A$147:$G$149,7,TRUE)), (VLOOKUP(3,Tablas!$A$147:$G$149,7,TRUE)))))))))))), (IF($F$18>6,(IF(7-$F$20=0, (VLOOKUP(3,Tablas!$A$147:$G$149,7,TRUE)),a (IF(7-$F$20=1, (VLOOKUP(3,Tablas!$A$147:$G$149,7,TRUE)), (IF(7-$F$20=2, (VLOOKUP(3,Tablas!$A$147:$G$149,7,TRUE)), (IF(7-$F$20=3, (VLOOKUP(3,Tablas!$A$147:$G$149,7,TRUE)), (IF(7-$F$20=4, (VLOOKUP(3,Tablas!$A$147:$G$149,7,TRUE)), (VLOOKUP(3,Tablas!$A$147:$G$149,7,TRUE)))))))))))), (IF($F$18=3,(IF(3-$F$20=0,0, (IF(3-$F$20=1,(VLOOKUP(1,Tablas!$A$147:$G$149,7,TRUE)), (IF(3-$F$20=2, (VLOOKUP(2,Tablas!$A$147:$G$149,7,TRUE)), (VLOOKUP(3,Tablas!$A$147:$G$149,7,TRUE)))))))), (IF($F$18=2,(IF(2-$F$20=0, 0, (IF(2-$F$20=1,(VLOOKUP(1,Tablas!$A$147:$G$149,7,TRUE)), (IF(2-$F$20=2, (VLOOKUP(2,Tablas!$A$147:$G$149,7,TRUE)), 0)))))), (IF($F$18=1,(IF(1-$F$20=0, 0, (IF(1-$F$20=1,(VLOOKUP(1,Tablas!$A$147:$G$149,7,TRUE)),0)))),0))))))))))))))))))) -> 147.56
E67: Total de Prima neta | G67: =SUM(G64:G66) -> 7211.493333 | H67: =SUM(H64:H66) -> 6320.906667 | I67: =SUM(I64:I66) -> 5168.426667 | J67: =SUM(J64:J66) -> 4481.773333 | K67: =SUM(K64:K66) -> 3475.826667
E68: Descuento por variante con coaseguro fuera del país de residencia | G68: =IF('INGRESO DE DATOS'!$H$22,G67*-25%,0) -> 0 | H68: =IF('INGRESO DE DATOS'!$H$22,H67*-25%,0) -> 0 | I68: =IF('INGRESO DE DATOS'!$H$22,I67*-25%,0) -> 0 | J68: =IF('INGRESO DE DATOS'!$H$22,J67*-25%,0) -> 0 | K68: =IF('INGRESO DE DATOS'!$H$22,K67*-25%,0) -> 0
E69: Tarifa administrativa anual | G69: 75 | H69: 75 | I69: 75 | J69: 75 | K69: 75
E70: IVA (12%) | G70: =(G67+G69)*0% -> 0 | H70: =(H67+H69)*0% -> 0 | I70: 0 | J70: 0 | K70: 0
E71: TOTAL de primera cuota | G71: =SUM(G67:G70) -> 7286.493333 | H71: =SUM(H67:H70) -> 6395.906667 | I71: =SUM(I67:I70) -> 5243.426667 | J71: =SUM(J67:J70) -> 4556.773333 | K71: =SUM(K67:K70) -> 3550.826667
E72: Costo de tarifa mensual 2 a 12 | G72: =SUM(G67:G68) -> 7211.493333 | H72: =SUM(H67:H68) -> 6320.906667 | I72: 5168.426667 | J72: 4481.773333 | K72: 3475.826667
E73: TOTAL ANUAL | G73: =G71+(G72*11) -> 86612.92 | H73: =H71+(H72*11) -> 75925.88 | I73: =I71+(I72*11) -> 62096.12 | J73: =J71+(J72*11) -> 53856.28 | K73: =K71+(K72*11) -> 41784.92
E74: Ahorros en tarifas de prima para niños | G74: =IF($F$16=1,IF($F$18=0,0,IF($F$20=0,0,IF($F$20=1,(VLOOKUP(1,Tablas!$A$147:$G$149,3,TRUE)),(VLOOKUP(2,Tablas!$A$147:$G$149,3,TRUE))))), IF($F$18=0,0,IF($F$20=0,0,IF($F$20=1,(VLOOKUP(1,Tablas!$A$147:$G$149,3,TRUE)),IF($F$20=2,(VLOOKUP(2,Tablas!$A$147:$G$149,3,TRUE)), (VLOOKUP(3,Tablas!$A$147:$G$149,3,TRUE))))))) -> 502.04 | H74: =IF($F$16=1,IF($F$18=0,0,IF($F$20=0,0,IF($F$20=1,(VLOOKUP(1,Tablas!$A$147:$G$149,4,TRUE)),(VLOOKUP(2,Tablas!$A$147:$G$149,4,TRUE))))), IF($F$18=0,0,IF($F$20=0,0,IF($F$20=1,(VLOOKUP(1,Tablas!$A$147:$G$149,4,TRUE)),IF($F$20=2,(VLOOKUP(2,Tablas!$A$147:$G$149,4,TRUE)), (VLOOKUP(3,Tablas!$A$147:$G$149,4,TRUE))))))) -> 440.0666667 | I74: =IF($F$16=1,IF($F$18=0,0,IF($F$20=0,0,IF($F$20=1,(VLOOKUP(1,Tablas!$A$147:$G$149,5,TRUE)),(VLOOKUP(2,Tablas!$A$147:$G$149,5,TRUE))))), IF($F$18=0,0,IF($F$20=0,0,IF($F$20=1,(VLOOKUP(1,Tablas!$A$147:$G$149,5,TRUE)),IF($F$20=2,(VLOOKUP(2,Tablas!$A$147:$G$149,5,TRUE)), (VLOOKUP(3,Tablas!$A$147:$G$149,5,TRUE))))))) -> 372.68 | J74: =IF($F$16=1,IF($F$18=0,0,IF($F$20=0,0,IF($F$20=1,(VLOOKUP(1,Tablas!$A$147:$G$149,6,TRUE)),(VLOOKUP(2,Tablas!$A$147:$G$149,6,TRUE))))), IF($F$18=0,0,IF($F$20=0,0,IF($F$20=1,(VLOOKUP(1,Tablas!$A$147:$G$149,6,TRUE)),IF($F$20=2,(VLOOKUP(2,Tablas!$A$147:$G$149,6,TRUE)), (VLOOKUP(3,Tablas!$A$147:$G$149,6,TRUE))))))) -> 323.12 | K74: =IF($F$16=1,IF($F$18=0,0,IF($F$20=0,0,IF($F$20=1,(VLOOKUP(1,Tablas!$A$147:$G$149,7,TRUE)),(VLOOKUP(2,Tablas!$A$147:$G$149,7,TRUE))))), IF($F$18=0,0,IF($F$20=0,0,IF($F$20=1,(VLOOKUP(1,Tablas!$A$147:$G$149,7,TRUE)),IF($F$20=2,(VLOOKUP(2,Tablas!$A$147:$G$149,7,TRUE)), (VLOOKUP(3,Tablas!$A$147:$G$149,7,TRUE))))))) -> 250.6933333
E76: Tarifas en US $ - Efectivas a partir del 1ro de enero de 2022
E77: Este presupuesto solamente tiene carácter informativo y en ningún momento expresa compromiso legal para suministrarle cobertura de seguro. La emisión de una póliza de seguro Bupa está sujeta a todas las evaluaciones de riesgo por parte de Bupa y a la recepción de todos los pagos de prima requeridos.

Sheet Global Premier
A15: GLOBAL PREMIER HEALTH PLAN | D15: Nombre del Asegurado Titular | F15: =+'INGRESO DE DATOS'!$D$15 -> NOMBRE COMPLETO
D17: Número de adultos en la póliza | F17: =+'INGRESO DE DATOS'!$D$17 -> 2 | H17: Edad del Asegurado Titular | I17: =+'INGRESO DE DATOS'!$D$19 -> 65
D19: Número de niños en la póliza | F19: =+'INGRESO DE DATOS'!$J$17 -> 3 | H19: Edad del/la conyuge | I19: =+'INGRESO DE DATOS'!$J$19 -> 71
H21: Fecha de la cotización: | I21: =NOW() -> 2021-11-08T13:01:54.110
H22: FALSE
E23: Deducibles | G23: PLAN 1 | H23: PLAN 2 | I23: PLAN 3 | J23: PLAN 4
E24: En el país de residencia | G24: 250 | H24: 2000 | I24: 5000 | J24: 10000
E25: Fuera del país de residencia | G25: 5000 | H25: 2000 | I25: 5000 | J25: 10000
E27: Tarifas anuales
E28: Prima para Asegurado Titular | G28: =VLOOKUP($I$17,Tablas!$A$155:$G$221,3,TRUE) -> 18177 | H28: =VLOOKUP($I$17,Tablas!$A$155:$G$221,4,TRUE) -> 16494 | I28: =VLOOKUP($I$17,Tablas!$A$155:$G$221,5,TRUE) -> 11843 | J28: =VLOOKUP($I$17,Tablas!$A$155:$G$221,6,TRUE) -> 8810
E29: Prima para conyuge | G29: =IF($F$17=1,0,(VLOOKUP($I$19,Tablas!$A$155:$G$221,3,TRUE))) -> 30256 | H29: =IF($F$17=1,0,(VLOOKUP($I$19,Tablas!$A$155:$G$221,4,TRUE))) -> 27460 | I29: =IF($F$17=1,0,(VLOOKUP($I$19,Tablas!$A$155:$G$221,5,TRUE))) -> 19830 | J29: =IF($F$17=1,0,(VLOOKUP($I$19,Tablas!$A$155:$G$221,6,TRUE))) -> 14751
E30: Prima para hijo (s) | G30: =IF($F$19=0,0,(VLOOKUP($F$19,Tablas!$A$222:$G$224,3,TRUE))) -> 4962 | H30: =IF($F$19=0,0,(VLOOKUP($F$19,Tablas!$A$222:$G$224,4,TRUE))) -> 4504 | I30: =IF($F$19=0,0,(VLOOKUP($F$19,Tablas!$A$222:$G$224,5,TRUE))) -> 3458 | J30: =IF($F$19=0,0,(VLOOKUP($F$19,Tablas!$A$222:$G$224,6,TRUE))) -> 2573
E31: Total de Prima neta | G31: =SUM(G28:G30) -> 53395 | H31: =SUM(H28:H30) -> 48458 | I31: 35131 | J31: =SUM(J28:J30) -> 26134
E32: Descuento por variante con coaseguro fuera del país de residencia | G32: =IF('INGRESO DE DATOS'!$H$22,G31*-25%,0) -> 0 | H32: =IF('INGRESO DE DATOS'!$H$22,H31*-25%,0) -> 0 | I32: =IF('INGRESO DE DATOS'!$H$22,I31*-25%,0) -> 0 | J32: =IF('INGRESO DE DATOS'!$H$22,J31*-25%,0) -> 0
E33: Tarifa administrativa anual | G33: 75 | H33: 75 | I33: 75 | J33: 75
E34: IVA (12%) | G34: =(G31+G33)*0% -> 0 | H34: =(H31+H33)*0% -> 0 | I34: 0 | J34: 0
E35: TOTAL ANUAL | G35: =SUM(G31:G34) -> 53470 | H35: =SUM(H31:H34) -> 48533 | I35: =SUM(I31:I34) -> 35206 | J35: =SUM(J31:J34) -> 26209
E37: Tarifas semi anuales
E38: Prima para Asegurado Titular | G38: =VLOOKUP($I$17,Tablas!$A$530:$G$596,3,TRUE) -> 9633.81 | H38: =VLOOKUP($I$17,Tablas!$A$530:$G$596,4,TRUE) -> 8741.82 | I38: =VLOOKUP($I$17,Tablas!$A$530:$G$596,5,TRUE) -> 6276.79 | J38: =VLOOKUP($I$17,Tablas!$A$530:$G$596,6,TRUE) -> 4669.3
E39: Prima para conyuge | G39: =IF($F$17=1,0,(VLOOKUP($I$19,Tablas!$A$530:$G$596,3,TRUE))) -> 16035.68 | H39: =IF($F$17=1,0,(VLOOKUP($I$19,Tablas!$A$530:$G$596,4,TRUE))) -> 14553.8 | I39: =IF($F$17=1,0,(VLOOKUP($I$19,Tablas!$A$530:$G$596,5,TRUE))) -> 10509.9 | J39: =IF($F$17=1,0,(VLOOKUP($I$19,Tablas!$A$530:$G$596,6,TRUE))) -> 7818.03
E40: Prima para hijo (s) | G40: =IF($F$19=0,0,(VLOOKUP($F$19,Tablas!$A$597:$G$599,3,TRUE))) -> 2629.86 | H40: =IF($F$19=0,0,(VLOOKUP($F$19,Tablas!$A$597:$G$599,4,TRUE))) -> 2387.12 | I40: =IF($F$19=0,0,(VLOOKUP($F$19,Tablas!$A$597:$G$599,5,TRUE))) -> 1832.74 | J40: =IF($F$19=0,0,(VLOOKUP($F$19,Tablas!$A$597:$G$599,6,TRUE))) -> 1363.69
E41: Total de Prima neta | G41: =SUM(G38:G40) -> 28299.35 | H41: =SUM(H38:H40) -> 25682.74 | I41: =SUM(I38:I40) -> 18619.43 | J41: =SUM(J38:J40) -> 13851.02
E42: Descuento por variante con coaseguro fuera del país de residencia | G42: =IF('INGRESO DE DATOS'!$H$22,G41*-25%,0) -> 0 | H42: =IF('INGRESO DE DATOS'!$H$22,H41*-25%,0) -> 0 | I42: =IF('INGRESO DE DATOS'!$H$22,I41*-25%,0) -> 0 | J42: =IF('INGRESO DE DATOS'!$H$22,J41*-25%,0) -> 0
E43: Tarifa administrativa anual | G43: 75 | H43: 75 | I43: 75 | J43: 75
E44: IVA (12%) | G44: =(G41+G43)*0% -> 0 | H44: =(H41+H43)*0% -> 0 | I44: 0 | J44: 0
E45: TOTAL de primera cuota | G45: =SUM(G41:G44) -> 28374.35 | H45: =SUM(H41:H44) -> 25757.74 | I45: =SUM(I41:I44) -> 18694.43 | J45: =SUM(J41:J44) -> 13926.02
E46: Costo de segunda cuota | G46: =SUM(G41:G42) -> 28299.35 | H46: =SUM(H41:H42) -> 25682.74 | I46: 18619.43 | J46: 13851.02
E47: TOTAL ANUAL | G47: =G45+G46 -> 56673.7 | H47: =H45+H46 -> 51440.48 | I47: 37313.86 | J47: =J45+J46 -> 27777.04
E49: Tarifas trimestrales
E50: Prima para Asegurado Titular | G50: =VLOOKUP($I$17,Tablas!$A$755:$G$821,3,TRUE) -> 4998.675 | H50: =VLOOKUP($I$17,Tablas!$A$755:$G$821,4,TRUE) -> 4535.85 | I50: =VLOOKUP($I$17,Tablas!$A$755:$G$821,5,TRUE) -> 3256.825 | J50: =VLOOKUP($I$17,Tablas!$A$755:$G$821,6,TRUE) -> 2422.75
E51: Prima para conyuge | G51: =IF($F$17=1,0,(VLOOKUP($I$19,Tablas!$A$755:$G$821,3,TRUE))) -> 8320.4 | H51: =IF($F$17=1,0,(VLOOKUP($I$19,Tablas!$A$755:$G$821,4,TRUE))) -> 7551.5 | I51: =IF($F$17=1,0,(VLOOKUP($I$19,Tablas!$A$755:$G$821,5,TRUE))) -> 5453.25 | J51: =IF($F$17=1,0,(VLOOKUP($I$19,Tablas!$A$755:$G$821,6,TRUE))) -> 4056.525
E52: Prima para hijo (s) | G52: =IF($F$19=0,0,(VLOOKUP($F$19,Tablas!$A$822:$G$824,3,TRUE))) -> 1364.55 | H52: =IF($F$19=0,0,(VLOOKUP($F$19,Tablas!$A$822:$G$824,4,TRUE))) -> 1238.6 | I52: =IF($F$19=0,0,(VLOOKUP($F$19,Tablas!$A$822:$G$824,5,TRUE))) -> 950.95 | J52: =IF($F$19=0,0,(VLOOKUP($F$19,Tablas!$A$822:$G$824,6,TRUE))) -> 707.575
E53: Total de Prima neta | G53: =SUM(G50:G52) -> 14683.625 | H53: =SUM(H50:H52) -> 13325.95 | I53: =SUM(I50:I52) -> 9661.025 | J53: =SUM(J50:J52) -> 7186.85
E54: Descuento por variante con coaseguro fuera del país de residencia | G54: =IF('INGRESO DE DATOS'!$H$22,G53*-25%,0) -> 0 | H54: =IF('INGRESO DE DATOS'!$H$22,H53*-25%,0) -> 0 | I54: =IF('INGRESO DE DATOS'!$H$22,I53*-25%,0) -> 0 | J54: =IF('INGRESO DE DATOS'!$H$22,J53*-25%,0) -> 0
E55: Tarifa administrativa anual | G55: 75 | H55: 75 | I55: 75 | J55: 75
E56: IVA (12%) | G56: =(G53+G55)*0% -> 0 | H56: =(H53+H55)*0% -> 0 | I56: 0 | J56: 0
E57: TOTAL de primera cuota | G57: =SUM(G53:G56) -> 14758.625 | H57: =SUM(H53:H56) -> 13400.95 | I57: 9736.025 | J57: 7261.85
E58: Costo de tarifa trimestral 2 a 4 | G58: =SUM(G53:G54) -> 14683.625 | H58: =SUM(H53:H54) -> 13325.95 | I58: 9661.025 | J58: 7186.85
E59: TOTAL ANUAL | G59: =G57+(G58*3) -> 58809.5 | H59: =H57+(H58*3) -> 53378.8 | I59: 38719.1 | J59: =J57+(J58*3) -> 28822.4
E61: Tarifas mensuales
E62: Prima para Asegurado Titular | G62: =VLOOKUP($I$17,Tablas!$A$229:$G$295,3,TRUE) -> 1696.52 | H62: =VLOOKUP($I$17,Tablas!$A$229:$G$295,4,TRUE) -> 1539.44 | I62: =VLOOKUP($I$17,Tablas!$A$229:$G$295,5,TRUE) -> 1105.346667 | J62: =VLOOKUP($I$17,Tablas!$A$229:$G$295,6,TRUE) -> 822.2666667
E63: Prima para conyuge | G63: =IF($F$17=1,0,(VLOOKUP($I$19,Tablas!$A$229:$G$295,3,TRUE))) -> 2823.893333 | H63: =IF($F$17=1,0,(VLOOKUP($I$19,Tablas!$A$229:$G$295,4,TRUE))) -> 2562.933333 | I63: =IF($F$17=1,0,(VLOOKUP($I$19,Tablas!$A$229:$G$295,5,TRUE))) -> 1850.8 | J63: =IF($F$17=1,0,(VLOOKUP($I$19,Tablas!$A$229:$G$295,6,TRUE))) -> 1376.76
E64: Prima para hijo (s) | G64: =IF($F$19=0,0,(VLOOKUP($F$19,Tablas!$A$296:$G$298,3,TRUE))) -> 463.12 | H64: =IF($F$19=0,0,(VLOOKUP($F$19,Tablas!$A$296:$G$298,4,TRUE))) -> 420.3733333 | I64: =IF($F$19=0,0,(VLOOKUP($F$19,Tablas!$A$296:$G$298,5,TRUE))) -> 322.7466667 | J64: =IF($F$19=0,0,(VLOOKUP($F$19,Tablas!$A$296:$G$298,6,TRUE))) -> 240.1466667
E65: Total de Prima neta | G65: =SUM(G62:G64) -> 4983.533333 | H65: =SUM(H62:H64) -> 4522.746667 | I65: =SUM(I62:I64) -> 3278.893333 | J65: =SUM(J62:J64) -> 2439.173333
E66: Descuento por variante con coaseguro fuera del país de residencia | G66: =IF('INGRESO DE DATOS'!$H$22,G65*-25%,0) -> 0 | H66: =IF('INGRESO DE DATOS'!$H$22,H65*-25%,0) -> 0 | I66: =IF('INGRESO DE DATOS'!$H$22,I65*-25%,0) -> 0 | J66: =IF('INGRESO DE DATOS'!$H$22,J65*-25%,0) -> 0
E67: Tarifa administrativa anual | G67: 75 | H67: 75 | I67: 75 | J67: 75
E68: IVA (12%) | G68: =(G65+G67)*0% -> 0 | H68: =(H65+H67)*0% -> 0 | I68: 0 | J68: 0
E69: TOTAL de primera cuota | G69: =SUM(G65:G68) -> 5058.533333 | H69: =SUM(H65:H68) -> 4597.746667 | I69: =SUM(I65:I68) -> 3353.893333 | J69: =SUM(J65:J68) -> 2514.173333
E70: Costo de tarifa mensual 2 a 12 | G70: =SUM(G65:G66) -> 4983.533333 | H70: =SUM(H65:H66) -> 4522.746667 | I70: 3278.893333 | J70: 2439.173333
E71: TOTAL ANUAL | G71: =G69+(G70*11) -> 59877.4 | H71: =H69+(H70*11) -> 54347.96 | I71: =I69+(I70*11) -> 39421.72 | J71: =J69+(J70*11) -> 29345.08
E73: Tarifas en US $ - Efectivas a partir del 1ro de enero de 2022
E74: Este presupuesto solamente tiene carácter informativo y en ningún momento expresa compromiso legal para suministrarle cobertura de seguro. La emisión de una póliza de seguro Bupa está sujeta a todas las evaluaciones de riesgo por parte de Bupa y a la recepción de todos los pagos de prima requeridos.

Sheet Global Select
A14: GLOBAL SELECT HEALTH PLAN | D14: Nombre del Asegurado Titular | F14: =+'INGRESO DE DATOS'!$D$15 -> NOMBRE COMPLETO
D16: Número de adultos en la póliza | F16: =+'INGRESO DE DATOS'!$D$17 -> 2 | H16: Edad del Asegurado Titular | I16: =+'INGRESO DE DATOS'!$D$19 -> 65
H18: Edad del/la conyuge | I18: =+'INGRESO DE DATOS'!$J$19 -> 71
D19: Número de niños en la póliza | F19: =+'INGRESO DE DATOS'!$J$17 -> 3
H20: Fecha de la cotización: | I20: =NOW() -> 2021-11-08T13:01:54.110
H21: FALSE
E22: Deducibles | G22: PLAN 1 | H22: PLAN 2 | I22: PLAN 3 | J22: PLAN 4
E23: En el país de residencia | G23: 250 | H23: 2000 | I23: 5000 | J23: 10000
E24: Fuera del país de residencia | G24: 5000 | H24: 2000 | I24: 5000 | J24: 10000
E26: Tarifas anuales
E27: Prima para Asegurado Titular | G27: =VLOOKUP($I$16,Tablas!$A$305:$G$371,3,TRUE) -> 13874 | H27: =VLOOKUP($I$16,Tablas!$A$305:$G$371,4,TRUE) -> 13310 | I27: =VLOOKUP($I$16,Tablas!$A$305:$G$371,5,TRUE) -> 9579 | J27: =VLOOKUP($I$16,Tablas!$A$305:$G$371,6,TRUE) -> 7127
E28: Prima para conyuge | G28: =IF($F$16=1,0,(VLOOKUP($I$18,Tablas!$A$305:$G$371,3,TRUE))) -> 23504 | H28: =IF($F$16=1,0,(VLOOKUP($I$18,Tablas!$A$305:$G$371,4,TRUE))) -> 22553 | I28: =IF($F$16=1,0,(VLOOKUP($I$18,Tablas!$A$305:$G$371,5,TRUE))) -> 16329 | J28: =IF($F$16=1,0,(VLOOKUP($I$18,Tablas!$A$305:$G$371,6,TRUE))) -> 12145
E29: Prima para hijo (s) | G29: =IF($F$19=0,0,(VLOOKUP($F$19,Tablas!$A$372:$G$374,3,TRUE))) -> 3736 | H29: =IF($F$19=0,0,(VLOOKUP($F$19,Tablas!$A$372:$G$374,4,TRUE))) -> 3587 | I29: =IF($F$19=0,0,(VLOOKUP($F$19,Tablas!$A$372:$G$374,5,TRUE))) -> 2771 | J29: =IF($F$19=0,0,(VLOOKUP($F$19,Tablas!$A$372:$G$374,6,TRUE))) -> 2061
E30: Total de Prima neta | G30: =SUM(G27:G29) -> 41114 | H30: =SUM(H27:H29) -> 39450 | I30: =SUM(I27:I29) -> 28679 | J30: =SUM(J27:J29) -> 21333
E31: Descuento por variante con coaseguro fuera del país de residencia | G31: =IF('INGRESO DE DATOS'!$H$22,G30*-25%,0) -> 0 | H31: =IF('INGRESO DE DATOS'!$H$22,H30*-25%,0) -> 0 | I31: =IF('INGRESO DE DATOS'!$H$22,I30*-25%,0) -> 0 | J31: =IF('INGRESO DE DATOS'!$H$22,J30*-25%,0) -> 0 | L31: s
E32: Tarifa administrativa anual | G32: 75 | H32: 75 | I32: 75 | J32: 75
E33: IVA (12%) | G33: =(G30+G32)*0% -> 0 | H33: =(H30+H32)*0% -> 0 | I33: =(I30+I32)*0% -> 0 | J33: =(J30+J32)*0% -> 0
E34: TOTAL ANUAL | G34: =SUM(G30:G33) -> 41189 | H34: =SUM(H30:H33) -> 39525 | I34: =SUM(I30:I33) -> 28754 | J34: =SUM(J30:J33) -> 21408
E36: Tarifas semi anuales
E37: Prima para Asegurado Titular | G37: =VLOOKUP($I$16,Tablas!$A$605:$G$671,3,TRUE) -> 7353.22 | H37: =VLOOKUP($I$16,Tablas!$A$605:$G$671,4,TRUE) -> 7054.3 | I37: =VLOOKUP($I$16,Tablas!$A$605:$G$671,5,TRUE) -> 5076.87 | J37: =VLOOKUP($I$16,Tablas!$A$605:$G$671,6,TRUE) -> 3777.31
E38: Prima para conyuge | G38: =IF($F$16=1,0,(VLOOKUP($I$18,Tablas!$A$605:$G$671,3,TRUE))) -> 12457.12 | H38: =IF($F$16=1,0,(VLOOKUP($I$18,Tablas!$A$605:$G$671,4,TRUE))) -> 11953.09 | I38: =IF($F$16=1,0,(VLOOKUP($I$18,Tablas!$A$605:$G$671,5,TRUE))) -> 8654.37 | J38: =IF($F$16=1,0,(VLOOKUP($I$18,Tablas!$A$605:$G$671,6,TRUE))) -> 6436.85
E39: Prima para hijo (s) | G39: =IF($F$19=0,0,(VLOOKUP($F$19,Tablas!$A$672:$G$674,3,TRUE))) -> 1980.08 | H39: =IF($F$19=0,0,(VLOOKUP($F$19,Tablas!$A$672:$G$674,4,TRUE))) -> 1901.11 | I39: =IF($F$19=0,0,(VLOOKUP($F$19,Tablas!$A$672:$G$674,5,TRUE))) -> 1468.63 | J39: =IF($F$19=0,0,(VLOOKUP($F$19,Tablas!$A$672:$G$674,6,TRUE))) -> 1092.33
E40: Total de Prima neta | G40: =SUM(G37:G39) -> 21790.42 | H40: =SUM(H37:H39) -> 20908.5 | I40: =SUM(I37:I39) -> 15199.87 | J40: =SUM(J37:J39) -> 11306.49
E41: Low options | G41: =IF('INGRESO DE DATOS'!$H$22,G40*-25%,0) -> 0 | H41: =IF('INGRESO DE DATOS'!$H$22,H40*-25%,0) -> 0 | I41: =IF('INGRESO DE DATOS'!$H$22,I40*-25%,0) -> 0 | J41: =IF('INGRESO DE DATOS'!$H$22,J40*-25%,0) -> 0
E42: Tarifa administrativa anual | G42: 75 | H42: 75 | I42: 75 | J42: 75
E43: IVA (12%) | G43: =(G40+G42)*0% -> 0 | H43: =(H40+H42)*0% -> 0 | I43: 0 | J43: 0
E44: TOTAL de primera cuota | G44: =SUM(G40:G43) -> 21865.42 | H44: =SUM(H40:H43) -> 20983.5 | I44: =SUM(I40:I43) -> 15274.87 | J44: =SUM(J40:J43) -> 11381.49
E45: Costo de segunda cuota | G45: =SUM(G40:G41) -> 21790.42 | H45: =SUM(H40:H41) -> 20908.5 | I45: 15199.87 | J45: 11306.49
E46: TOTAL ANUAL | G46: =G44+G45 -> 43655.84 | H46: =H44+H45 -> 41892 | I46: 30474.74 | J46: =J44+J45 -> 22687.98
E48: Tarifas trimestrales
E49: Prima para Asegurado Titular | G49: =VLOOKUP($I$16,Tablas!$A$830:$G$896,3,TRUE) -> 3815.35 | H49: =VLOOKUP($I$16,Tablas!$A$830:$G$896,4,TRUE) -> 3660.25 | I49: =VLOOKUP($I$16,Tablas!$A$830:$G$896,5,TRUE) -> 2634.225 | J49: =VLOOKUP($I$16,Tablas!$A$830:$G$896,6,TRUE) -> 1959.925
E50: Prima para conyuge | G50: =IF($F$16=1,0,(VLOOKUP($I$18,Tablas!$A$830:$G$896,3,TRUE))) -> 6463.6 | H50: =IF($F$16=1,0,(VLOOKUP($I$18,Tablas!$A$830:$G$896,4,TRUE))) -> 6202.075 | I50: =IF($F$16=1,0,(VLOOKUP($I$18,Tablas!$A$830:$G$896,5,TRUE))) -> 4490.475 | J50: =IF($F$16=1,0,(VLOOKUP($I$18,Tablas!$A$830:$G$896,6,TRUE))) -> 3339.875
E51: Prima para hijo (s) | G51: =IF($F$19=0,0,(VLOOKUP($F$19,Tablas!$A$897:$G$899,3,TRUE))) -> 1027.4 | H51: =IF($F$19=0,0,(VLOOKUP($F$19,Tablas!$A$897:$G$899,4,TRUE))) -> 986.425 | I51: =IF($F$19=0,0,(VLOOKUP($F$19,Tablas!$A$897:$G$899,5,TRUE))) -> 762.025 | J51: =IF($F$19=0,0,(VLOOKUP($F$19,Tablas!$A$897:$G$899,6,TRUE))) -> 566.775
E52: Total de Prima neta | G52: =SUM(G49:G51) -> 11306.35 | H52: =SUM(H49:H51) -> 10848.75 | I52: =SUM(I49:I51) -> 7886.725 | J52: =SUM(J49:J51) -> 5866.575
E53: Descuento por variante con coaseguro fuera del país de residencia | G53: =IF('INGRESO DE DATOS'!$H$22,G52*-25%,0) -> 0 | H53: =IF('INGRESO DE DATOS'!$H$22,H52*-25%,0) -> 0 | I53: =IF('INGRESO DE DATOS'!$H$22,I52*-25%,0) -> 0 | J53: =IF('INGRESO DE DATOS'!$H$22,J52*-25%,0) -> 0
E54: Tarifa administrativa anual | G54: 75 | H54: 75 | I54: 75 | J54: 75
E55: IVA (12%) | G55: =(G52+G54)*0% -> 0 | H55: =(H52+H54)*0% -> 0 | I55: 0 | J55: 0
E56: TOTAL de primera cuota | G56: =SUM(G52:G55) -> 11381.35 | H56: =SUM(H52:H55) -> 10923.75 | I56: 7961.725 | J56: 5941.575
E57: Costo de tarifa trimestral 2 a 4 | G57: =SUM(G52:G53) -> 11306.35 | H57: =SUM(H52:H53) -> 10848.75 | I57: 7886.725 | J57: 5866.575
E58: TOTAL ANUAL | G58: =G56+(G57*3) -> 45300.4 | H58: =H56+(H57*3) -> 43470 | I58: 31621.9 | J58: =J56+(J57*3) -> 23541.3
E60: Tarifas mensuales
E61: Prima para Asegurado Titular | G61: =VLOOKUP($I$16,Tablas!$A$379:$G$445,3,TRUE) -> 1294.906667 | H61: =VLOOKUP($I$16,Tablas!$A$379:$G$445,4,TRUE) -> 1242.266667 | I61: =VLOOKUP($I$16,Tablas!$A$379:$G$445,5,TRUE) -> 894.04 | J61: =VLOOKUP($I$16,Tablas!$A$379:$G$445,6,TRUE) -> 665.1866667
E62: Prima para conyuge | G62: =IF($F$16=1,0,(VLOOKUP($I$18,Tablas!$A$379:$G$445,3,TRUE))) -> 2193.706667 | H62: =IF($F$16=1,0,(VLOOKUP($I$18,Tablas!$A$379:$G$445,4,TRUE))) -> 2104.946667 | I62: =IF($F$16=1,0,(VLOOKUP($I$18,Tablas!$A$379:$G$445,5,TRUE))) -> 1524.04 | J62: =IF($F$16=1,0,(VLOOKUP($I$18,Tablas!$A$379:$G$445,6,TRUE))) -> 1133.533333
E63: Prima para hijo (s) | G63: =IF($F$19=0,0,(VLOOKUP($F$19,Tablas!$A$446:$G$448,3,TRUE))) -> 348.6933333 | H63: =IF($F$19=0,0,(VLOOKUP($F$19,Tablas!$A$446:$G$448,4,TRUE))) -> 334.7866667 | I63: =IF($F$19=0,0,(VLOOKUP($F$19,Tablas!$A$446:$G$448,5,TRUE))) -> 258.6266667 | J63: =IF($F$19=0,0,(VLOOKUP($F$19,Tablas!$A$446:$G$448,6,TRUE))) -> 192.36
E64: Total de Prima neta | G64: =SUM(G61:G63) -> 3837.306667 | H64: =SUM(H61:H63) -> 3682 | I64: =SUM(I61:I63) -> 2676.706667 | J64: =SUM(J61:J63) -> 1991.08
E65: Descuento por variante con coaseguro fuera del país de residencia | G65: =IF('INGRESO DE DATOS'!$H$22,G64*-25%,0) -> 0 | H65: =IF('INGRESO DE DATOS'!$H$22,H64*-25%,0) -> 0 | I65: =IF('INGRESO DE DATOS'!$H$22,I64*-25%,0) -> 0 | J65: =IF('INGRESO DE DATOS'!$H$22,J64*-25%,0) -> 0
E66: Tarifa administrativa anual | G66: 75 | H66: 75 | I66: 75 | J66: 75
E67: IVA (12%) | G67: =(G64+G66)*0% -> 0 | H67: =(H64+H66)*0% -> 0 | I67: 0 | J67: 0
E68: TOTAL de primera cuota | G68: =SUM(G64:G67) -> 3912.306667 | H68: =SUM(H64:H67) -> 3757 | I68: =SUM(I64:I67) -> 2751.706667 | J68: =SUM(J64:J67) -> 2066.08
E69: Costo de tarifa mensual 2 a 12 | G69: =SUM(G64:G65) -> 3837.306667 | H69: =SUM(H64:H65) -> 3682 | I69: 2676.706667 | J69: 1991.08
E70: TOTAL ANUAL | G70: =G68+(G69*11) -> 46122.68 | H70: =H68+(H69*11) -> 44259 | I70: =I68+(I69*11) -> 32195.48 | J70: =J68+(J69*11) -> 23967.96
E72: Tarifas en US $ - Efectivas a partir del 1ro de enero de 2022
E73: Este presupuesto solamente tiene carácter informativo y en ningún momento expresa compromiso legal para suministrarle cobertura de seguro. La emisión de una póliza de seguro Bupa está sujeta a todas las evaluaciones de riesgo por parte de Bupa y a la recepción de todos los pagos de prima requeridos.

Sheet Global Major Medical
A13: GLOBAL MAJOR MEDICAL HEALTH PLAN | D13: Nombre del Asegurado Titular | F13: =+'INGRESO DE DATOS'!$D$15 -> NOMBRE COMPLETO
D15: Número de adultos en la póliza | F15: =+'INGRESO DE DATOS'!$D$17 -> 2 | H15: Edad del Asegurado Titular | I15: =+'INGRESO DE DATOS'!$D$19 -> 65
D17: Número de niños en la póliza | F17: =+'INGRESO DE DATOS'!$J$17 -> 3 | H17: Edad del/la conyuge | I17: =+'INGRESO DE DATOS'!$J$19 -> 71
H19: Fecha de la cotización: | I19: =NOW() -> 2021-11-08T13:01:54.110
H20: FALSE
E21: Deducibles | G21: PLAN 1 | H21: PLAN 2 | I21: PLAN 3
E22: En el país de residencia | G22: 7500 | H22: 10000 | I22: 20000
E23: Fuera del país de residencia | G23: 10000 | H23: 20000 | I23: 20000
E25: Tarifas anuales
E26: Prima para Asegurado Titular | G26: =VLOOKUP($I$15,Tablas!$A$1129:$G$1195,3,TRUE) -> 8611 | H26: =VLOOKUP($I$15,Tablas!$A$1129:$G$1195,4,TRUE) -> 7582 | I26: =VLOOKUP($I$15,Tablas!$A$1129:$G$1195,5,TRUE) -> 5962
E27: Prima para conyuge | G27: =IF($F$15=1,0,(VLOOKUP($I$17,Tablas!$A$1129:$G$1195,3,TRUE))) -> 14367 | H27: =IF($F$15=1,0,(VLOOKUP($I$17,Tablas!$A$1129:$G$1195,4,TRUE))) -> 12585 | I27: =IF($F$15=1,0,(VLOOKUP($I$17,Tablas!$A$1129:$G$1195,5,TRUE))) -> 10151
E28: Prima para hijo (s) | G28: =IF($F$17=0,0,(VLOOKUP($F$17,Tablas!$A$1196:$G$1198,3,TRUE))) -> 2444 | H28: =IF($F$17=0,0,(VLOOKUP($F$17,Tablas!$A$1196:$G$1198,4,TRUE))) -> 2057 | I28: =IF($F$17=0,0,(VLOOKUP($F$17,Tablas!$A$1196:$G$1198,5,TRUE))) -> 1614
E29: Total de Prima neta | G29: =SUM(G26:G28) -> 25422 | H29: =SUM(H26:H28) -> 22224 | I29: 17727
E30: Tarifa administrativa anual | G30: 75 | H30: 75 | I30: 75
E31: IVA (12%) | G31: =(G29+G30)*0% -> 0 | H31: =(H29+H30)*0% -> 0 | I31: =(I29+I30)*0% -> 0
E32: TOTAL ANUAL | G32: =SUM(G29:G31) -> 25497 | H32: =SUM(H29:H31) -> 22299 | I32: =SUM(I29:I31) -> 17802
E34: Tarifas semi anuales
E35: Prima para Asegurado Titular | G35: =VLOOKUP($I$15,Tablas!$A$1353:$G$1419,3,TRUE) -> 4563.83 | H35: =VLOOKUP($I$15,Tablas!$A$1353:$G$1419,4,TRUE) -> 4018.46 | I35: =VLOOKUP($I$15,Tablas!$A$1353:$G$1419,5,TRUE) -> 3159.86
E36: Prima para conyuge | G36: =IF($F$15=1,0,(VLOOKUP($I$17,Tablas!$A$1353:$G$1419,3,TRUE))) -> 7614.51 | H36: =IF($F$15=1,0,(VLOOKUP($I$17,Tablas!$A$1353:$G$1419,4,TRUE))) -> 6670.05 | I36: =IF($F$15=1,0,(VLOOKUP($I$17,Tablas!$A$1353:$G$1419,5,TRUE))) -> 5380.03
E37: Prima para hijo (s) | G37: =IF($F$17=0,0,(VLOOKUP($F$17,Tablas!$A$1420:$G$1422,3,TRUE))) -> 1295.32 | H37: =IF($F$17=0,0,(VLOOKUP($F$17,Tablas!$A$1420:$G$1422,4,TRUE))) -> 1090.21 | I37: =IF($F$17=0,0,(VLOOKUP($F$17,Tablas!$A$1420:$G$1422,5,TRUE))) -> 855.42
E38: Total de Prima neta | G38: =SUM(G35:G37) -> 13473.66 | H38: =SUM(H35:H37) -> 11778.72 | I38: =SUM(I35:I37) -> 9395.31
E39: Tarifa administrativa anual | G39: 75 | H39: 75 | I39: 76
E40: IVA (12%) | G40: =(G38+G39)*0% -> 0 | H40: =(H38+H39)*0% -> 0 | I40: =(I38+I39)*0% -> 0
E41: TOTAL de primera cuota | G41: =SUM(G38:G40) -> 13548.66 | H41: =SUM(H38:H40) -> 11853.72 | I41: =SUM(I38:I40) -> 9471.31
E42: Costo de segunda cuota | G42: =G38+G40 -> 13473.66 | H42: =H38+H40 -> 11778.72 | I42: =I38+I40 -> 9395.31
E43: TOTAL ANUAL | G43: =G41+G42 -> 27022.32 | H43: =H41+H42 -> 23632.44 | I43: 18866.62
E45: Tarifas trimestrales
E46: Prima para Asegurado Titular | G46: =VLOOKUP($I$15,Tablas!$A$1278:$G$1344,3,TRUE) -> 2368.025 | H46: =VLOOKUP($I$15,Tablas!$A$1278:$G$1344,4,TRUE) -> 2085.05 | I46: =VLOOKUP($I$15,Tablas!$A$1278:$G$1344,5,TRUE) -> 1639.55
E47: Prima para conyuge | G47: =IF($F$15=1,0,(VLOOKUP($I$17,Tablas!$A$1278:$G$1344,3,TRUE))) -> 3950.925 | H47: =IF($F$15=1,0,(VLOOKUP($I$17,Tablas!$A$1278:$G$1344,4,TRUE))) -> 3460.875 | I47: =IF($F$15=1,0,(VLOOKUP($I$17,Tablas!$A$1278:$G$1344,5,TRUE))) -> 2791.525
E48: Prima para hijo (s) | G48: =IF($F$17=0,0,(VLOOKUP($F$17,Tablas!$A$1345:$G$1347,3,TRUE))) -> 672.1 | H48: =IF($F$17=0,0,(VLOOKUP($F$17,Tablas!$A$1345:$G$1347,4,TRUE))) -> 565.675 | I48: =IF($F$17=0,0,(VLOOKUP($F$17,Tablas!$A$1345:$G$1347,5,TRUE))) -> 443.85
E49: Total de Prima neta | G49: =SUM(G46:G48) -> 6991.05 | H49: =SUM(H46:H48) -> 6111.6 | I49: =SUM(I46:I48) -> 4874.925
E50: Tarifa administrativa anual | G50: 75 | H50: 75 | I50: 76
E51: IVA (12%) | G51: =(G49+G50)*0% -> 0 | H51: =(H49+H50)*0% -> 0 | I51: =(I49+I50)*0% -> 0
E52: TOTAL de primera cuota | G52: =SUM(G49:G51) -> 7066.05 | H52: =SUM(H49:H51) -> 6186.6 | I52: =SUM(I49:I51) -> 4950.925
E53: Costo de tarifa trimestral 2 a 4 | G53: =G49+G51 -> 6991.05 | H53: =H49+H51 -> 6111.6 | I53: =I49+I51 -> 4874.925
E54: TOTAL ANUAL | G54: =G52+(G53*3) -> 28039.2 | H54: =H52+(H53*3) -> 24521.4 | I54: 19575.7
E56: Tarifas mensual
E57: Prima para Asegurado Titular | G57: =VLOOKUP($I$15,Tablas!$A$1203:$G$1269,3,TRUE) -> 803.6933333 | H57: =VLOOKUP($I$15,Tablas!$A$1203:$G$1269,4,TRUE) -> 707.6533333 | I57: =VLOOKUP($I$15,Tablas!$A$1203:$G$1269,5,TRUE) -> 556.4533333
E58: Prima para conyuge | G58: =IF($F$15=1,0,(VLOOKUP($I$17,Tablas!$A$1203:$G$1269,3,TRUE))) -> 1340.92 | H58: =IF($F$15=1,0,(VLOOKUP($I$17,Tablas!$A$1203:$G$1269,4,TRUE))) -> 1174.6 | I58: =IF($F$15=1,0,(VLOOKUP($I$17,Tablas!$A$1203:$G$1269,5,TRUE))) -> 947.4266667
E59: Prima para hijo (s) | G59: =IF($F$17=0,0,(VLOOKUP($F$17,Tablas!$A$1270:$G$1272,3,TRUE))) -> 228.1066667 | H59: =IF($F$17=0,0,(VLOOKUP($F$17,Tablas!$A$1270:$G$1272,4,TRUE))) -> 191.9866667 | I59: =IF($F$17=0,0,(VLOOKUP($F$17,Tablas!$A$1270:$G$1272,5,TRUE))) -> 150.64
E60: Total de Prima neta | G60: =SUM(G57:G59) -> 2372.72 | H60: =SUM(H57:H59) -> 2074.24 | I60: =SUM(I57:I59) -> 1654.52
E61: Tarifa administrativa anual | G61: 75 | H61: 75 | I61: 76
E62: IVA (12%) | G62: =(G60+G61)*0% -> 0 | H62: =(H60+H61)*0% -> 0 | I62: =(I60+I61)*0% -> 0
E63: TOTAL de primera cuota | G63: =SUM(G60:G62) -> 2447.72 | H63: =SUM(H60:H62) -> 2149.24 | I63: =SUM(I60:I62) -> 1730.52
E64: Costo de tarifa mensual 2 a 12 | G64: =G60+G62 -> 2372.72 | H64: =H60+H62 -> 2074.24 | I64: =I60+I62 -> 1654.52
E65: TOTAL ANUAL | G65: =G63+(G64*11) -> 28547.64 | H65: =H63+(H64*11) -> 24965.88 | I65: =I63+(I64*11) -> 19930.24
E67: Tarifas en US $ - Efectivas a partir del 1ro de enero de 2022
E68: Este presupuesto solamente tiene carácter informativo y en ningún momento expresa compromiso legal para suministrarle cobertura de seguro. La emisión de una póliza de seguro Bupa está sujeta a todas las evaluaciones de riesgo por parte de Bupa y a la recepción de todos los pagos de prima requeridos.

Sheet Resumen tarifas
A27: Cotizador de Seguro Médico - Bupa Global Health Plans
A29: Nombre del Asegurado Titular | C29: =+'INGRESO DE DATOS'!$D$15 -> NOMBRE COMPLETO
A32: Número de adultos en la póliza | C32: =+'INGRESO DE DATOS'!$D$17 -> 2 | E32: Edad del Asegurado Titular | G32: =+'INGRESO DE DATOS'!$D$19 -> 65
A35: Número de niños en la póliza | C35: =+'INGRESO DE DATOS'!$J$17 -> 3 | E35: Edad del/la cónyuge | G35: =+'INGRESO DE DATOS'!$J$19 -> 71
D38: FECHA DE LA COTIZACIÓN: | E38: =NOW() -> 2021-11-08T13:01:54.110
A40: Global Ultimate Health Plan
A41: Deducibles | C41: PLAN 1 | D41: PLAN 2
A42: En el país de residencia | C42: 0 | D42: 1000
A43: Fuera del país de residencia | C43: 0 | D43: 1000
C44: Tarifas anuales
C45: ='Global Ultimate'!G32 -> 179397 | D45: ='Global Ultimate'!H32 -> 115767
C46: Tarifas semi anuales
C47: ='Global Ultimate'!G42 -> 95115.66 | D47: ='Global Ultimate'!H42 -> 61391.76
C48: ='Global Ultimate'!G43 -> 95040.66 | D48: ='Global Ultimate'!H43 -> 61316.76
C49: Tarifas trimestrales
C50: ='Global Ultimate'!G54 -> 49388.55 | D50: ='Global Ultimate'!H54 -> 31890.3
C51: ='Global Ultimate'!G55 -> 49313.55 | D51: ='Global Ultimate'!H55 -> 31815.3
A52: Ahorros en tarifas de prima para niños (pago annual)* | C52: ='Global Ultimate'!G33 -> 12496 | D52: ='Global Ultimate'!H33 -> 8063
C53: Tarifas mensuales
C54: ='Global Ultimate'!G66 -> 16811.72 | D54: ='Global Ultimate'!H66 -> 10872.92
C55: ='Global Ultimate'!G67 -> 16736.72 | D55: ='Global Ultimate'!H67 -> 10797.92
A57: Global Elite Health Plan
A58: Deducibles | D58: PLAN 1 | E58: PLAN 2 | F58: PLAN 3 | G58: PLAN 4 | H58: PLAN 5
A59: En el país de residencia | D59: 250 | E59: 2000 | F59: 3500 | G59: 5000 | H59: 10000
A60: Fuera del país de residencia | D60: 5000 | E60: 2000 | F60: 3500 | G60: 5000 | H60: 10000
D61: Tarifas anuales
D62: =+'Global Elite'!G34 -> 77341 | E62: =+'Global Elite'!H34 -> 67799 | F62: =+'Global Elite'!I34 -> 55451 | G62: =+'Global Elite'!J34 -> 48094 | H62: =+'Global Elite'!K34 -> 37316
D63: Tarifas semi anuales
D64: =+'Global Elite'!G45 -> 41025.98 | E64: =+'Global Elite'!H45 -> 35968.72 | F64: =+'Global Elite'!I45 -> 29424.28 | G64: =+'Global Elite'!J45 -> 25525.07 | H64: =+'Global Elite'!K45 -> 19812.73
D65: =+'Global Elite'!G46 -> 40950.98 | E65: =+'Global Elite'!H46 -> 35893.72 | F65: =+'Global Elite'!I46 -> 29349.28 | G65: =+'Global Elite'!J46 -> 25450.07 | H65: =+'Global Elite'!K46 -> 19737.73
D66: Tarifas trimestrales
D67: =+'Global Elite'!G58 -> 21323.15 | E67: =+'Global Elite'!H58 -> 18699.1 | F67: =+'Global Elite'!I58 -> 15303.4 | G67: =+'Global Elite'!J58 -> 13280.225 | H67: =+'Global Elite'!K58 -> 10316.275
D68: =+'Global Elite'!G59 -> 21248.15 | E68: =+'Global Elite'!H59 -> 18624.1 | F68: =+'Global Elite'!I59 -> 15228.4 | G68: =+'Global Elite'!J59 -> 13205.225 | H68: =+'Global Elite'!K59 -> 10241.275
A69: Ahorros en tarifas de prima para niños (pago annual)* | D69: =+'Global Elite'!G35 -> 5379 | E69: =+'Global Elite'!H35 -> 4715 | F69: =+'Global Elite'!I35 -> 3993 | G69: =+'Global Elite'!J35 -> 3462 | H69: =+'Global Elite'!K35 -> 2686
D70: Tarifas mensuales
D71: ='Global Elite'!G71 -> 7286.493333 | E71: ='Global Elite'!H71 -> 6395.906667 | F71: ='Global Elite'!I71 -> 5243.426667 | G71: ='Global Elite'!J71 -> 4556.773333 | H71: ='Global Elite'!K71 -> 3550.826667
D72: ='Global Elite'!G72 -> 7211.493333 | E72: ='Global Elite'!H72 -> 6320.906667 | F72: ='Global Elite'!I72 -> 5168.426667 | G72: ='Global Elite'!J72 -> 4481.773333 | H72: ='Global Elite'!K72 -> 3475.826667
A74: Global Premier Health Plan
A75: Deducibles | E75: PLAN 1 | F75: PLAN 2 | G75: PLAN 3 | H75: PLAN 3
A76: En el país de residencia | E76: 250 | F76: 2000 | G76: 5000 | H76: 10000
A77: Fuera del país de residencia | E77: 5000 | F77: 2000 | G77: 5000 | H77: 10000
E78: Tarifas anuales
E79: =+'Global Premier'!G35 -> 53470 | F79: =+'Global Premier'!H35 -> 48533 | G79: =+'Global Premier'!I35 -> 35206 | H79: =+'Global Premier'!J35 -> 26209
E80: Tarifas semi anuales
E81: =+'Global Premier'!G45 -> 28374.35 | F81: =+'Global Premier'!H45 -> 25757.74 | G81: =+'Global Premier'!I45 -> 18694.43 | H81: =+'Global Premier'!J45 -> 13926.02
E82: =+'Global Premier'!G46 -> 28299.35 | F82: =+'Global Premier'!H46 -> 25682.74 | G82: =+'Global Premier'!I46 -> 18619.43 | H82: =+'Global Premier'!J46 -> 13851.02
E83: Tarifas trimestrales
E84: =+'Global Premier'!G57 -> 14758.625 | F84: =+'Global Premier'!H57 -> 13400.95 | G84: =+'Global Premier'!I57 -> 9736.025 | H84: =+'Global Premier'!J57 -> 7261.85
E85: =+'Global Premier'!G58 -> 14683.625 | F85: =+'Global Premier'!H58 -> 13325.95 | G85: =+'Global Premier'!I58 -> 9661.025 | H85: =+'Global Premier'!J58 -> 7186.85
E86: Tarifas mensuales
E87: ='Global Premier'!G69 -> 5058.533333 | F87: ='Global Premier'!H69 -> 4597.746667 | G87: ='Global Premier'!I69 -> 3353.893333 | H87: ='Global Premier'!J69 -> 2514.173333
E88: ='Global Premier'!G70 -> 4983.533333 | F88: ='Global Premier'!H70 -> 4522.746667 | G88: ='Global Premier'!I70 -> 3278.893333 | H88: ='Global Premier'!J70 -> 2439.173333
A90: Global Select Health Plan
A91: Deducibles | E91: PLAN 1 | F91: PLAN 2 | G91: PLAN 3 | H91: PLAN 4
A92: En el país de residencia | E92: 250 | F92: 2000 | G92: 5000 | H92: 10000
A93: Fuera del país de residencia | E93: 5000 | F93: 2000 | G93: 5000 | H93: 10000
E94: Tarifas anuales
E95: =+'Global Select'!G34 -> 41189 | F95: =+'Global Select'!H34 -> 39525 | G95: =+'Global Select'!I34 -> 28754 | H95: =+'Global Select'!J34 -> 21408
E96: Tarifas semi anuales
E97: =+'Global Select'!G44 -> 21865.42 | F97: =+'Global Select'!H44 -> 20983.5 | G97: =+'Global Select'!I44 -> 15274.87 | H97: =+'Global Select'!J44 -> 11381.49
E98: =+'Global Select'!G45 -> 21790.42 | F98: =+'Global Select'!H45 -> 20908.5 | G98: =+'Global Select'!I45 -> 15199.87 | H98: =+'Global Select'!J45 -> 11306.49
E99: Tarifas trimestrales
E100: =+'Global Select'!G56 -> 11381.35 | F100: =+'Global Select'!H56 -> 10923.75 | G100: =+'Global Select'!I56 -> 7961.725 | H100: =+'Global Select'!J56 -> 5941.575
E101: =+'Global Select'!G57 -> 11306.35 | F101: =+'Global Select'!H57 -> 10848.75 | G101: =+'Global Select'!I57 -> 7886.725 | H101: =+'Global Select'!J57 -> 5866.575
E102: Tarifas mensuales
E103: ='Global Select'!G68 -> 3912.306667 | F103: ='Global Select'!H68 -> 3757 | G103: ='Global Select'!I68 -> 2751.706667 | H103: ='Global Select'!J68 -> 2066.08
E104: ='Global Select'!G69 -> 3837.306667 | F104: ='Global Select'!H69 -> 3682 | G104: ='Global Select'!I69 -> 2676.706667 | H104: ='Global Select'!J69 -> 1991.08
A106: Global Major Medical Health Plan
A107: Deducibles | C107: PLAN 1 | D107: PLAN 2
A108: En el país de residencia | C108: 10000 | D108: 20000
A109: Fuera del país de residencia | C109: 10000 | D109: 20000
C110: Tarifas anuales
C111: ='Global Major Medical'!G32 -> 25497 | D111: ='Global Major Medical'!H32 -> 22299
C112: Tarifas semi anuales
C113: ='Global Major Medical'!G41 -> 13548.66 | D113: ='Global Major Medical'!H41 -> 11853.72
C114: ='Global Major Medical'!G42 -> 13473.66 | D114: ='Global Major Medical'!H42 -> 11778.72
C115: Tarifas trimestrales
C116: ='Global Major Medical'!G52 -> 7066.05 | D116: ='Global Major Medical'!H52 -> 6186.6
C117: ='Global Major Medical'!G53 -> 6991.05 | D117: ='Global Major Medical'!H53 -> 6111.6
C118: Tarifas mensuales
C119: ='Global Major Medical'!G63 -> 2447.72 | D119: ='Global Major Medical'!H63 -> 2149.24
C120: ='Global Major Medical'!G64 -> 2372.72 | D120: ='Global Major Medical'!H64 -> 2074.24
A122: Una tarifa administrativa de US$75 se carga automáticamente al primer pago
A123: *Basado en un modo de pago anual
A126: Tarifas en US $ - Efectivas a partir del 1ro de enero de 2020
A127: Este presupuesto solamente tiene carácter informativo y en ningún momento expresa compromiso legal para suministrarle cobertura de seguro. La emisión de una póliza de seguro Bupa está sujeta a todas las evaluaciones de riesgo por parte de Bupa y a la recepción de todos los pagos de prima requeridos.

Sheet Tablas (hidden)
A2: BUPA GLOBAL ELITE | I2: FACTOR MENSUAL: | K2: =1.12/12 -> 0.09333333333 | M2: =1.12/12 -> 0.09333333333
A3: TARIFAS ANUALES | I3: FACTOR TRIMESTRAL: | K3: =1.1/4 -> 0.275 | M3: =1.1/4 -> 0.275
A4: EDAD | I4: FACTOR SEMIANUAL: | K4: =1.06/2 -> 0.53 | M4: =1.06/2 -> 0.53
C5: 250 | D5: 2000 | E5: 3500 | F5: 5000 | G5: 10000 | O5: 250 | P5: 2000 | Q5: 3500 | R5: 5000 | S5: 10000
A6: 18 | C6: 7488 | D6: 6561 | E6: 5519 | F6: 4786 | G6: 3712 | I6: Descuento (0%): | K6: 1 | M6: 1 | O6: TRUE | P6: TRUE | Q6: TRUE | R6: TRUE | S6: TRUE
A7: 19 | C7: 7488 | D7: 6561 | E7: 5519 | F7: 4786 | G7: 3712 | O7: TRUE | P7: TRUE | Q7: TRUE | R7: TRUE | S7: TRUE
A8: 20 | C8: 7488 | D8: 6561 | E8: 5519 | F8: 4786 | G8: 3712 | O8: TRUE | P8: TRUE | Q8: TRUE | R8: TRUE | S8: TRUE
A9: 21 | C9: 7488 | D9: 6561 | E9: 5519 | F9: 4786 | G9: 3712 | O9: TRUE | P9: TRUE | Q9: TRUE | R9: TRUE | S9: TRUE
A10: 22 | C10: 7488 | D10: 6561 | E10: 5519 | F10: 4786 | G10: 3712 | O10: TRUE | P10: TRUE | Q10: TRUE | R10: TRUE | S10: TRUE
A11: 23 | C11: 7488 | D11: 6561 | E11: 5519 | F11: 4786 | G11: 3712 | O11: TRUE | P11: TRUE | Q11: TRUE | R11: TRUE | S11: TRUE
A12: 24 | C12: 7488 | D12: 6561 | E12: 5519 | F12: 4786 | G12: 3712 | O12: TRUE | P12: TRUE | Q12: TRUE | R12: TRUE | S12: TRUE
A13: 25 | C13: 8002 | D13: 7014 | E13: 5864 | F13: 5085 | G13: 3944 | O13: TRUE | P13: TRUE | Q13: TRUE | R13: TRUE | S13: TRUE
A14: 26 | C14: 8002 | D14: 7014 | E14: 5864 | F14: 5085 | G14: 3944 | O14: TRUE | P14: TRUE | Q14: TRUE | R14: TRUE | S14: TRUE
A15: 27 | C15: 8002 | D15: 7014 | E15: 5864 | F15: 5085 | G15: 3944 | O15: TRUE | P15: TRUE | Q15: TRUE | R15: TRUE | S15: TRUE
A16: 28 | C16: 8002 | D16: 7014 | E16: 5864 | F16: 5085 | G16: 3944 | O16: TRUE | P16: TRUE | Q16: TRUE | R16: TRUE | S16: TRUE
A17: 29 | C17: 8002 | D17: 7014 | E17: 5864 | F17: 5085 | G17: 3944 | O17: TRUE | P17: TRUE | Q17: TRUE | R17: TRUE | S17: TRUE
A18: 30 | C18: 8901 | D18: 7802 | E18: 6472 | F18: 5611 | G18: 4353 | O18: TRUE | P18: TRUE | Q18: TRUE | R18: TRUE | S18: TRUE
A19: 31 | C19: 8901 | D19: 7802 | E19: 6472 | F19: 5611 | G19: 4353 | O19: TRUE | P19: TRUE | Q19: TRUE | R19: TRUE | S19: TRUE
A20: 32 | C20: 8901 | D20: 7802 | E20: 6472 | F20: 5611 | G20: 4353 | O20: TRUE | P20: TRUE | Q20: TRUE | R20: TRUE | S20: TRUE
A21: 33 | C21: 8901 | D21: 7802 | E21: 6472 | F21: 5611 | G21: 4353 | O21: TRUE | P21: TRUE | Q21: TRUE | R21: TRUE | S21: TRUE
A22: 34 | C22: 8901 | D22: 7802 | E22: 6472 | F22: 5611 | G22: 4353 | O22: TRUE | P22: TRUE | Q22: TRUE | R22: TRUE | S22: TRUE
A23: 35 | C23: 9937 | D23: 8710 | E23: 7185 | F23: 6229 | G23: 4831 | O23: TRUE | P23: TRUE | Q23: TRUE | R23: TRUE | S23: TRUE
A24: 36 | C24: 9937 | D24: 8710 | E24: 7185 | F24: 6229 | G24: 4831 | O24: TRUE | P24: TRUE | Q24: TRUE | R24: TRUE | S24: TRUE
A25: 37 | C25: 9937 | D25: 8710 | E25: 7185 | F25: 6229 | G25: 4831 | O25: TRUE | P25: TRUE | Q25: TRUE | R25: TRUE | S25: TRUE
A26: 38 | C26: 9937 | D26: 8710 | E26: 7185 | F26: 6229 | G26: 4831 | O26: TRUE | P26: TRUE | Q26: TRUE | R26: TRUE | S26: TRUE
A27: 39 | C27: 9937 | D27: 8710 | E27: 7185 | F27: 6229 | G27: 4831 | O27: TRUE | P27: TRUE | Q27: TRUE | R27: TRUE | S27: TRUE
A28: 40 | C28: 11134 | D28: 9757 | E28: 8013 | F28: 6948 | G28: 5389 | O28: TRUE | P28: TRUE | Q28: TRUE | R28: TRUE | S28: TRUE
A29: 41 | C29: 11134 | D29: 9757 | E29: 8013 | F29: 6948 | G29: 5389 | O29: TRUE | P29: TRUE | Q29: TRUE | R29: TRUE | S29: TRUE
A30: 42 | C30: 11134 | D30: 9757 | E30: 8013 | F30: 6948 | G30: 5389 | O30: TRUE | P30: TRUE | Q30: TRUE | R30: TRUE | S30: TRUE
A31: 43 | C31: 11134 | D31: 9757 | E31: 8013 | F31: 6948 | G31: 5389 | O31: TRUE | P31: TRUE | Q31: TRUE | R31: TRUE | S31: TRUE
A32: 44 | C32: 11134 | D32: 9757 | E32: 8013 | F32: 6948 | G32: 5389 | O32: TRUE | P32: TRUE | Q32: TRUE | R32: TRUE | S32: TRUE
A33: 45 | C33: 12458 | D33: 10921 | E33: 8942 | F33: 7754 | G33: 6014 | O33: TRUE | P33: TRUE | Q33: TRUE | R33: TRUE | S33: TRUE
A34: 46 | C34: 12458 | D34: 10921 | E34: 8942 | F34: 7754 | G34: 6014 | O34: TRUE | P34: TRUE | Q34: TRUE | R34: TRUE | S34: TRUE
A35: 47 | C35: 12458 | D35: 10921 | E35: 8942 | F35: 7754 | G35: 6014 | O35: TRUE | P35: TRUE | Q35: TRUE | R35: TRUE | S35: TRUE
A36: 48 | C36: 12458 | D36: 10921 | E36: 8942 | F36: 7754 | G36: 6014 | O36: TRUE | P36: TRUE | Q36: TRUE | R36: TRUE | S36: TRUE
A37: 49 | C37: 12458 | D37: 10921 | E37: 8942 | F37: 7754 | G37: 6014 | O37: TRUE | P37: TRUE | Q37: TRUE | R37: TRUE | S37: TRUE
A38: 50 | C38: 13955 | D38: 12232 | E38: 9990 | F38: 8662 | G38: 6719 | O38: TRUE | P38: TRUE | Q38: TRUE | R38: TRUE | S38: TRUE
A39: 51 | C39: 13955 | D39: 12232 | E39: 9990 | F39: 8662 | G39: 6719 | O39: TRUE | P39: TRUE | Q39: TRUE | R39: TRUE | S39: TRUE
A40: 52 | C40: 13955 | D40: 12232 | E40: 9990 | F40: 8662 | G40: 6719 | O40: TRUE | P40: TRUE | Q40: TRUE | R40: TRUE | S40: TRUE
A41: 53 | C41: 13955 | D41: 12232 | E41: 9990 | F41: 8662 | G41: 6719 | O41: TRUE | P41: TRUE | Q41: TRUE | R41: TRUE | S41: TRUE
A42: 54 | C42: 13955 | D42: 12232 | E42: 9990 | F42: 8662 | G42: 6719 | O42: TRUE | P42: TRUE | Q42: TRUE | R42: TRUE | S42: TRUE
A43: 55 | C43: 15602 | D43: 13676 | E43: 11154 | F43: 9672 | G43: 7502 | O43: TRUE | P43: TRUE | Q43: TRUE | R43: TRUE | S43: TRUE
A44: 56 | C44: 15602 | D44: 13676 | E44: 11154 | F44: 9672 | G44: 7502 | O44: TRUE | P44: TRUE | Q44: TRUE | R44: TRUE | S44: TRUE
A45: 57 | C45: 15602 | D45: 13676 | E45: 11154 | F45: 9672 | G45: 7502 | O45: TRUE | P45: TRUE | Q45: TRUE | R45: TRUE | S45: TRUE
A46: 58 | C46: 15602 | D46: 13676 | E46: 11154 | F46: 9672 | G46: 7502 | O46: TRUE | P46: TRUE | Q46: TRUE | R46: TRUE | S46: TRUE
A47: 59 | C47: 15602 | D47: 13676 | E47: 11154 | F47: 9672 | G47: 7502 | O47: TRUE | P47: TRUE | Q47: TRUE | R47: TRUE | S47: TRUE
A48: 60 | C48: 16699 | D48: 14636 | E48: 11928 | F48: 10345 | G48: 8023 | O48: TRUE | P48: TRUE | Q48: TRUE | R48: TRUE | S48: TRUE
A49: 61 | C49: 18609 | D49: 16311 | E49: 13285 | F49: 11520 | G49: 8935 | O49: TRUE | P49: TRUE | Q49: TRUE | R49: TRUE | S49: TRUE
A50: 62 | C50: 20675 | D50: 18123 | E50: 14756 | F50: 12795 | G50: 9923 | O50: TRUE | P50: TRUE | Q50: TRUE | R50: TRUE | S50: TRUE
A51: 63 | C51: 22898 | D51: 20071 | E51: 16342 | F51: 14170 | G51: 10991 | O51: TRUE | P51: TRUE | Q51: TRUE | R51: TRUE | S51: TRUE
A52: 64 | C52: 25278 | D52: 22155 | E52: 18042 | F52: 15645 | G52: 12134 | O52: TRUE | P52: TRUE | Q52: TRUE | R52: TRUE | S52: TRUE
A53: 65 | C53: 27811 | D53: 24376 | E53: 19858 | F53: 17219 | G53: 13355 | O53: TRUE | P53: TRUE | Q53: TRUE | R53: TRUE | S53: TRUE
A54: 66 | C54: 30501 | D54: 26734 | E54: 21791 | F54: 18895 | G54: 14653 | O54: TRUE | P54: TRUE | Q54: TRUE | R54: TRUE | S54: TRUE
A55: 67 | C55: 33348 | D55: 29229 | E55: 23837 | F55: 20669 | G55: 16030 | O55: TRUE | P55: TRUE | Q55: TRUE | R55: TRUE | S55: TRUE
A56: 68 | C56: 36349 | D56: 31860 | E56: 25997 | F56: 22542 | G56: 17482 | O56: TRUE | P56: TRUE | Q56: TRUE | R56: TRUE | S56: TRUE
A57: 69 | C57: 39508 | D57: 34629 | E57: 28273 | F57: 24517 | G57: 19013 | O57: TRUE | P57: TRUE | Q57: TRUE | R57: TRUE | S57: TRUE
A58: 70 | C58: 42820 | D58: 37532 | E58: 30663 | F58: 26588 | G58: 20621 | O58: TRUE | P58: TRUE | Q58: TRUE | R58: TRUE | S58: TRUE
A59: 71 | C59: 46292 | D59: 40575 | E59: 33169 | F59: 28762 | G59: 22305 | O59: TRUE | P59: TRUE | Q59: TRUE | R59: TRUE | S59: TRUE
A60: 72 | C60: 49915 | D60: 43752 | E60: 35792 | F60: 31035 | G60: 24069 | O60: TRUE | P60: TRUE | Q60: TRUE | R60: TRUE | S60: TRUE
A61: 73 | C61: 53698 | D61: 47068 | E61: 38525 | F61: 33405 | G61: 25907 | O61: TRUE | P61: TRUE | Q61: TRUE | R61: TRUE | S61: TRUE
A62: 74 | C62: 57636 | D62: 50520 | E62: 41376 | F62: 35877 | G62: 27824 | O62: TRUE | P62: TRUE | Q62: TRUE | R62: TRUE | S62: TRUE
A63: 75 | C63: 61729 | D63: 54107 | E63: 44342 | F63: 38449 | G63: 29819 | O63: TRUE | P63: TRUE | Q63: TRUE | R63: TRUE | S63: TRUE
A64: 76 | C64: 61729 | D64: 54107 | E64: 44342 | F64: 38449 | G64: 29819 | O64: TRUE | P64: TRUE | Q64: TRUE | R64: TRUE | S64: TRUE
A65: 77 | C65: 61729 | D65: 54107 | E65: 44342 | F65: 38449 | G65: 29819 | O65: TRUE | P65: TRUE | Q65: TRUE | R65: TRUE | S65: TRUE
A66: 78 | C66: 61729 | D66: 54107 | E66: 44342 | F66: 38449 | G66: 29819 | O66: TRUE | P66: TRUE | Q66: TRUE | R66: TRUE | S66: TRUE
A67: 79 | C67: 61729 | D67: 54107 | E67: 44342 | F67: 38449 | G67: 29819 | O67: TRUE | P67: TRUE | Q67: TRUE | R67: TRUE | S67: TRUE
A68: 80 | C68: 61729 | D68: 54107 | E68: 44342 | F68: 38449 | G68: 29819 | O68: TRUE | P68: TRUE | Q68: TRUE | R68: TRUE | S68: TRUE
A69: 81 | C69: 61729 | D69: 54107 | E69: 44342 | F69: 38449 | G69: 29819 | O69: TRUE | P69: TRUE | Q69: TRUE | R69: TRUE | S69: TRUE
A70: 82 | C70: 61729 | D70: 54107 | E70: 44342 | F70: 38449 | G70: 29819 | O70: TRUE | P70: TRUE | Q70: TRUE | R70: TRUE | S70: TRUE
A71: 83 | C71: 61729 | D71: 54107 | E71: 44342 | F71: 38449 | G71: 29819 | O71: TRUE | P71: TRUE | Q71: TRUE | R71: TRUE | S71: TRUE
A72: 84 | B72: o más | C72: 61729 | D72: 54107 | E72: 44342 | F72: 38449 | G72: 29819 | O72: TRUE | P72: TRUE | Q72: TRUE | R72: TRUE | S72: TRUE
A73: 1 | B73: Hijo | C73: 3163 | D73: 2773 | E73: 2349 | F73: 2038 | G73: 1581 | O73: TRUE | P73: TRUE | Q73: TRUE | R73: TRUE | S73: TRUE
A74: 2 | B74: Hijos | C74: 5379 | D74: 4715 | E74: 3993 | F74: 3462 | G74: 2686 | O74: TRUE | P74: TRUE | Q74: TRUE | R74: TRUE | S74: TRUE
A75: 3 | B75: Hijos o más | C75: 7591 | D75: 6655 | E75: 5637 | F75: 4888 | G75: 3790 | O75: TRUE | P75: TRUE | Q75: TRUE | R75: TRUE | S75: TRUE
A77: BUPA GLOBAL ELITE - MENSUALES
A78: EDAD
C79: 250 | D79: 2000 | E79: 3500 | F79: 5000 | G79: 10000
A80: 18 | C80: =+C6*$K$2 -> 698.88 | D80: =+D6*$K$2 -> 612.36 | E80: 515.1066667 | F80: 446.6933333 | G80: 346.4533333
A81: 19 | C81: =+C7*$K$2 -> 698.88 | D81: 612.36 | E81: 515.1066667 | F81: 446.6933333 | G81: 346.4533333
A82: 20 | C82: =+C8*$K$2 -> 698.88 | D82: 612.36 | E82: 515.1066667 | F82: 446.6933333 | G82: 346.4533333
A83: 21 | C83: =+C9*$K$2 -> 698.88 | D83: 612.36 | E83: 515.1066667 | F83: 446.6933333 | G83: 346.4533333
A84: 22 | C84: =+C10*$K$2 -> 698.88 | D84: 612.36 | E84: 515.1066667 | F84: 446.6933333 | G84: 346.4533333
A85: 23 | C85: =+C11*$K$2 -> 698.88 | D85: 612.36 | E85: 515.1066667 | F85: 446.6933333 | G85: 346.4533333
A86: 24 | C86: =+C12*$K$2 -> 698.88 | D86: 612.36 | E86: 515.1066667 | F86: 446.6933333 | G86: 346.4533333
A87: 25 | C87: =+C13*$K$2 -> 746.8533333 | D87: 654.64 | E87: 547.3066667 | F87: 474.6 | G87: 368.1066667
A88: 26 | C88: =+C14*$K$2 -> 746.8533333 | D88: 654.64 | E88: 547.3066667 | F88: 474.6 | G88: 368.1066667
A89: 27 | C89: =+C15*$K$2 -> 746.8533333 | D89: 654.64 | E89: 547.3066667 | F89: 474.6 | G89: 368.1066667
A90: 28 | C90: =+C16*$K$2 -> 746.8533333 | D90: 654.64 | E90: 547.3066667 | F90: 474.6 | G90: 368.1066667
A91: 29 | C91: =+C17*$K$2 -> 746.8533333 | D91: 654.64 | E91: 547.3066667 | F91: 474.6 | G91: 368.1066667
A92: 30 | C92: =+C18*$K$2 -> 830.76 | D92: 728.1866667 | E92: 604.0533333 | F92: 523.6933333 | G92: 406.28
A93: 31 | C93: =+C19*$K$2 -> 830.76 | D93: 728.1866667 | E93: 604.0533333 | F93: 523.6933333 | G93: 406.28
A94: 32 | C94: =+C20*$K$2 -> 830.76 | D94: 728.1866667 | E94: 604.0533333 | F94: 523.6933333 | G94: 406.28
A95: 33 | C95: =+C21*$K$2 -> 830.76 | D95: 728.1866667 | E95: 604.0533333 | F95: 523.6933333 | G95: 406.28
A96: 34 | C96: =+C22*$K$2 -> 830.76 | D96: 728.1866667 | E96: 604.0533333 | F96: 523.6933333 | G96: 406.28
A97: 35 | C97: =+C23*$K$2 -> 927.4533333 | D97: 812.9333333 | E97: 670.6 | F97: 581.3733333 | G97: 450.8933333
A98: 36 | C98: =+C24*$K$2 -> 927.4533333 | D98: 812.9333333 | E98: 670.6 | F98: 581.3733333 | G98: 450.8933333
A99: 37 | C99: =+C25*$K$2 -> 927.4533333 | D99: 812.9333333 | E99: 670.6 | F99: 581.3733333 | G99: 450.8933333
A100: 38 | C100: =+C26*$K$2 -> 927.4533333 | D100: 812.9333333 | E100: 670.6 | F100: 581.3733333 | G100: 450.8933333
A101: 39 | C101: =+C27*$K$2 -> 927.4533333 | D101: 812.9333333 | E101: 670.6 | F101: 581.3733333 | G101: 450.8933333
A102: 40 | C102: =+C28*$K$2 -> 1039.173333 | D102: 910.6533333 | E102: 747.88 | F102: 648.48 | G102: 502.9733333
A103: 41 | C103: =+C29*$K$2 -> 1039.173333 | D103: 910.6533333 | E103: 747.88 | F103: 648.48 | G103: 502.9733333
A104: 42 | C104: =+C30*$K$2 -> 1039.173333 | D104: 910.6533333 | E104: 747.88 | F104: 648.48 | G104: 502.9733333
A105: 43 | C105: =+C31*$K$2 -> 1039.173333 | D105: 910.6533333 | E105: 747.88 | F105: 648.48 | G105: 502.9733333
A106: 44 | C106: =+C32*$K$2 -> 1039.173333 | D106: 910.6533333 | E106: 747.88 | F106: 648.48 | G106: 502.9733333
A107: 45 | C107: =+C33*$K$2 -> 1162.746667 | D107: 1019.293333 | E107: 834.5866667 | F107: 723.7066667 | G107: 561.3066667
A108: 46 | C108: =+C34*$K$2 -> 1162.746667 | D108: 1019.293333 | E108: 834.5866667 | F108: 723.7066667 | G108: 561.3066667
A109: 47 | C109: =+C35*$K$2 -> 1162.746667 | D109: 1019.293333 | E109: 834.5866667 | F109: 723.7066667 | G109: 561.3066667
A110: 48 | C110: =+C36*$K$2 -> 1162.746667 | D110: 1019.293333 | E110: 834.5866667 | F110: 723.7066667 | G110: 561.3066667
A111: 49 | C111: =+C37*$K$2 -> 1162.746667 | D111: 1019.293333 | E111: 834.5866667 | F111: 723.7066667 | G111: 561.3066667
A112: 50 | C112: =+C38*$K$2 -> 1302.466667 | D112: 1141.653333 | E112: 932.4 | F112: 808.4533333 | G112: 627.1066667
A113: 51 | C113: =+C39*$K$2 -> 1302.466667 | D113: 1141.653333 | E113: 932.4 | F113: 808.4533333 | G113: 627.1066667
A114: 52 | C114: =+C40*$K$2 -> 1302.466667 | D114: 1141.653333 | E114: 932.4 | F114: 808.4533333 | G114: 627.1066667
A115: 53 | C115: =+C41*$K$2 -> 1302.466667 | D115: 1141.653333 | E115: 932.4 | F115: 808.4533333 | G115: 627.1066667
A116: 54 | C116: =+C42*$K$2 -> 1302.466667 | D116: 1141.653333 | E116: 932.4 | F116: 808.4533333 | G116: 627.1066667
A117: 55 | C117: =+C43*$K$2 -> 1456.186667 | D117: 1276.426667 | E117: 1041.04 | F117: 902.72 | G117: 700.1866667
A118: 56 | C118: =+C44*$K$2 -> 1456.186667 | D118: 1276.426667 | E118: 1041.04 | F118: 902.72 | G118: 700.1866667
A119: 57 | C119: =+C45*$K$2 -> 1456.186667 | D119: 1276.426667 | E119: 1041.04 | F119: 902.72 | G119: 700.1866667
A120: 58 | C120: =+C46*$K$2 -> 1456.186667 | D120: 1276.426667 | E120: 1041.04 | F120: 902.72 | G120: 700.1866667
A121: 59 | C121: =+C47*$K$2 -> 1456.186667 | D121: 1276.426667 | E121: 1041.04 | F121: 902.72 | G121: 700.1866667
A122: 60 | C122: =+C48*$K$2 -> 1558.573333 | D122: 1366.026667 | E122: 1113.28 | F122: 965.5333333 | G122: 748.8133333
A123: 61 | C123: =+C49*$K$2 -> 1736.84 | D123: 1522.36 | E123: 1239.933333 | F123: 1075.2 | G123: 833.9333333
A124: 62 | C124: =+C50*$K$2 -> 1929.666667 | D124: 1691.48 | E124: 1377.226667 | F124: 1194.2 | G124: 926.1466667
A125: 63 | C125: =+C51*$K$2 -> 2137.146667 | D125: 1873.293333 | E125: 1525.253333 | F125: 1322.533333 | G125: 1025.826667
A126: 64 | C126: =+C52*$K$2 -> 2359.28 | D126: 2067.8 | E126: 1683.92 | F126: 1460.2 | G126: 1132.506667
A127: 65 | C127: =+C53*$K$2 -> 2595.693333 | D127: 2275.093333 | E127: 1853.413333 | F127: 1607.106667 | G127: 1246.466667
A128: 66 | C128: =+C54*$K$2 -> 2846.76 | D128: 2495.173333 | E128: 2033.826667 | F128: 1763.533333 | G128: 1367.613333
A129: 67 | C129: =+C55*$K$2 -> 3112.48 | D129: 2728.04 | E129: 2224.786667 | F129: 1929.106667 | G129: 1496.133333
A130: 68 | C130: =+C56*$K$2 -> 3392.573333 | D130: 2973.6 | E130: 2426.386667 | F130: 2103.92 | G130: 1631.653333
A131: 69 | C131: =+C57*$K$2 -> 3687.413333 | D131: 3232.04 | E131: 2638.813333 | F131: 2288.253333 | G131: 1774.546667
A132: 70 | C132: =+C58*$K$2 -> 3996.533333 | D132: 3502.986667 | E132: 2861.88 | F132: 2481.546667 | G132: 1924.626667
A133: 71 | C133: =+C59*$K$2 -> 4320.586667 | D133: 3787 | E133: 3095.773333 | F133: 2684.453333 | G133: 2081.8
A134: 72 | C134: =+C60*$K$2 -> 4658.733333 | D134: 4083.52 | E134: 3340.586667 | F134: 2896.6 | G134: 2246.44
A135: 73 | C135: =+C61*$K$2 -> 5011.813333 | D135: 4393.013333 | E135: 3595.666667 | F135: 3117.8 | G135: 2417.986667
A136: 74 | C136: =+C62*$K$2 -> 5379.36 | D136: 4715.2 | E136: 3861.76 | F136: 3348.52 | G136: 2596.906667
A137: 75 | C137: =+C63*$K$2 -> 5761.373333 | D137: 5049.986667 | E137: 4138.586667 | F137: 3588.573333 | G137: 2783.106667
A138: 76 | C138: =+C64*$K$2 -> 5761.373333 | D138: 5049.986667 | E138: 4138.586667 | F138: 3588.573333 | G138: 2783.106667
A139: 77 | C139: =+C65*$K$2 -> 5761.373333 | D139: 5049.986667 | E139: 4138.586667 | F139: 3588.573333 | G139: 2783.106667
A140: 78 | C140: =+C66*$K$2 -> 5761.373333 | D140: 5049.986667 | E140: 4138.586667 | F140: 3588.573333 | G140: 2783.106667
A141: 79 | C141: =+C67*$K$2 -> 5761.373333 | D141: 5049.986667 | E141: 4138.586667 | F141: 3588.573333 | G141: 2783.106667
A142: 80 | C142: =+C68*$K$2 -> 5761.373333 | D142: 5049.986667 | E142: 4138.586667 | F142: 3588.573333 | G142: 2783.106667
A143: 81 | C143: =+C69*$K$2 -> 5761.373333 | D143: 5049.986667 | E143: 4138.586667 | F143: 3588.573333 | G143: 2783.106667
A144: 82 | C144: =+C70*$K$2 -> 5761.373333 | D144: 5049.986667 | E144: 4138.586667 | F144: 3588.573333 | G144: 2783.106667
A145: 83 | C145: =+C71*$K$2 -> 5761.373333 | D145: 5049.986667 | E145: 4138.586667 | F145: 3588.573333 | G145: 2783.106667
A146: 84 | B146: o más | C146: =+C72*$K$2 -> 5761.373333 | D146: 5049.986667 | E146: 4138.586667 | F146: 3588.573333 | G146: 2783.106667
A147: 1 | B147: Hijo | C147: =+C73*$K$2 -> 295.2133333 | D147: 258.8133333 | E147: 219.24 | F147: 190.2133333 | G147: 147.56
A148: 2 | B148: Hijos | C148: =+C74*$K$2 -> 502.04 | D148: 440.0666667 | E148: 372.68 | F148: 323.12 | G148: 250.6933333
A149: 3 | B149: Hijos o más | C149: =+C75*$K$2 -> 708.4933333 | D149: 621.1333333 | E149: 526.12 | F149: 456.2133333 | G149: 353.7333333
A151: BUPA GLOBAL PREMIER
A152: TARIFAS ANUALES
A153: EDAD
C154: 250 | D154: 2000 | E154: 5000 | F154: 10000 | O154: 250 | P154: 2000 | Q154: 5000 | R154: 10000
A155: 18 | C155: 4895 | D155: 4441 | E155: 3370 | F155: 2506 | O155: TRUE | P155: TRUE | Q155: TRUE | R155: TRUE
A156: 19 | C156: 4895 | D156: 4441 | E156: 3370 | F156: 2506 | O156: TRUE | P156: TRUE | Q156: TRUE | R156: TRUE
A157: 20 | C157: 4895 | D157: 4441 | E157: 3370 | F157: 2506 | O157: TRUE | P157: TRUE | Q157: TRUE | R157: TRUE
A158: 21 | C158: 4895 | D158: 4441 | E158: 3370 | F158: 2506 | O158: TRUE | P158: TRUE | Q158: TRUE | R158: TRUE
A159: 22 | C159: 4895 | D159: 4441 | E159: 3370 | F159: 2506 | O159: TRUE | P159: TRUE | Q159: TRUE | R159: TRUE
A160: 23 | C160: 4895 | D160: 4441 | E160: 3370 | F160: 2506 | O160: TRUE | P160: TRUE | Q160: TRUE | R160: TRUE
A161: 24 | C161: 4895 | D161: 4441 | E161: 3370 | F161: 2506 | O161: TRUE | P161: TRUE | Q161: TRUE | R161: TRUE
A162: 25 | C162: 5230 | D162: 4746 | E162: 3564 | F162: 2652 | O162: TRUE | P162: TRUE | Q162: TRUE | R162: TRUE
A163: 26 | C163: 5230 | D163: 4746 | E163: 3564 | F163: 2652 | O163: TRUE | P163: TRUE | Q163: TRUE | R163: TRUE
A164: 27 | C164: 5230 | D164: 4746 | E164: 3564 | F164: 2652 | O164: TRUE | P164: TRUE | Q164: TRUE | R164: TRUE
A165: 28 | C165: 5230 | D165: 4746 | E165: 3564 | F165: 2652 | O165: TRUE | P165: TRUE | Q165: TRUE | R165: TRUE
A166: 29 | C166: 5230 | D166: 4746 | E166: 3564 | F166: 2652 | O166: TRUE | P166: TRUE | Q166: TRUE | R166: TRUE
A167: 30 | C167: 5819 | D167: 5279 | E167: 3913 | F167: 2911 | O167: TRUE | P167: TRUE | Q167: TRUE | R167: TRUE
A168: 31 | C168: 5819 | D168: 5279 | E168: 3913 | F168: 2911 | O168: TRUE | P168: TRUE | Q168: TRUE | R168: TRUE
A169: 32 | C169: 5819 | D169: 5279 | E169: 3913 | F169: 2911 | O169: TRUE | P169: TRUE | Q169: TRUE | R169: TRUE
A170: 33 | C170: 5819 | D170: 5279 | E170: 3913 | F170: 2911 | O170: TRUE | P170: TRUE | Q170: TRUE | R170: TRUE
A171: 34 | C171: 5819 | D171: 5279 | E171: 3913 | F171: 2911 | O171: TRUE | P171: TRUE | Q171: TRUE | R171: TRUE
A172: 35 | C172: 6494 | D172: 5895 | E172: 4325 | F172: 3216 | O172: TRUE | P172: TRUE | Q172: TRUE | R172: TRUE
A173: 36 | C173: 6494 | D173: 5895 | E173: 4325 | F173: 3216 | O173: TRUE | P173: TRUE | Q173: TRUE | R173: TRUE
A174: 37 | C174: 6494 | D174: 5895 | E174: 4325 | F174: 3216 | O174: TRUE | P174: TRUE | Q174: TRUE | R174: TRUE
A175: 38 | C175: 6494 | D175: 5895 | E175: 4325 | F175: 3216 | O175: TRUE | P175: TRUE | Q175: TRUE | R175: TRUE
A176: 39 | C176: 6494 | D176: 5895 | E176: 4325 | F176: 3216 | O176: TRUE | P176: TRUE | Q176: TRUE | R176: TRUE
A177: 40 | C177: 7277 | D177: 6605 | E177: 4808 | F177: 3577 | O177: TRUE | P177: TRUE | Q177: TRUE | R177: TRUE
A178: 41 | C178: 7277 | D178: 6605 | E178: 4808 | F178: 3577 | O178: TRUE | P178: TRUE | Q178: TRUE | R178: TRUE
A179: 42 | C179: 7277 | D179: 6605 | E179: 4808 | F179: 3577 | O179: TRUE | P179: TRUE | Q179: TRUE | R179: TRUE
A180: 43 | C180: 7277 | D180: 6605 | E180: 4808 | F180: 3577 | O180: TRUE | P180: TRUE | Q180: TRUE | R180: TRUE
A181: 44 | C181: 7277 | D181: 6605 | E181: 4808 | F181: 3577 | O181: TRUE | P181: TRUE | Q181: TRUE | R181: TRUE
A182: 45 | C182: 8145 | D182: 7393 | E182: 5352 | F182: 3981 | O182: TRUE | P182: TRUE | Q182: TRUE | R182: TRUE
A183: 46 | C183: 8145 | D183: 7393 | E183: 5352 | F183: 3981 | O183: TRUE | P183: TRUE | Q183: TRUE | R183: TRUE
A184: 47 | C184: 8145 | D184: 7393 | E184: 5352 | F184: 3981 | O184: TRUE | P184: TRUE | Q184: TRUE | R184: TRUE
A185: 48 | C185: 8145 | D185: 7393 | E185: 5352 | F185: 3981 | O185: TRUE | P185: TRUE | Q185: TRUE | R185: TRUE
A186: 49 | C186: 8145 | D186: 7393 | E186: 5352 | F186: 3981 | O186: TRUE | P186: TRUE | Q186: TRUE | R186: TRUE
A187: 50 | C187: 9122 | D187: 8278 | E187: 5970 | F187: 4441 | O187: TRUE | P187: TRUE | Q187: TRUE | R187: TRUE
A188: 51 | C188: 9122 | D188: 8278 | E188: 5970 | F188: 4441 | O188: TRUE | P188: TRUE | Q188: TRUE | R188: TRUE
A189: 52 | C189: 9122 | D189: 8278 | E189: 5970 | F189: 4441 | O189: TRUE | P189: TRUE | Q189: TRUE | R189: TRUE
A190: 53 | C190: 9122 | D190: 8278 | E190: 5970 | F190: 4441 | O190: TRUE | P190: TRUE | Q190: TRUE | R190: TRUE
A191: 54 | C191: 9122 | D191: 8278 | E191: 5970 | F191: 4441 | O191: TRUE | P191: TRUE | Q191: TRUE | R191: TRUE
A192: 55 | C192: 10199 | D192: 9256 | E192: 6657 | F192: 4953 | O192: TRUE | P192: TRUE | Q192: TRUE | R192: TRUE
A193: 56 | C193: 10199 | D193: 9256 | E193: 6657 | F193: 4953 | O193: TRUE | P193: TRUE | Q193: TRUE | R193: TRUE
A194: 57 | C194: 10199 | D194: 9256 | E194: 6657 | F194: 4953 | O194: TRUE | P194: TRUE | Q194: TRUE | R194: TRUE
A195: 58 | C195: 10199 | D195: 9256 | E195: 6657 | F195: 4953 | O195: TRUE | P195: TRUE | Q195: TRUE | R195: TRUE
A196: 59 | C196: 10199 | D196: 9256 | E196: 6657 | F196: 4953 | O196: TRUE | P196: TRUE | Q196: TRUE | R196: TRUE
A197: 60 | C197: 10916 | D197: 9905 | E197: 7117 | F197: 5294 | O197: TRUE | P197: TRUE | Q197: TRUE | R197: TRUE
A198: 61 | C198: 12165 | D198: 11039 | E198: 7920 | F198: 5892 | O198: TRUE | P198: TRUE | Q198: TRUE | R198: TRUE
A199: 62 | C199: 13512 | D199: 12265 | E199: 8795 | F199: 6543 | O199: TRUE | P199: TRUE | Q199: TRUE | R199: TRUE
A200: 63 | C200: 14966 | D200: 13582 | E200: 9742 | F200: 7246 | O200: TRUE | P200: TRUE | Q200: TRUE | R200: TRUE
A201: 64 | C201: 16521 | D201: 14992 | E201: 10758 | F201: 8003 | O201: TRUE | P201: TRUE | Q201: TRUE | R201: TRUE
A202: 65 | C202: 18177 | D202: 16494 | E202: 11843 | F202: 8810 | O202: TRUE | P202: TRUE | Q202: TRUE | R202: TRUE
A203: 66 | C203: 19937 | D203: 18091 | E203: 13000 | F203: 9671 | O203: TRUE | P203: TRUE | Q203: TRUE | R203: TRUE
... 1275 more rows
